Workbook

Sheet 1.Inicio
F1: MODELO DE EVALUACIÓN DE PROYECTOS DE GENERACIÓN DISTRIBUIDA COLECTIVA
A6: I. Antecedentes
A7: En 2019, el Ministerio Federal de Cooperación Económica y Desarrollo (BMZ por sus siglas en alemán) encargó a la GIZ a apoyar a México a realizar el Programa Apoyo a la Implementación de la Transición Energética (TrEM) con el fin de mejorar las condiciones marco para la implementación de la transición energética en las áreas de energías renovables y eficiencia energética en México. Respecto a la generación distribuida de electricidad con fuentes renovables se reconoce que actualmente existen algunos enfoques innovadores de modelos de negocio y otras formas de organización social alrededor de la energía, sin embargo es necesario el desarrollo de información y la puesta en prueba de nuevos modelos. El anteproyecto de regulación de generación distribuida colectiva, promovida por la Comisión Reguladora de Energía (CRE) abre nuevas oportunidades para desarrollar modelos de proyectos de energía con la participación de más actores. Para esto es necesario la generación de insumos y herramientas que faciliten la adopción de modelos a partir de esta regulación en ciernes. Para eso se desarrolló un estudio entre noviembre 2019 y abril 2020 con el objetivo de “Examinar los criterios y lineamientos que la regulación establece y plasmarlos en un modelo tecno-económico robusto para analizar la factibilidad, rentabilidad, riesgos y consideraciones que cualquier generador exento tendría que tomar en consideración para el desarrollo de proyectos en el marco de la regulación distribuida colectiva.” La presente herramienta es el modelo tecno-económico que permitirá a diversos actores del sector hacer análisis y conocer mejor las oportunidades que brinda la generación distribuida colectiva.
A14: II. Descripción general de la herramienta de Excel
A15: Este modelo de Excel se basa en los lineamientos definidos en el anteproyecto del Acuerdo A/034/2019 por el que la CRE emite la metodología de contraprestación colectiva, que aplicará el suministrador de servicios básicos por la energía eléctrica que ofrezcan los generadores exentos a más de un centro de carga, el modelo de contrato de contraprestación colectiva y la solicitud de alta/baja y modificación de beneficiarios (aprobado por el Órgano de Gobierno del regulador pero aún no publicado en el Diario Oficial de la Federación). El principal objetivo de esta herramienta es permitir que los interesados en el desarrollo de proyectos de generación distribuida colectiva en México prueben sus modelos de negocio ante distintos escenarios de esquemas de contraprestación, financiamiento, tipos de usuarios, ubicación, tamaños de planta, precios marginales locales, entre otros factores. Para esto, la herramienta permite modificar diversas variables que influyen en el desempeño económico de un proyecto de esta naturaleza. Asimismo, contiene valores preliminares de costos típicos para sistemas fotovoltaicos en México que pueden ser utilizados por el usuario para una primera evaluación de factibilidad o modificados para reflejar mejor las condiciones reales de su proyecto. Junto a la plantilla genérica, se presenta un ejemplo de uso con datos de la ciudad de Mérida, Yucatán que puede ser consultado en caso de dudas.
A20: III. Instrucciones generales
A21: a) Una parte importante de la herramienta de Excel está contenida programada en Visual Basic y contenida en macros por lo que es necesario habilitar su uso antes de utilizar el modelo.
A22: b) El modelo de Excel se compone de nueve pestañas además de esta: Proyecto, Demanda, Tarifas, Costos, Generación, PML, Resultados, Balance e Informe. En las primeras seis el usuario deberá introducir información de las variables que querrá considerar en su proyecto o bien decidir si utiliza la información ya disponible en la plantilla, mientras que en las últimas tres se presentan los resultados de la evaluación en distintos niveles de detalle.
A23: c) En cada una de las pestañas donde el modelo requiere que el usuario introduzca información, se presentarán instrucciones específicas para su llenado en la parte superior de la pestaña. Al final de la mayoría también estará disponible un glosario con la definición de los términos usados en esa pestaña específica. Es aconsejable revisar toda la plantilla antes de realizar modificaciones al modelo.
A24: d) De manera general, el usuario podrá modificar los valores de las celdas AZULES de acuerdo con la información de su proyecto y elegir de las celdas ANARANJADAS la opción del menú que sea más adecuada a su caso.
A25: e) Al modificar valores debe prestarse mucha atención a las unidades utilizadas en la sección, las cuales son resaltadas en ROJO. De manera general, el modelo respeta las unidades en las que son obtenidos los datos de la fuente original para evitar que el usuario realizara conversiones innecesarias. Por ejemplo, los consumos mensuales de los beneficiarios - consumidores asociados al contrato de generación colectivo - son presentados en kilowatts-hora como se reportan en la factura eléctrica de CFE. Los precios marginales locales, por su lado, son reportados en megawatts-hora como pueden encontrarse en la base de datos del Centro Nacional de Control en Energía.
A26: f) Una vez que se haya llenado toda la información de las pestañas 2-7, el usuario deberá volver a la pestaña "2.Proyecto" y presionar el botón ROJO de "Evaluar". La evaluación del modelo tomará entre 1 y 2 minutos, dependiendo de la cantidad de variables utilizadas.
A27: g) Al terminar la evaluación, el programa te redirigirá a la pestaña "10. Informe" donde podrás observar un resumen de los resultados del proyecto así como los indicadores financieros del mismo. Para mayor detalle puedes ir a la pestaña "8.Resultados" donde se presentan los cálculos realizados por el programa y a la pestaña "9.Balance" donde se presenta el balance financiero calculado con los valores obtenidos por el modelo.
A28: h) El informe está diseñado para imprimirse de ser necesario. Si deseas imprimirlo, únicamente debes presionar "Ctrl + p" o imprimir desde el menú de "Archivo".
A29: IV. Preguntas frecuentes
A30: ¿Dónde puedo obtener los consumos mensuales de mis potenciales beneficiarios?
A31: Lo ideal es obtenerlos directamente de sus facturas eléctricas de CFE que cubran un período de un año, sobre todo tratándose de beneficiarios con fuertes componentes estacionales; por ejemplo, consumidores que utilizan sistemas de aire acondicionado solo en algunos meses. La plantilla contiene curvas de consumo de prueba que pueden ser utilizadas para probar modelos de negocio de manera teórica. No obstante, lo mejor es tener curvas de consumo reales o lo más apegadas posible a tus futuros beneficiarios. Si tienes datos de algunos meses, podrías utilizar estos valores para hacer una estimación de los períodos restantes. Esto deberás hacerlo antes de introducir tus datos en la plantilla y la metodología que utilices deberás plantearla de acuerdo a tus necesidades de precisión.
A33: Las facturas de CFE de mis beneficiarios no inician el primer día del mes y la plantilla pide valores mensuales, ¿qué debo hacer?
A34: Deberás dividir los valores de consumo entre los días que corresponden a cada mes y hacer la sumatoria correspondiente. Para evitar hacerlo manualmente, puedes utilizar el archivo de Excel disponible junto con esta plantilla para reajustar tus consumos. Simplemente introduce los valores de tus facturas eléctricas en esa plantilla y una vez reajustados, copia y pega en este modelo para ser evaluados.
A36: ¿Cómo puedo saber qué valores se aplicaron a los distintos cargos tarifarios de mis beneficiarios en la región dónde se ubicará mi proyecto?
A37: Los valores históricos de los cargos aplicables a cada categoría tarifaria pueden ser consultados en la página de CFE en la sección de "Tarifas" y en la pestaña de "Esquema Tarifario Vigente":
F38: https://www.cfe.mx/tarifas/Pages/Tarifas.aspx
A39: En la mayoría de los casos, únicamente necesitas conocer el estado y municipio donde se ubica tu proyecto puesto que la gran mayoría de los municipios pertenece a una sola división de distribución. Empero, existen casos donde hay más de una división de distribución operando en el municipio, por lo que será necesario corroborar en atención al cliente de CFE cual es la aplicabla a la dirección donde se encuentra el o los beneficiarios.
A41: ¿Cómo puede saber la tarifa (1A, 1B, 1C, etcétera) aplicable a mis beneficiarios domésticos de bajo consumo así como el mes cuando comienza el verano en la región donde se ubicará mi proyecto?
A42: Esta información deberás obtenerla directamente de atención al cliente de CFE con los datos de alguno de tus beneficiarios, o bien, comparando datos históricos de sus recibos contra los valores disponibles en la página de CFE para los usuarios domésticos.
A44: ¿Cómo sé si mis beneficiarios con tarifas en media tensión - GDMTO, GDMTH - tienen o no medición en baja tensión?
A45: Si en su recibo aparece un cargo por el concepto de "2% Baja Tensión", el beneficiario tiene medición en baja tensión. Si no aparece, no la tiene.
A47: ¿Por qué no me solicitan datos sobre la demanda máxima de mis usuarios de gran demanda (GDBT, GDMTO y GDMTH)? ¿Cómo sabe el modelo qué monto utilizar para los costos de distribución y capacidad?
A48: Debido a discrepancias observadas en facturas eléctricas de este grupo de usuarios, se decidió aplicar para todos ellos la siguiente fórmula para el cálculo de la demanda facturable (permitida por la regulación vigente):
A50: El factor de carga aplicable a cada categoría tarifaria es el establecido en el apartado 3.3.1 del Anexo Único del Acuerdo A/064/2018.
A52: ¿Cómo puedo saber cuál es la demanda de energía reactiva (kVArh) de mis beneficiarios? ¿Para qué requiere esa información el modelo?
A53: Los usuarios de gran demanda son sujetos de cargos y bonificaciones por concepto de factor de potencia. Cuando los equipos de los beneficiarios reportan un factor de potencia mayor a 90 estos reciben una bonificación de CFE, mientras que en el caso contrario son amonestados mediante la aplicacion de un cargo extra. En la factura eléctrica de estos usuarios puedes ver su consumo de energía reactiva reportado (kVArh), generalemente junto a la información de demanda de energía activa (kWh) y demanda máxima registrada (kW). El modelo utiliza esta información para calcular el factor de potencia correspondiente y la potencil bonificación o amonestación. Solicitar de esta manera la información permite que los usuarios de las plantillas puedan modelar mejores en el consumo de energía reactiva de sus usuarios junto con su integración a un modelo de generación distribuida colectiva.
A55: Tengo una cotización para mi proyecto que no coincide con los valores de la pestaña "5.Costos", ¿puedo modificarlos?
A56: Sí, no hay ningún problema. Solo debes tener cuidado de adaptar tus valores a las mismas unidades que utiliza el modelo (pesos mexicanos por kilowatt pico instalado o pesos mexicanos por año, según sea el caso) y colocarlos en la categoría correspondiente a la capacidad de tu planta.
A58: El modelo utiliza valores precargados para paneles monocristalinos y yo usaré otra tecnología, ¿cómo puedo adaptarlo a mi caso?
A59: Únicamente es necesario que sustituyas los valores de las eficiencias anuales esperadas para tu tipo de panel en la pestaña "6. Generación"; estos pueden obtenerse de la hoja técnica del producto otorgada por el fabricante. Además, deberás adaptar los costos en la pestaña 5 si su valor difiere mucho de un panel monocristalino estándar.
A61: Mi proyecto no estará ubicado en Mérida, ¿cómo puedo saber la curva de generación horaria aplicable al sitio donde será instalado?
A62: Existen muchas metodologías y tu puedes usar la que te parezca más adecuada. Una opción es usar los datos de la página:
F63: https://www.renewables.ninja/
A64: Solo deberás introducir la ubicación de tu proyecto y ajustar los parámetros para 1 kWp de capacidad. Una vez que descargues los datos deberás tomar los correspondientes al período del 1º de enero al 31 de diciembre y dividir los valores entre 1000 antes de copiarlos en la columna "D" de la pestaña "6.Generación" ya que la página calcula los valores en kilowatts-hora por kilowatt instalado y el modelo los requiere en megawatt-hora por kilowatt instalado. Ten cuidado que las horas coincidan entre tus resultados y el modelo de Excel.
A66: ¿Cómo sé que nodoP corresponde a mi proyecto?
A67: El catálogo de nodosP actual puede ser consultado en la siguiente página del Centro Nacional de Control en Energía (CENACE):
E68: https://www.cenace.gob.mx/Paginas/Publicas/MercadoOperacion/NodosP.aspx
A69: Ahí puedes descargar un archivo de Excel actualizado y buscar el estado, municipio y zona de carga donde se encuentra tu proyecto. En muchos casos solo existe un nodoP por municipio pero en otros, de mayor tamaño o población, puede existir más de uno. En este último caso deberás contactar con CFE para saber cual de los nodos corresponde exactamente a la ubicación potencial de tu planta.
A71: ¿Necesito los precios marginales locales para ese nodo del Mercado del Día en Adelanto (MDA) o el Mercado en Tiempo Real (MTR)?
A72: El acuerdo vigente indica que deberán usarse los precios del MDA por lo que es necesario descargar los correspondientes a este mercado.
A74: ¿Dónde puedo obtener los precios marginales locales horarios del MDA para el nodo donde se ubicará mi proyecto?
A75: Puedes descargar archivos CSV con los precios horarios por día o mes (precios de nodos distirbuidos) en la siguiente página:
E76: https://www.cenace.gob.mx/SIM/VISTA/REPORTES/PreEnergiaSisMEM.aspx
A77: De manera alternativa, puedes utilizar el código de Python disponible junto con esta plantilla. Este te permitirá descargar de manera automática los precios horarios para el nodo de tu preferencia y para el período que indiques. El uso de este código te premitirá automatizar el proceso y descargar datos de difentes nodos de manera fácil y rápida. No obstante, para utilizarlo necesitas tener instalado Python en tu computadora. Python es un programa de uso libre por lo que no tiene costo y puede ser descargado siguiendo las instrucciones del siguiente link:
E78: https://www.python.org/downloads/
A80: Si ya tengo los datos de un año, ¿cómo puedo proyectar 20 años hacia el futuro?
A81: Existen diferentes técnicas que dependerán de la estrategia de tu empresa. No obstante, si no cuentas con modelos de pronóstico, es posible utilizar los mismos valores del primer año para todos los años y realizar una primera evaluación financiera. Posteriormente puedes modificar algunos valores y realizar un análisis de sensibilidad modificando datos con diferentes escenarios, por ejemplo aumentando cada año 3% el precio con respecto al año anterior, y analizar como impactan estos cambios a los parámetros financieros de tu modelo de negocio.
A83: ¿Por qué el total de los recibos mensuales de mi beneficiario no coincide con el reportado en la pestaña "8.Resultados" para el concepto de "Facturación esperada de no haberse asociado al contrato de generación distribuida"?
A84: En usuarios de gran demanda pueden existir discrepancias respecto al cálculo de la demanda máxima y por consiguiente los cargos aplicables por conceptos de distribución y capacidad. En los usuarios PDBT, DAC o DOM pueden existir diferencias pero estas deberán ser minímas, al menos para el primer año reportado. En este caso se recomienda revisar que todas las variables estén correctamente introducidas en el modelo.
A86: ¿Cómo se calculan las emisiones de Gases de Efecto Invernadero (GEI) promedio evitadas anualmente mostradas en la pestaña "10.Informe"?
A87: Se calcula el promedio anual de energía producida por la central durante el período analizado y se multiplica por el factor de emisiones del Sistema Eléctrico Nacional publicado por la CRE. Para esta versión se utilizó el último dato disponible, publicado en febrero de 2019, y correspondiente a 0.527 toneladas de dióxido de carbono equivalente por megawatt-hora.
A88: V. Datos de contacto
A89: Para dudas o comentarios sobre el Programa Apoyo a la Implementación de la Transición Energética, favor de contactar a: MSc. Lishey Lavariega || lishey.lavariega@giz.de
A90: Para dudas o comentarios sobre el modelo de Excel: MSc. Mariana Jiménez || iqmarianajm@gmail.com
A91: Asimismo, agradecemos por su ayuda en este proyecto al MSc. Luis A. Uresti || alfonso.urestib@gmail.com

Sheet 2.Proyecto
A1: 2. PROYECTO
AA2: LISTADOS | AE2: Beneficiario | AF2: ¿Energía asignada OK? | AG2: Mes de inicio (número) | AH2: ¿Mes de inicio OK? | AI2: ¿Año de inicio OK? | AJ2: ¿Duración de contrato OK? | AK2: SUMA | AL2: Estatus | AM2: ¿Activo? | AN2: Año de finalización
A3: I. Instrucciones
AA4: Modelos | AC4: Opciones | AE4: 1 | AF4: =IF((AND(B58<>"Ninguno", C58=0)), 1,0) -> 0 | AG4: =IF(E58="Enero", 1, IF(E58="Febrero", 2, IF(E58="Marzo", 3, IF(E58="Abril", 4, IF(E58="Mayo", 5, IF(E58="Junio", 6, IF(E58="Julio", 7, IF(E58="Agosto", 8, IF(E58="Septiembre", 9, IF(E58="Octubre", 10, IF(E58="Noviembre", 11, IF(E58="Diciembre", 12)))))))))))) -> 1 | AH4: =IF((AND(D58=1,AG4<$AG$25)), 1, 0)*AM4 -> 0 | AI4: =IF((AND(B58<>"Ninguno", D58=0)), 1,0) -> 0 | AJ4: =IF((AND(F58 <D58, F58=0)), 1,0) -> 0 | AK4: =AF4+AH4+AI4+AJ4 -> 0 | AL4: =IF(AK4>0, "Error", "OK") -> OK | AM4: =IF(B58="Ninguno", 0, 1) -> 1 | AN4: =IF(((D58+F58)*AM4)<=21, (D58+F58)*AM4, 22) -> 21
A5: 1. Dentro de las secciones II - VI, Ingresa manualmente tus datos en las celdas color azul y selecciona la opción que desees analizar dentro de los menús disponibles en las celdas de color naranja. | AA5: Facturación Neta. | AC5: SI | AE5: 2 | AF5: 0 | AG5: 1 | AH5: 0 | AI5: 0 | AJ5: 0 | AK5: 0 | AL5: OK | AM5: 1 | AN5: 21
A6: 2. En la sección V, si tu modelo de negocio consiste en tarifa variable por consumo, renta fija mensual o una combinación de ambas, deberás colocar los valores correspondientes en la tabla adyacente. Si eliges la opción de "autoconsumo" no será necesario proporcionar más datos. | AA6: Medición Neta - Baja Tensión. | AC6: NO | AE6: 3 | AF6: 0 | AG6: 1 | AH6: 0 | AI6: 0 | AJ6: 0 | AK6: 0 | AL6: OK | AM6: 1 | AN6: 21
A7: 3. En la sección VI cerciórate que el estatus de todas las filas es "OK". Si has activado un beneficiario pero no has llenado toda la información correspondiente, indicará error. También lo hará si tu beneficiario está activo desde el primer año de operaciones y el mes de inicio de su contrato es anterior al de operaciones. | AA7: Medición Neta - Media Tensión Ordinaria. | AC7: Meses | AE7: 4 | AF7: 0 | AG7: 1 | AH7: 0 | AI7: 0 | AJ7: 0 | AK7: 0 | AL7: OK | AM7: 1 | AN7: 21
A8: 4. Si tienes dudas sobre alguno de los términos, en la parte de abajo de las tablas puedes encontrar un glosario con mayor información sobre cada columna. | AA8: Medición Neta - Media Tensión Horaria. | AC8: Enero | AE8: 5 | AF8: 0 | AG8: 1 | AH8: 0 | AI8: 0 | AJ8: 0 | AK8: 0 | AL8: OK | AM8: 0 | AN8: 0
A9: 5. Ve a las pestañas 3-7 y completa la información con los datos de tu proyecto (te sugerimos revisar el ejemplo precargado con los datos de Mérida, Yucatán). | AC9: Febrero | AE9: 6 | AF9: 0 | AG9: 1 | AH9: 0 | AI9: 0 | AJ9: 0 | AK9: 0 | AL9: OK | AM9: 0 | AN9: 0
A10: 6. Después de completar la información de las pestañas 3-7, presiona el botón de "Evaluar". Este evaluará el modelo y te redirigirá a la pestaña 10 donde podrás ver un resumen de los resultados. Si deseas más detalles puedes consultar las pestañas 8 y 9. | AA10: Cobros beneficiarios | AC10: Marzo | AE10: 7 | AF10: 0 | AG10: 1 | AH10: 0 | AI10: 0 | AJ10: 0 | AK10: 0 | AL10: OK | AM10: 0 | AN10: 0
A11: 7. Recuerda que si tu proyecto es de medición neta únicamente podrás elegir beneficiarios "GDMTH" para proyectos en media tensión horaria, beneficiarios "GDMTO" para proyectos en media tensión ordinaria, y beneficiarios "DOM", "DAC", "PDBT" y "GDBT" para proyectos en baja tensión. En facturación neta no existen reestricciones. De utilizar beneficiarios que no están permitidos para el tipo de proyecto que hayas elegido, el programa te enviará un mensaje para corregir este problema. | AA11: Tarifa variable por energía entregada. | AC11: Abril | AE11: 8 | AF11: 0 | AG11: 1 | AH11: 0 | AI11: 0 | AJ11: 0 | AK11: =AF11+AH11+AI11+AJ11 -> 0 | AL11: =IF(AK11>0, "Error", "OK") -> OK | AM11: 0 | AN11: 0
A12: II. Tipo de proyecto | AA12: Renta fija por mes. | AC12: Mayo | AE12: 9 | AF12: 0 | AG12: 1 | AH12: 0 | AI12: 0 | AJ12: 0 | AK12: 0 | AL12: OK | AM12: 0 | AN12: 0
AA13: Combinación de tarifa variable y renta fija. | AC13: Junio | AE13: 10 | AF13: 0 | AG13: 1 | AH13: 0 | AI13: 0 | AJ13: 0 | AK13: 0 | AL13: OK | AM13: 0 | AN13: 0
A14: Elige el tipo de proyecto que deseas evaluar: | D14: Medición Neta - Baja Tensión. | AA14: Autoconsumo. | AC14: Julio | AE14: 11 | AF14: 0 | AG14: 1 | AH14: 0 | AI14: 0 | AJ14: 0 | AK14: 0 | AL14: OK | AM14: 0 | AN14: 0
AC15: Agosto | AE15: 12 | AF15: 0 | AG15: 1 | AH15: 0 | AI15: 0 | AJ15: 0 | AK15: 0 | AL15: OK | AM15: 0 | AN15: 0
A16: III. Datos de la central fotovoltaica de generación distribuida | AC16: Septiembre | AE16: 13 | AF16: 0 | AG16: 1 | AH16: 0 | AI16: 0 | AJ16: 0 | AK16: 0 | AL16: OK | AM16: 0 | AN16: 0
AC17: Octubre | AE17: 14 | AF17: 0 | AG17: 1 | AH17: 0 | AI17: 0 | AJ17: 0 | AK17: 0 | AL17: OK | AM17: 0 | AN17: 0
A18: ¿Qué capacidad tiene tu central de generación distribuida? | E18: 50 | F18: kWp | AC18: Noviembre | AE18: 15 | AF18: 0 | AG18: 1 | AH18: 0 | AI18: 0 | AJ18: 0 | AK18: 0 | AL18: OK | AM18: 0 | AN18: 0
AC19: Diciembre | AE19: 16 | AF19: 0 | AG19: 1 | AH19: 0 | AI19: 0 | AJ19: 0 | AK19: 0 | AL19: OK | AM19: 0 | AN19: 0
A20: Mes de inicio de operaciones: | C20: Enero | AC20: Tipo Beneficiario | AE20: 17 | AF20: 0 | AG20: 1 | AH20: 0 | AI20: 0 | AJ20: 0 | AK20: 0 | AL20: OK | AM20: 0 | AN20: 0
AC21: Ninguno | AE21: 18 | AF21: 0 | AG21: 1 | AH21: 0 | AI21: 0 | AJ21: 0 | AK21: 0 | AL21: OK | AM21: 0 | AN21: 0
A22: IV. Parámetros financieros | AC22: DOM | AE22: 19 | AF22: 0 | AG22: 1 | AH22: 0 | AI22: 0 | AJ22: 0 | AK22: 0 | AL22: OK | AM22: 0 | AN22: 0
AC23: DAC | AE23: 20 | AF23: 0 | AG23: 1 | AH23: 0 | AI23: 0 | AJ23: 0 | AK23: 0 | AL23: OK | AM23: 0 | AN23: 0
A24: Inflación: | B24: 0.03 | C24: Los costos variables del proyecto aumentarán anualmente con base en este valor. | AC24: PDBT
AC25: GDBT | AE25: Mes de inicio de operaciones (núm): | AG25: =IF(C20="Enero", 1, IF(C20="Febrero", 2, IF(C20="Marzo", 3, IF(C20="Abril", 4, IF(C20="Mayo", 5, IF(C20="Junio", 6, IF(C20="Julio", 7, IF(C20="Agosto", 8, IF(C20="Septiembre", 9, IF(C20="Octubre", 10, IF(C20="Noviembre", 11, IF(C20="Diciembre", 12)))))))))))) -> 1
A26: Tasa de descuento: | B26: 0.084 | C26: Se utilizará para el cálculo del Valor Presente Neto (VPN) del proyecto presentado en el informe. | AC26: GDMTO
AC27: GDMTH
A28: Depreciación: | B28: 1 | C28: Porcentaje | D28: 10 | E28: Años | F28: Porcentaje de inversión sujeto a depreciación y período en que se depreciará el activo (ver el glosario para mayor información sobre estos parámetros).
A30: ¿El proyecto será financiado por medio de un crédito? | D30: NO
A32: → | B32: Si seleccionaste "SI", agrega la siguiente información; si seleccionaste "NO" estas celdas no serán tomadas en cuenta: | AC32: Energía asignada únicamente en el año de inicio de los contratos con los beneficiarios
AC33: AÑO | AD33: Ene. | AE33: Feb. | AF33: Mar. | AG33: Abr. | AH33: May. | AI33: Jun. | AJ33: Jul. | AK33: Ago. | AL33: Sept. | AM33: Oct. | AN33: Nov. | AO33: Dic.
B34: Porcentaje de deuda (%): | D34: 0 | E34: Porcentaje de la inversión total que fue financiada mediante deuda. | AC34: Año 1 | AD34: =SUMIFS($C$58:$C$77,$AG$4:$AG$23,"<=1",$D$58:$D$77,"=1") -> 0.83 | AE34: =SUMIFS($C$58:$C$77,$AG$4:$AG$23,"<=2",$D$58:$D$77,"=1") -> 0.83 | AF34: =SUMIFS($C$58:$C$77,$AG$4:$AG$23,"<=3",$D$58:$D$77,"=1") -> 0.83 | AG34: =SUMIFS($C$58:$C$77,$AG$4:$AG$23,"<=4",$D$58:$D$77,"=1") -> 0.83 | AH34: =SUMIFS($C$58:$C$77,$AG$4:$AG$23,"<=5",$D$58:$D$77,"=1") -> 0.83 | AI34: =SUMIFS($C$58:$C$77,$AG$4:$AG$23,"<=6",$D$58:$D$77,"=1") -> 0.83 | AJ34: =SUMIFS($C$58:$C$77,$AG$4:$AG$23,"<=7",$D$58:$D$77,"=1") -> 0.83 | AK34: =SUMIFS($C$58:$C$77,$AG$4:$AG$23,"<=8",$D$58:$D$77,"=1") -> 0.83 | AL34: =SUMIFS($C$58:$C$77,$AG$4:$AG$23,"<=9",$D$58:$D$77,"=1") -> 0.83 | AM34: =SUMIFS($C$58:$C$77,$AG$4:$AG$23,"<=10",$D$58:$D$77,"=1") -> 0.83 | AN34: =SUMIFS($C$58:$C$77,$AG$4:$AG$23,"<=11",$D$58:$D$77,"=1") -> 0.83 | AO34: =SUMIFS($C$58:$C$77,$AG$4:$AG$23,"<=12",$D$58:$D$77,"=1") -> 0.83
AC35: Año 2 | AD35: =SUMIFS($C$58:$C$77,$AG$4:$AG$23,"<=1",$D$58:$D$77,"=2") -> 0 | AE35: =SUMIFS($C$58:$C$77,$AG$4:$AG$23,"<=2",$D$58:$D$77,"=2") -> 0 | AF35: =SUMIFS($C$58:$C$77,$AG$4:$AG$23,"<=3",$D$58:$D$77,"=2") -> 0 | AG35: =SUMIFS($C$58:$C$77,$AG$4:$AG$23,"<=4",$D$58:$D$77,"=2") -> 0 | AH35: =SUMIFS($C$58:$C$77,$AG$4:$AG$23,"<=5",$D$58:$D$77,"=2") -> 0 | AI35: =SUMIFS($C$58:$C$77,$AG$4:$AG$23,"<=6",$D$58:$D$77,"=2") -> 0 | AJ35: =SUMIFS($C$58:$C$77,$AG$4:$AG$23,"<=7",$D$58:$D$77,"=2") -> 0 | AK35: =SUMIFS($C$58:$C$77,$AG$4:$AG$23,"<=8",$D$58:$D$77,"=2") -> 0 | AL35: =SUMIFS($C$58:$C$77,$AG$4:$AG$23,"<=9",$D$58:$D$77,"=2") -> 0 | AM35: =SUMIFS($C$58:$C$77,$AG$4:$AG$23,"<=10",$D$58:$D$77,"=2") -> 0 | AN35: =SUMIFS($C$58:$C$77,$AG$4:$AG$23,"<=11",$D$58:$D$77,"=2") -> 0 | AO35: =SUMIFS($C$58:$C$77,$AG$4:$AG$23,"<=12",$D$58:$D$77,"=2") -> 0
B36: Tasa de interés anual (%): | D36: 0.145 | E36: Tasa de interés anual fija sobre saldos insolutos. | AC36: Año 3 | AD36: =SUMIFS($C$58:$C$77,$AG$4:$AG$23,"<=1",$D$58:$D$77,"=3") -> 0 | AE36: =SUMIFS($C$58:$C$77,$AG$4:$AG$23,"<=2",$D$58:$D$77,"=3") -> 0 | AF36: =SUMIFS($C$58:$C$77,$AG$4:$AG$23,"<=3",$D$58:$D$77,"=3") -> 0 | AG36: =SUMIFS($C$58:$C$77,$AG$4:$AG$23,"<=4",$D$58:$D$77,"=3") -> 0 | AH36: =SUMIFS($C$58:$C$77,$AG$4:$AG$23,"<=5",$D$58:$D$77,"=3") -> 0 | AI36: =SUMIFS($C$58:$C$77,$AG$4:$AG$23,"<=6",$D$58:$D$77,"=3") -> 0 | AJ36: =SUMIFS($C$58:$C$77,$AG$4:$AG$23,"<=7",$D$58:$D$77,"=3") -> 0 | AK36: =SUMIFS($C$58:$C$77,$AG$4:$AG$23,"<=8",$D$58:$D$77,"=3") -> 0 | AL36: =SUMIFS($C$58:$C$77,$AG$4:$AG$23,"<=9",$D$58:$D$77,"=3") -> 0 | AM36: =SUMIFS($C$58:$C$77,$AG$4:$AG$23,"<=10",$D$58:$D$77,"=3") -> 0 | AN36: =SUMIFS($C$58:$C$77,$AG$4:$AG$23,"<=11",$D$58:$D$77,"=3") -> 0 | AO36: =SUMIFS($C$58:$C$77,$AG$4:$AG$23,"<=12",$D$58:$D$77,"=3") -> 0
AC37: Año 4 | AD37: =SUMIFS($C$58:$C$77,$AG$4:$AG$23,"<=1",$D$58:$D$77,"=4") -> 0 | AE37: =SUMIFS($C$58:$C$77,$AG$4:$AG$23,"<=2",$D$58:$D$77,"=4") -> 0 | AF37: =SUMIFS($C$58:$C$77,$AG$4:$AG$23,"<=3",$D$58:$D$77,"=4") -> 0 | AG37: =SUMIFS($C$58:$C$77,$AG$4:$AG$23,"<=4",$D$58:$D$77,"=4") -> 0 | AH37: =SUMIFS($C$58:$C$77,$AG$4:$AG$23,"<=5",$D$58:$D$77,"=4") -> 0 | AI37: =SUMIFS($C$58:$C$77,$AG$4:$AG$23,"<=6",$D$58:$D$77,"=4") -> 0 | AJ37: =SUMIFS($C$58:$C$77,$AG$4:$AG$23,"<=7",$D$58:$D$77,"=4") -> 0 | AK37: =SUMIFS($C$58:$C$77,$AG$4:$AG$23,"<=8",$D$58:$D$77,"=4") -> 0 | AL37: =SUMIFS($C$58:$C$77,$AG$4:$AG$23,"<=9",$D$58:$D$77,"=4") -> 0 | AM37: =SUMIFS($C$58:$C$77,$AG$4:$AG$23,"<=10",$D$58:$D$77,"=4") -> 0 | AN37: =SUMIFS($C$58:$C$77,$AG$4:$AG$23,"<=11",$D$58:$D$77,"=4") -> 0 | AO37: =SUMIFS($C$58:$C$77,$AG$4:$AG$23,"<=12",$D$58:$D$77,"=4") -> 0
B38: Plazo del crédito (años): | D38: 5 | E38: Período máximo en el que debe liquidarse el crédito. | AC38: Año 5 | AD38: =SUMIFS($C$58:$C$77,$AG$4:$AG$23,"<=1",$D$58:$D$77,"=5") -> 0 | AE38: =SUMIFS($C$58:$C$77,$AG$4:$AG$23,"<=2",$D$58:$D$77,"=5") -> 0 | AF38: =SUMIFS($C$58:$C$77,$AG$4:$AG$23,"<=3",$D$58:$D$77,"=5") -> 0 | AG38: =SUMIFS($C$58:$C$77,$AG$4:$AG$23,"<=4",$D$58:$D$77,"=5") -> 0 | AH38: =SUMIFS($C$58:$C$77,$AG$4:$AG$23,"<=5",$D$58:$D$77,"=5") -> 0 | AI38: =SUMIFS($C$58:$C$77,$AG$4:$AG$23,"<=6",$D$58:$D$77,"=5") -> 0 | AJ38: =SUMIFS($C$58:$C$77,$AG$4:$AG$23,"<=7",$D$58:$D$77,"=5") -> 0 | AK38: =SUMIFS($C$58:$C$77,$AG$4:$AG$23,"<=8",$D$58:$D$77,"=5") -> 0 | AL38: =SUMIFS($C$58:$C$77,$AG$4:$AG$23,"<=9",$D$58:$D$77,"=5") -> 0 | AM38: =SUMIFS($C$58:$C$77,$AG$4:$AG$23,"<=10",$D$58:$D$77,"=5") -> 0 | AN38: =SUMIFS($C$58:$C$77,$AG$4:$AG$23,"<=11",$D$58:$D$77,"=5") -> 0 | AO38: =SUMIFS($C$58:$C$77,$AG$4:$AG$23,"<=12",$D$58:$D$77,"=5") -> 0
AC39: Año 6 | AD39: =SUMIFS($C$58:$C$77,$AG$4:$AG$23,"<=1",$D$58:$D$77,"=6") -> 0 | AE39: =SUMIFS($C$58:$C$77,$AG$4:$AG$23,"<=2",$D$58:$D$77,"=6") -> 0 | AF39: =SUMIFS($C$58:$C$77,$AG$4:$AG$23,"<=3",$D$58:$D$77,"=6") -> 0 | AG39: =SUMIFS($C$58:$C$77,$AG$4:$AG$23,"<=4",$D$58:$D$77,"=6") -> 0 | AH39: =SUMIFS($C$58:$C$77,$AG$4:$AG$23,"<=5",$D$58:$D$77,"=6") -> 0 | AI39: =SUMIFS($C$58:$C$77,$AG$4:$AG$23,"<=6",$D$58:$D$77,"=6") -> 0 | AJ39: =SUMIFS($C$58:$C$77,$AG$4:$AG$23,"<=7",$D$58:$D$77,"=6") -> 0 | AK39: =SUMIFS($C$58:$C$77,$AG$4:$AG$23,"<=8",$D$58:$D$77,"=6") -> 0 | AL39: =SUMIFS($C$58:$C$77,$AG$4:$AG$23,"<=9",$D$58:$D$77,"=6") -> 0 | AM39: =SUMIFS($C$58:$C$77,$AG$4:$AG$23,"<=10",$D$58:$D$77,"=6") -> 0 | AN39: =SUMIFS($C$58:$C$77,$AG$4:$AG$23,"<=11",$D$58:$D$77,"=6") -> 0 | AO39: =SUMIFS($C$58:$C$77,$AG$4:$AG$23,"<=12",$D$58:$D$77,"=6") -> 0
A40: V. Modelo de negocio | AC40: Año 7 | AD40: =SUMIFS($C$58:$C$77,$AG$4:$AG$23,"<=1",$D$58:$D$77,"=7") -> 0 | AE40: =SUMIFS($C$58:$C$77,$AG$4:$AG$23,"<=2",$D$58:$D$77,"=7") -> 0 | AF40: =SUMIFS($C$58:$C$77,$AG$4:$AG$23,"<=3",$D$58:$D$77,"=7") -> 0 | AG40: =SUMIFS($C$58:$C$77,$AG$4:$AG$23,"<=4",$D$58:$D$77,"=7") -> 0 | AH40: =SUMIFS($C$58:$C$77,$AG$4:$AG$23,"<=5",$D$58:$D$77,"=7") -> 0 | AI40: =SUMIFS($C$58:$C$77,$AG$4:$AG$23,"<=6",$D$58:$D$77,"=7") -> 0 | AJ40: =SUMIFS($C$58:$C$77,$AG$4:$AG$23,"<=7",$D$58:$D$77,"=7") -> 0 | AK40: =SUMIFS($C$58:$C$77,$AG$4:$AG$23,"<=8",$D$58:$D$77,"=7") -> 0 | AL40: =SUMIFS($C$58:$C$77,$AG$4:$AG$23,"<=9",$D$58:$D$77,"=7") -> 0 | AM40: =SUMIFS($C$58:$C$77,$AG$4:$AG$23,"<=10",$D$58:$D$77,"=7") -> 0 | AN40: =SUMIFS($C$58:$C$77,$AG$4:$AG$23,"<=11",$D$58:$D$77,"=7") -> 0 | AO40: =SUMIFS($C$58:$C$77,$AG$4:$AG$23,"<=12",$D$58:$D$77,"=7") -> 0
AC41: Año 8 | AD41: =SUMIFS($C$58:$C$77,$AG$4:$AG$23,"<=1",$D$58:$D$77,"=8") -> 0 | AE41: =SUMIFS($C$58:$C$77,$AG$4:$AG$23,"<=2",$D$58:$D$77,"=8") -> 0 | AF41: =SUMIFS($C$58:$C$77,$AG$4:$AG$23,"<=3",$D$58:$D$77,"=8") -> 0 | AG41: =SUMIFS($C$58:$C$77,$AG$4:$AG$23,"<=4",$D$58:$D$77,"=8") -> 0 | AH41: =SUMIFS($C$58:$C$77,$AG$4:$AG$23,"<=5",$D$58:$D$77,"=8") -> 0 | AI41: =SUMIFS($C$58:$C$77,$AG$4:$AG$23,"<=6",$D$58:$D$77,"=8") -> 0 | AJ41: =SUMIFS($C$58:$C$77,$AG$4:$AG$23,"<=7",$D$58:$D$77,"=8") -> 0 | AK41: =SUMIFS($C$58:$C$77,$AG$4:$AG$23,"<=8",$D$58:$D$77,"=8") -> 0 | AL41: =SUMIFS($C$58:$C$77,$AG$4:$AG$23,"<=9",$D$58:$D$77,"=8") -> 0 | AM41: =SUMIFS($C$58:$C$77,$AG$4:$AG$23,"<=10",$D$58:$D$77,"=8") -> 0 | AN41: =SUMIFS($C$58:$C$77,$AG$4:$AG$23,"<=11",$D$58:$D$77,"=8") -> 0 | AO41: =SUMIFS($C$58:$C$77,$AG$4:$AG$23,"<=12",$D$58:$D$77,"=8") -> 0
A42: Modelo de negocio que será utilizado en este proyecto: | E42: Autoconsumo. | AC42: Año 9 | AD42: =SUMIFS($C$58:$C$77,$AG$4:$AG$23,"<=1",$D$58:$D$77,"=9") -> 0 | AE42: =SUMIFS($C$58:$C$77,$AG$4:$AG$23,"<=2",$D$58:$D$77,"=9") -> 0 | AF42: =SUMIFS($C$58:$C$77,$AG$4:$AG$23,"<=3",$D$58:$D$77,"=9") -> 0 | AG42: =SUMIFS($C$58:$C$77,$AG$4:$AG$23,"<=4",$D$58:$D$77,"=9") -> 0 | AH42: =SUMIFS($C$58:$C$77,$AG$4:$AG$23,"<=5",$D$58:$D$77,"=9") -> 0 | AI42: =SUMIFS($C$58:$C$77,$AG$4:$AG$23,"<=6",$D$58:$D$77,"=9") -> 0 | AJ42: =SUMIFS($C$58:$C$77,$AG$4:$AG$23,"<=7",$D$58:$D$77,"=9") -> 0 | AK42: =SUMIFS($C$58:$C$77,$AG$4:$AG$23,"<=8",$D$58:$D$77,"=9") -> 0 | AL42: =SUMIFS($C$58:$C$77,$AG$4:$AG$23,"<=9",$D$58:$D$77,"=9") -> 0 | AM42: =SUMIFS($C$58:$C$77,$AG$4:$AG$23,"<=10",$D$58:$D$77,"=9") -> 0 | AN42: =SUMIFS($C$58:$C$77,$AG$4:$AG$23,"<=11",$D$58:$D$77,"=9") -> 0 | AO42: =SUMIFS($C$58:$C$77,$AG$4:$AG$23,"<=12",$D$58:$D$77,"=9") -> 0
AC43: Año 10 | AD43: =SUMIFS($C$58:$C$77,$AG$4:$AG$23,"<=1",$D$58:$D$77,"=10") -> 0 | AE43: =SUMIFS($C$58:$C$77,$AG$4:$AG$23,"<=2",$D$58:$D$77,"=10") -> 0 | AF43: =SUMIFS($C$58:$C$77,$AG$4:$AG$23,"<=3",$D$58:$D$77,"=10") -> 0 | AG43: =SUMIFS($C$58:$C$77,$AG$4:$AG$23,"<=4",$D$58:$D$77,"=10") -> 0 | AH43: =SUMIFS($C$58:$C$77,$AG$4:$AG$23,"<=5",$D$58:$D$77,"=10") -> 0 | AI43: =SUMIFS($C$58:$C$77,$AG$4:$AG$23,"<=6",$D$58:$D$77,"=10") -> 0 | AJ43: =SUMIFS($C$58:$C$77,$AG$4:$AG$23,"<=7",$D$58:$D$77,"=10") -> 0 | AK43: =SUMIFS($C$58:$C$77,$AG$4:$AG$23,"<=8",$D$58:$D$77,"=10") -> 0 | AL43: =SUMIFS($C$58:$C$77,$AG$4:$AG$23,"<=9",$D$58:$D$77,"=10") -> 0 | AM43: =SUMIFS($C$58:$C$77,$AG$4:$AG$23,"<=10",$D$58:$D$77,"=10") -> 0 | AN43: =SUMIFS($C$58:$C$77,$AG$4:$AG$23,"<=11",$D$58:$D$77,"=10") -> 0 | AO43: =SUMIFS($C$58:$C$77,$AG$4:$AG$23,"<=12",$D$58:$D$77,"=10") -> 0
C44: Precio por kilowatt-hora entregado ($/kWh) | D44: Renta mensual fija ($/mes) | F44: ¿Qué significan estos modelos de negocio? a) Tarifa variable por energía entregada: cada período de facturación el beneficiario pagará al generador exento un monto calculado sobre la energía que le fue entregada por la central y el precio por kilowatt-hora establecido al momento de firmar el contrato. b) Renta mensual fija: los beneficiarios pagarán una cuota mensual fija e independiente de la cantidad de energía que les fue entregada ese mes. Esta cuota puede variar según la categoría tarifaria a la que pertenece el beneficiario. c) Combinación de tarifa variable y renta fija: El generador exento ofrece el servicio de suministro de energía eléctrica a cambio de una renta fija mensual y un costo variable según la cantidad de energía (kilowatts-hora) entregada al beneficiario (ver opciones a y b). d) Autoconsumo: proyectos desarollados por un grupo de centros de carga que desean utilizar la energía generada por la central distribuida con el objetivo principal de reducir su tarifa eléctrica. En este caso, además de los ingresos por venta de energía no asignada y pagos de excedentes por parte de CFE, se considerará como flujos positivos a los ahorros que el proyecto otorgará a estos beneficiarios respecto a su tarifa de suministro básico. | AC44: Año 11 | AD44: =SUMIFS($C$58:$C$77,$AG$4:$AG$23,"<=1",$D$58:$D$77,"=11") -> 0 | AE44: =SUMIFS($C$58:$C$77,$AG$4:$AG$23,"<=2",$D$58:$D$77,"=11") -> 0 | AF44: =SUMIFS($C$58:$C$77,$AG$4:$AG$23,"<=3",$D$58:$D$77,"=11") -> 0 | AG44: =SUMIFS($C$58:$C$77,$AG$4:$AG$23,"<=4",$D$58:$D$77,"=11") -> 0 | AH44: =SUMIFS($C$58:$C$77,$AG$4:$AG$23,"<=5",$D$58:$D$77,"=11") -> 0 | AI44: =SUMIFS($C$58:$C$77,$AG$4:$AG$23,"<=6",$D$58:$D$77,"=11") -> 0 | AJ44: =SUMIFS($C$58:$C$77,$AG$4:$AG$23,"<=7",$D$58:$D$77,"=11") -> 0 | AK44: =SUMIFS($C$58:$C$77,$AG$4:$AG$23,"<=8",$D$58:$D$77,"=11") -> 0 | AL44: =SUMIFS($C$58:$C$77,$AG$4:$AG$23,"<=9",$D$58:$D$77,"=11") -> 0 | AM44: =SUMIFS($C$58:$C$77,$AG$4:$AG$23,"<=10",$D$58:$D$77,"=11") -> 0 | AN44: =SUMIFS($C$58:$C$77,$AG$4:$AG$23,"<=11",$D$58:$D$77,"=11") -> 0 | AO44: =SUMIFS($C$58:$C$77,$AG$4:$AG$23,"<=12",$D$58:$D$77,"=11") -> 0
A45: Tipo de beneficiario DOM | C45: 0 | D45: 0 | AC45: Año 12 | AD45: =SUMIFS($C$58:$C$77,$AG$4:$AG$23,"<=1",$D$58:$D$77,"=12") -> 0 | AE45: =SUMIFS($C$58:$C$77,$AG$4:$AG$23,"<=2",$D$58:$D$77,"=12") -> 0 | AF45: =SUMIFS($C$58:$C$77,$AG$4:$AG$23,"<=3",$D$58:$D$77,"=12") -> 0 | AG45: =SUMIFS($C$58:$C$77,$AG$4:$AG$23,"<=4",$D$58:$D$77,"=12") -> 0 | AH45: =SUMIFS($C$58:$C$77,$AG$4:$AG$23,"<=5",$D$58:$D$77,"=12") -> 0 | AI45: =SUMIFS($C$58:$C$77,$AG$4:$AG$23,"<=6",$D$58:$D$77,"=12") -> 0 | AJ45: =SUMIFS($C$58:$C$77,$AG$4:$AG$23,"<=7",$D$58:$D$77,"=12") -> 0 | AK45: =SUMIFS($C$58:$C$77,$AG$4:$AG$23,"<=8",$D$58:$D$77,"=12") -> 0 | AL45: =SUMIFS($C$58:$C$77,$AG$4:$AG$23,"<=9",$D$58:$D$77,"=12") -> 0 | AM45: =SUMIFS($C$58:$C$77,$AG$4:$AG$23,"<=10",$D$58:$D$77,"=12") -> 0 | AN45: =SUMIFS($C$58:$C$77,$AG$4:$AG$23,"<=11",$D$58:$D$77,"=12") -> 0 | AO45: =SUMIFS($C$58:$C$77,$AG$4:$AG$23,"<=12",$D$58:$D$77,"=12") -> 0
A46: Tipo de beneficiario DAC | C46: 0 | D46: 0 | AC46: Año 13 | AD46: =SUMIFS($C$58:$C$77,$AG$4:$AG$23,"<=1",$D$58:$D$77,"=13") -> 0 | AE46: =SUMIFS($C$58:$C$77,$AG$4:$AG$23,"<=2",$D$58:$D$77,"=13") -> 0 | AF46: =SUMIFS($C$58:$C$77,$AG$4:$AG$23,"<=3",$D$58:$D$77,"=13") -> 0 | AG46: =SUMIFS($C$58:$C$77,$AG$4:$AG$23,"<=4",$D$58:$D$77,"=13") -> 0 | AH46: =SUMIFS($C$58:$C$77,$AG$4:$AG$23,"<=5",$D$58:$D$77,"=13") -> 0 | AI46: =SUMIFS($C$58:$C$77,$AG$4:$AG$23,"<=6",$D$58:$D$77,"=13") -> 0 | AJ46: =SUMIFS($C$58:$C$77,$AG$4:$AG$23,"<=7",$D$58:$D$77,"=13") -> 0 | AK46: =SUMIFS($C$58:$C$77,$AG$4:$AG$23,"<=8",$D$58:$D$77,"=13") -> 0 | AL46: =SUMIFS($C$58:$C$77,$AG$4:$AG$23,"<=9",$D$58:$D$77,"=13") -> 0 | AM46: =SUMIFS($C$58:$C$77,$AG$4:$AG$23,"<=10",$D$58:$D$77,"=13") -> 0 | AN46: =SUMIFS($C$58:$C$77,$AG$4:$AG$23,"<=11",$D$58:$D$77,"=13") -> 0 | AO46: =SUMIFS($C$58:$C$77,$AG$4:$AG$23,"<=12",$D$58:$D$77,"=13") -> 0
A47: Tipo de beneficiario PDBT | C47: 0 | D47: 0 | AC47: Año 14 | AD47: =SUMIFS($C$58:$C$77,$AG$4:$AG$23,"<=1",$D$58:$D$77,"=14") -> 0 | AE47: =SUMIFS($C$58:$C$77,$AG$4:$AG$23,"<=2",$D$58:$D$77,"=14") -> 0 | AF47: =SUMIFS($C$58:$C$77,$AG$4:$AG$23,"<=3",$D$58:$D$77,"=14") -> 0 | AG47: =SUMIFS($C$58:$C$77,$AG$4:$AG$23,"<=4",$D$58:$D$77,"=14") -> 0 | AH47: =SUMIFS($C$58:$C$77,$AG$4:$AG$23,"<=5",$D$58:$D$77,"=14") -> 0 | AI47: =SUMIFS($C$58:$C$77,$AG$4:$AG$23,"<=6",$D$58:$D$77,"=14") -> 0 | AJ47: =SUMIFS($C$58:$C$77,$AG$4:$AG$23,"<=7",$D$58:$D$77,"=14") -> 0 | AK47: =SUMIFS($C$58:$C$77,$AG$4:$AG$23,"<=8",$D$58:$D$77,"=14") -> 0 | AL47: =SUMIFS($C$58:$C$77,$AG$4:$AG$23,"<=9",$D$58:$D$77,"=14") -> 0 | AM47: =SUMIFS($C$58:$C$77,$AG$4:$AG$23,"<=10",$D$58:$D$77,"=14") -> 0 | AN47: =SUMIFS($C$58:$C$77,$AG$4:$AG$23,"<=11",$D$58:$D$77,"=14") -> 0 | AO47: =SUMIFS($C$58:$C$77,$AG$4:$AG$23,"<=12",$D$58:$D$77,"=14") -> 0
A48: Tipo de beneficiario GDBT | C48: 0 | D48: 0 | AC48: Año 15 | AD48: =SUMIFS($C$58:$C$77,$AG$4:$AG$23,"<=1",$D$58:$D$77,"=15") -> 0 | AE48: =SUMIFS($C$58:$C$77,$AG$4:$AG$23,"<=2",$D$58:$D$77,"=15") -> 0 | AF48: =SUMIFS($C$58:$C$77,$AG$4:$AG$23,"<=3",$D$58:$D$77,"=15") -> 0 | AG48: =SUMIFS($C$58:$C$77,$AG$4:$AG$23,"<=4",$D$58:$D$77,"=15") -> 0 | AH48: =SUMIFS($C$58:$C$77,$AG$4:$AG$23,"<=5",$D$58:$D$77,"=15") -> 0 | AI48: =SUMIFS($C$58:$C$77,$AG$4:$AG$23,"<=6",$D$58:$D$77,"=15") -> 0 | AJ48: =SUMIFS($C$58:$C$77,$AG$4:$AG$23,"<=7",$D$58:$D$77,"=15") -> 0 | AK48: =SUMIFS($C$58:$C$77,$AG$4:$AG$23,"<=8",$D$58:$D$77,"=15") -> 0 | AL48: =SUMIFS($C$58:$C$77,$AG$4:$AG$23,"<=9",$D$58:$D$77,"=15") -> 0 | AM48: =SUMIFS($C$58:$C$77,$AG$4:$AG$23,"<=10",$D$58:$D$77,"=15") -> 0 | AN48: =SUMIFS($C$58:$C$77,$AG$4:$AG$23,"<=11",$D$58:$D$77,"=15") -> 0 | AO48: =SUMIFS($C$58:$C$77,$AG$4:$AG$23,"<=12",$D$58:$D$77,"=15") -> 0
A49: Tipo de beneficiario GDMTO | C49: 0 | D49: 0 | AC49: Año 16 | AD49: =SUMIFS($C$58:$C$77,$AG$4:$AG$23,"<=1",$D$58:$D$77,"=16") -> 0 | AE49: =SUMIFS($C$58:$C$77,$AG$4:$AG$23,"<=2",$D$58:$D$77,"=16") -> 0 | AF49: =SUMIFS($C$58:$C$77,$AG$4:$AG$23,"<=3",$D$58:$D$77,"=16") -> 0 | AG49: =SUMIFS($C$58:$C$77,$AG$4:$AG$23,"<=4",$D$58:$D$77,"=16") -> 0 | AH49: =SUMIFS($C$58:$C$77,$AG$4:$AG$23,"<=5",$D$58:$D$77,"=16") -> 0 | AI49: =SUMIFS($C$58:$C$77,$AG$4:$AG$23,"<=6",$D$58:$D$77,"=16") -> 0 | AJ49: =SUMIFS($C$58:$C$77,$AG$4:$AG$23,"<=7",$D$58:$D$77,"=16") -> 0 | AK49: =SUMIFS($C$58:$C$77,$AG$4:$AG$23,"<=8",$D$58:$D$77,"=16") -> 0 | AL49: =SUMIFS($C$58:$C$77,$AG$4:$AG$23,"<=9",$D$58:$D$77,"=16") -> 0 | AM49: =SUMIFS($C$58:$C$77,$AG$4:$AG$23,"<=10",$D$58:$D$77,"=16") -> 0 | AN49: =SUMIFS($C$58:$C$77,$AG$4:$AG$23,"<=11",$D$58:$D$77,"=16") -> 0 | AO49: =SUMIFS($C$58:$C$77,$AG$4:$AG$23,"<=12",$D$58:$D$77,"=16") -> 0
A50: Tipo de beneficiario GDMTH | C50: 0 | D50: 0 | AC50: Año 17 | AD50: =SUMIFS($C$58:$C$77,$AG$4:$AG$23,"<=1",$D$58:$D$77,"=17") -> 0 | AE50: =SUMIFS($C$58:$C$77,$AG$4:$AG$23,"<=2",$D$58:$D$77,"=17") -> 0 | AF50: =SUMIFS($C$58:$C$77,$AG$4:$AG$23,"<=3",$D$58:$D$77,"=17") -> 0 | AG50: =SUMIFS($C$58:$C$77,$AG$4:$AG$23,"<=4",$D$58:$D$77,"=17") -> 0 | AH50: =SUMIFS($C$58:$C$77,$AG$4:$AG$23,"<=5",$D$58:$D$77,"=17") -> 0 | AI50: =SUMIFS($C$58:$C$77,$AG$4:$AG$23,"<=6",$D$58:$D$77,"=17") -> 0 | AJ50: =SUMIFS($C$58:$C$77,$AG$4:$AG$23,"<=7",$D$58:$D$77,"=17") -> 0 | AK50: =SUMIFS($C$58:$C$77,$AG$4:$AG$23,"<=8",$D$58:$D$77,"=17") -> 0 | AL50: =SUMIFS($C$58:$C$77,$AG$4:$AG$23,"<=9",$D$58:$D$77,"=17") -> 0 | AM50: =SUMIFS($C$58:$C$77,$AG$4:$AG$23,"<=10",$D$58:$D$77,"=17") -> 0 | AN50: =SUMIFS($C$58:$C$77,$AG$4:$AG$23,"<=11",$D$58:$D$77,"=17") -> 0 | AO50: =SUMIFS($C$58:$C$77,$AG$4:$AG$23,"<=12",$D$58:$D$77,"=17") -> 0
AC51: Año 18 | AD51: =SUMIFS($C$58:$C$77,$AG$4:$AG$23,"<=1",$D$58:$D$77,"=18") -> 0 | AE51: =SUMIFS($C$58:$C$77,$AG$4:$AG$23,"<=2",$D$58:$D$77,"=18") -> 0 | AF51: =SUMIFS($C$58:$C$77,$AG$4:$AG$23,"<=3",$D$58:$D$77,"=18") -> 0 | AG51: =SUMIFS($C$58:$C$77,$AG$4:$AG$23,"<=4",$D$58:$D$77,"=18") -> 0 | AH51: =SUMIFS($C$58:$C$77,$AG$4:$AG$23,"<=5",$D$58:$D$77,"=18") -> 0 | AI51: =SUMIFS($C$58:$C$77,$AG$4:$AG$23,"<=6",$D$58:$D$77,"=18") -> 0 | AJ51: =SUMIFS($C$58:$C$77,$AG$4:$AG$23,"<=7",$D$58:$D$77,"=18") -> 0 | AK51: =SUMIFS($C$58:$C$77,$AG$4:$AG$23,"<=8",$D$58:$D$77,"=18") -> 0 | AL51: =SUMIFS($C$58:$C$77,$AG$4:$AG$23,"<=9",$D$58:$D$77,"=18") -> 0 | AM51: =SUMIFS($C$58:$C$77,$AG$4:$AG$23,"<=10",$D$58:$D$77,"=18") -> 0 | AN51: =SUMIFS($C$58:$C$77,$AG$4:$AG$23,"<=11",$D$58:$D$77,"=18") -> 0 | AO51: =SUMIFS($C$58:$C$77,$AG$4:$AG$23,"<=12",$D$58:$D$77,"=18") -> 0
AC52: Año 19 | AD52: =SUMIFS($C$58:$C$77,$AG$4:$AG$23,"<=1",$D$58:$D$77,"=19") -> 0 | AE52: =SUMIFS($C$58:$C$77,$AG$4:$AG$23,"<=2",$D$58:$D$77,"=19") -> 0 | AF52: =SUMIFS($C$58:$C$77,$AG$4:$AG$23,"<=3",$D$58:$D$77,"=19") -> 0 | AG52: =SUMIFS($C$58:$C$77,$AG$4:$AG$23,"<=4",$D$58:$D$77,"=19") -> 0 | AH52: =SUMIFS($C$58:$C$77,$AG$4:$AG$23,"<=5",$D$58:$D$77,"=19") -> 0 | AI52: =SUMIFS($C$58:$C$77,$AG$4:$AG$23,"<=6",$D$58:$D$77,"=19") -> 0 | AJ52: =SUMIFS($C$58:$C$77,$AG$4:$AG$23,"<=7",$D$58:$D$77,"=19") -> 0 | AK52: =SUMIFS($C$58:$C$77,$AG$4:$AG$23,"<=8",$D$58:$D$77,"=19") -> 0 | AL52: =SUMIFS($C$58:$C$77,$AG$4:$AG$23,"<=9",$D$58:$D$77,"=19") -> 0 | AM52: =SUMIFS($C$58:$C$77,$AG$4:$AG$23,"<=10",$D$58:$D$77,"=19") -> 0 | AN52: =SUMIFS($C$58:$C$77,$AG$4:$AG$23,"<=11",$D$58:$D$77,"=19") -> 0 | AO52: =SUMIFS($C$58:$C$77,$AG$4:$AG$23,"<=12",$D$58:$D$77,"=19") -> 0
A53: VI. Beneficiarios asociados al contrato de generación distribuida colectiva | AC53: Año 20 | AD53: =SUMIFS($C$58:$C$77,$AG$4:$AG$23,"<=1",$D$58:$D$77,"=20") -> 0 | AE53: =SUMIFS($C$58:$C$77,$AG$4:$AG$23,"<=2",$D$58:$D$77,"=20") -> 0 | AF53: =SUMIFS($C$58:$C$77,$AG$4:$AG$23,"<=3",$D$58:$D$77,"=20") -> 0 | AG53: =SUMIFS($C$58:$C$77,$AG$4:$AG$23,"<=4",$D$58:$D$77,"=20") -> 0 | AH53: =SUMIFS($C$58:$C$77,$AG$4:$AG$23,"<=5",$D$58:$D$77,"=20") -> 0 | AI53: =SUMIFS($C$58:$C$77,$AG$4:$AG$23,"<=6",$D$58:$D$77,"=20") -> 0 | AJ53: =SUMIFS($C$58:$C$77,$AG$4:$AG$23,"<=7",$D$58:$D$77,"=20") -> 0 | AK53: =SUMIFS($C$58:$C$77,$AG$4:$AG$23,"<=8",$D$58:$D$77,"=20") -> 0 | AL53: =SUMIFS($C$58:$C$77,$AG$4:$AG$23,"<=9",$D$58:$D$77,"=20") -> 0 | AM53: =SUMIFS($C$58:$C$77,$AG$4:$AG$23,"<=10",$D$58:$D$77,"=20") -> 0 | AN53: =SUMIFS($C$58:$C$77,$AG$4:$AG$23,"<=11",$D$58:$D$77,"=20") -> 0 | AO53: =SUMIFS($C$58:$C$77,$AG$4:$AG$23,"<=12",$D$58:$D$77,"=20") -> 0
AC54: Año 21 | AD54: =SUMIFS($C$58:$C$77,$AG$4:$AG$23,"<=1",$D$58:$D$77,"=21") -> 0 | AE54: =SUMIFS($C$58:$C$77,$AG$4:$AG$23,"<=2",$D$58:$D$77,"=21") -> 0 | AF54: =SUMIFS($C$58:$C$77,$AG$4:$AG$23,"<=3",$D$58:$D$77,"=21") -> 0 | AG54: =SUMIFS($C$58:$C$77,$AG$4:$AG$23,"<=4",$D$58:$D$77,"=21") -> 0 | AH54: =SUMIFS($C$58:$C$77,$AG$4:$AG$23,"<=5",$D$58:$D$77,"=21") -> 0 | AI54: =SUMIFS($C$58:$C$77,$AG$4:$AG$23,"<=6",$D$58:$D$77,"=21") -> 0 | AJ54: =SUMIFS($C$58:$C$77,$AG$4:$AG$23,"<=7",$D$58:$D$77,"=21") -> 0 | AK54: =SUMIFS($C$58:$C$77,$AG$4:$AG$23,"<=8",$D$58:$D$77,"=21") -> 0 | AL54: =SUMIFS($C$58:$C$77,$AG$4:$AG$23,"<=9",$D$58:$D$77,"=21") -> 0 | AM54: =SUMIFS($C$58:$C$77,$AG$4:$AG$23,"<=10",$D$58:$D$77,"=21") -> 0 | AN54: =SUMIFS($C$58:$C$77,$AG$4:$AG$23,"<=11",$D$58:$D$77,"=21") -> 0 | AO54: =SUMIFS($C$58:$C$77,$AG$4:$AG$23,"<=12",$D$58:$D$77,"=21") -> 0
B55: Información sobre los beneficiarios asociados al contrato de generación distribuida colectiva | J55: Matriz con el total de energía asignada mensualmente a todos los beneficiarios durante el período analizado.
B56: Tipo de beneficiario | C56: Energía asignada (%) | D56: Año de | E56: Mes de | F56: Duración | G56: Estatus | K56: Total de energía asignada por mes | W56: Estatus | AC56: Energía asignada únicamente en aquellos años después del año inicial y hasta el último año completo que incluya el contrato (es decir que opere de Enero a Diciembre)
D57: inicio | E57: inicio | F57: contrato (años) | J57: Año natural | K57: Ene. | L57: Feb. | M57: Mar. | N57: Abr. | O57: May. | P57: Jun. | Q57: Jul. | R57: Ago. | S57: Sept. | T57: Oct. | U57: Nov. | V57: Dic. | AC57: AÑO | AD57: Ene. | AE57: Feb. | AF57: Mar. | AG57: Abr. | AH57: May. | AI57: Jun. | AJ57: Jul. | AK57: Ago. | AL57: Sept. | AM57: Oct. | AN57: Nov. | AO57: Dic.
A58: Beneficiario 1 | B58: DAC | C58: 0.26 | D58: 1 | E58: Enero | F58: 20 | G58: =AL4 -> OK | J58: Año 1 | K58: =AD34+AD58+AD82 -> 0.83 | L58: 0.83 | M58: 0.83 | N58: 0.83 | O58: 0.83 | P58: 0.83 | Q58: 0.83 | R58: 0.83 | S58: 0.83 | T58: 0.83 | U58: 0.83 | V58: 0.83 | W58: =IF(AP130=0, "OK", "Error") -> OK | AC58: Año 1 | AD58: =SUMIFS($C$58:$C$77,$D$58:$D$77,"<1",$AN$4:$AN$23,">1") -> 0 | AE58: 0 | AF58: 0 | AG58: 0 | AH58: 0 | AI58: 0 | AJ58: 0 | AK58: 0 | AL58: 0 | AM58: 0 | AN58: 0 | AO58: 0
A59: Beneficiario 2 | B59: DAC | C59: 0.26 | D59: 1 | E59: Enero | F59: 20 | G59: =AL5 -> OK | J59: Año 2 | K59: 0.83 | L59: 0.83 | M59: 0.83 | N59: 0.83 | O59: 0.83 | P59: 0.83 | Q59: 0.83 | R59: 0.83 | S59: 0.83 | T59: 0.83 | U59: 0.83 | V59: 0.83 | W59: OK | AC59: Año 2 | AD59: =SUMIFS($C$58:$C$77,$D$58:$D$77,"<2",$AN$4:$AN$23,">2") -> 0.83 | AE59: 0.83 | AF59: 0.83 | AG59: 0.83 | AH59: 0.83 | AI59: 0.83 | AJ59: 0.83 | AK59: 0.83 | AL59: 0.83 | AM59: 0.83 | AN59: 0.83 | AO59: 0.83
A60: Beneficiario 3 | B60: DAC | C60: 0.26 | D60: 1 | E60: Enero | F60: 20 | G60: =AL6 -> OK | J60: Año 3 | K60: 0.83 | L60: 0.83 | M60: 0.83 | N60: 0.83 | O60: 0.83 | P60: 0.83 | Q60: 0.83 | R60: 0.83 | S60: 0.83 | T60: 0.83 | U60: 0.83 | V60: 0.83 | W60: OK | AC60: Año 3 | AD60: =SUMIFS($C$58:$C$77,$D$58:$D$77,"<3",$AN$4:$AN$23,">3") -> 0.83 | AE60: 0.83 | AF60: 0.83 | AG60: 0.83 | AH60: 0.83 | AI60: 0.83 | AJ60: 0.83 | AK60: 0.83 | AL60: 0.83 | AM60: 0.83 | AN60: 0.83 | AO60: 0.83
A61: Beneficiario 4 | B61: DOM | C61: 0.05 | D61: 1 | E61: Enero | F61: 20 | G61: =AL7 -> OK | J61: Año 4 | K61: =AD37+AD61+AD86 -> 0.83 | L61: 0.83 | M61: 0.83 | N61: 0.83 | O61: 0.83 | P61: 0.83 | Q61: 0.83 | R61: 0.83 | S61: 0.83 | T61: 0.83 | U61: 0.83 | V61: 0.83 | W61: OK | AC61: Año 4 | AD61: =SUMIFS($C$58:$C$77,$D$58:$D$77,"<4",$AN$4:$AN$23,">4") -> 0.83 | AE61: 0.83 | AF61: 0.83 | AG61: 0.83 | AH61: 0.83 | AI61: 0.83 | AJ61: 0.83 | AK61: 0.83 | AL61: 0.83 | AM61: 0.83 | AN61: 0.83 | AO61: 0.83
A62: Beneficiario 5 | B62: Ninguno | C62: 0 | D62: 0 | E62: Enero | F62: 0 | G62: OK | J62: Año 5 | K62: =AD38+AD62+AD91 -> 0.83 | L62: 0.83 | M62: 0.83 | N62: 0.83 | O62: 0.83 | P62: 0.83 | Q62: 0.83 | R62: 0.83 | S62: 0.83 | T62: 0.83 | U62: 0.83 | V62: 0.83 | W62: OK | AC62: Año 5 | AD62: =SUMIFS($C$58:$C$77,$D$58:$D$77,"<5",$AN$4:$AN$23,">5") -> 0.83 | AE62: 0.83 | AF62: 0.83 | AG62: 0.83 | AH62: 0.83 | AI62: 0.83 | AJ62: 0.83 | AK62: 0.83 | AL62: 0.83 | AM62: 0.83 | AN62: 0.83 | AO62: 0.83
A63: Beneficiario 6 | B63: Ninguno | C63: 0 | D63: 0 | E63: Enero | F63: 0 | G63: OK | J63: Año 6 | K63: 0.83 | L63: 0.83 | M63: 0.83 | N63: 0.83 | O63: 0.83 | P63: 0.83 | Q63: 0.83 | R63: 0.83 | S63: 0.83 | T63: 0.83 | U63: 0.83 | V63: 0.83 | W63: OK | AC63: Año 6 | AD63: =SUMIFS($C$58:$C$77,$D$58:$D$77,"<6",$AN$4:$AN$23,">6") -> 0.83 | AE63: 0.83 | AF63: 0.83 | AG63: 0.83 | AH63: 0.83 | AI63: 0.83 | AJ63: 0.83 | AK63: 0.83 | AL63: 0.83 | AM63: 0.83 | AN63: 0.83 | AO63: 0.83
A64: Beneficiario 7 | B64: Ninguno | C64: 0 | D64: 0 | E64: Enero | F64: 0 | G64: OK | J64: Año 7 | K64: 0.83 | L64: 0.83 | M64: 0.83 | N64: 0.83 | O64: 0.83 | P64: 0.83 | Q64: 0.83 | R64: 0.83 | S64: 0.83 | T64: 0.83 | U64: 0.83 | V64: 0.83 | W64: OK | AC64: Año 7 | AD64: =SUMIFS($C$58:$C$77,$D$58:$D$77,"<7",$AN$4:$AN$23,">7") -> 0.83 | AE64: 0.83 | AF64: 0.83 | AG64: 0.83 | AH64: 0.83 | AI64: 0.83 | AJ64: 0.83 | AK64: 0.83 | AL64: 0.83 | AM64: 0.83 | AN64: 0.83 | AO64: 0.83
A65: Beneficiario 8 | B65: Ninguno | C65: 0 | D65: 0 | E65: Enero | F65: 0 | G65: OK | J65: Año 8 | K65: 0.83 | L65: 0.83 | M65: 0.83 | N65: 0.83 | O65: 0.83 | P65: 0.83 | Q65: 0.83 | R65: 0.83 | S65: 0.83 | T65: 0.83 | U65: 0.83 | V65: 0.83 | W65: OK | AC65: Año 8 | AD65: =SUMIFS($C$58:$C$77,$D$58:$D$77,"<8",$AN$4:$AN$23,">8") -> 0.83 | AE65: 0.83 | AF65: 0.83 | AG65: 0.83 | AH65: 0.83 | AI65: 0.83 | AJ65: 0.83 | AK65: 0.83 | AL65: 0.83 | AM65: 0.83 | AN65: 0.83 | AO65: 0.83
A66: Beneficiario 9 | B66: Ninguno | C66: 0 | D66: 0 | E66: Enero | F66: 0 | G66: OK | J66: Año 9 | K66: =AD42+AD66+AD101 -> 0.83 | L66: 0.83 | M66: 0.83 | N66: 0.83 | O66: 0.83 | P66: 0.83 | Q66: 0.83 | R66: 0.83 | S66: 0.83 | T66: 0.83 | U66: 0.83 | V66: 0.83 | W66: OK | AC66: Año 9 | AD66: =SUMIFS($C$58:$C$77,$D$58:$D$77,"<9",$AN$4:$AN$23,">9") -> 0.83 | AE66: 0.83 | AF66: 0.83 | AG66: 0.83 | AH66: 0.83 | AI66: 0.83 | AJ66: 0.83 | AK66: 0.83 | AL66: 0.83 | AM66: 0.83 | AN66: 0.83 | AO66: 0.83
A67: Beneficiario 10 | B67: Ninguno | C67: 0 | D67: 0 | E67: Enero | F67: 0 | G67: OK | J67: Año 10 | K67: 0.83 | L67: 0.83 | M67: 0.83 | N67: 0.83 | O67: 0.83 | P67: 0.83 | Q67: 0.83 | R67: 0.83 | S67: 0.83 | T67: 0.83 | U67: 0.83 | V67: 0.83 | W67: OK | AC67: Año 10 | AD67: =SUMIFS($C$58:$C$77,$D$58:$D$77,"<10",$AN$4:$AN$23,">10") -> 0.83 | AE67: 0.83 | AF67: 0.83 | AG67: 0.83 | AH67: 0.83 | AI67: 0.83 | AJ67: 0.83 | AK67: 0.83 | AL67: 0.83 | AM67: 0.83 | AN67: 0.83 | AO67: 0.83
A68: Beneficiario 11 | B68: Ninguno | C68: 0 | D68: 0 | E68: Enero | F68: 0 | G68: OK | J68: Año 11 | K68: 0.83 | L68: 0.83 | M68: 0.83 | N68: 0.83 | O68: 0.83 | P68: 0.83 | Q68: 0.83 | R68: 0.83 | S68: 0.83 | T68: 0.83 | U68: 0.83 | V68: 0.83 | W68: OK | AC68: Año 11 | AD68: =SUMIFS($C$58:$C$77,$D$58:$D$77,"<11",$AN$4:$AN$23,">11") -> 0.83 | AE68: 0.83 | AF68: 0.83 | AG68: 0.83 | AH68: 0.83 | AI68: 0.83 | AJ68: 0.83 | AK68: 0.83 | AL68: 0.83 | AM68: 0.83 | AN68: 0.83 | AO68: 0.83
A69: Beneficiario 12 | B69: Ninguno | C69: 0 | D69: 0 | E69: Enero | F69: 0 | G69: OK | J69: Año 12 | K69: =AD45+AD69+AD105 -> 0.83 | L69: 0.83 | M69: 0.83 | N69: 0.83 | O69: 0.83 | P69: 0.83 | Q69: 0.83 | R69: 0.83 | S69: 0.83 | T69: 0.83 | U69: 0.83 | V69: 0.83 | W69: OK | AC69: Año 12 | AD69: =SUMIFS($C$58:$C$77,$D$58:$D$77,"<12",$AN$4:$AN$23,">12") -> 0.83 | AE69: 0.83 | AF69: 0.83 | AG69: 0.83 | AH69: 0.83 | AI69: 0.83 | AJ69: 0.83 | AK69: 0.83 | AL69: 0.83 | AM69: 0.83 | AN69: 0.83 | AO69: 0.83
A70: Beneficiario 13 | B70: Ninguno | C70: 0 | D70: 0 | E70: Enero | F70: 0 | G70: OK | J70: Año 13 | K70: =AD46+AD70+AD118 -> 0.83 | L70: =AE46+AE70+AE118 -> 0.83 | M70: =AF46+AF70+AF118 -> 0.83 | N70: =AG46+AG70+AG118 -> 0.83 | O70: =AH46+AH70+AH118 -> 0.83 | P70: =AI46+AI70+AI118 -> 0.83 | Q70: =AJ46+AJ70+AJ118 -> 0.83 | R70: =AK46+AK70+AK118 -> 0.83 | S70: =AL46+AL70+AL118 -> 0.83 | T70: =AM46+AM70+AM118 -> 0.83 | U70: =AN46+AN70+AN118 -> 0.83 | V70: =AO46+AO70+AO118 -> 0.83 | W70: OK | AC70: Año 13 | AD70: =SUMIFS($C$58:$C$77,$D$58:$D$77,"<13",$AN$4:$AN$23,">13") -> 0.83 | AE70: 0.83 | AF70: 0.83 | AG70: 0.83 | AH70: 0.83 | AI70: 0.83 | AJ70: 0.83 | AK70: 0.83 | AL70: 0.83 | AM70: 0.83 | AN70: 0.83 | AO70: 0.83
A71: Beneficiario 14 | B71: Ninguno | C71: 0 | D71: 0 | E71: Enero | F71: 0 | G71: OK | J71: Año 14 | K71: 0.83 | L71: 0.83 | M71: 0.83 | N71: 0.83 | O71: 0.83 | P71: 0.83 | Q71: 0.83 | R71: 0.83 | S71: 0.83 | T71: 0.83 | U71: 0.83 | V71: 0.83 | W71: OK | AC71: Año 14 | AD71: =SUMIFS($C$58:$C$77,$D$58:$D$77,"<14",$AN$4:$AN$23,">14") -> 0.83 | AE71: 0.83 | AF71: 0.83 | AG71: 0.83 | AH71: 0.83 | AI71: 0.83 | AJ71: 0.83 | AK71: 0.83 | AL71: 0.83 | AM71: 0.83 | AN71: 0.83 | AO71: 0.83
A72: Beneficiario 15 | B72: Ninguno | C72: 0 | D72: 0 | E72: Enero | F72: 0 | G72: OK | J72: Año 15 | K72: 0.83 | L72: 0.83 | M72: 0.83 | N72: 0.83 | O72: 0.83 | P72: 0.83 | Q72: 0.83 | R72: 0.83 | S72: 0.83 | T72: 0.83 | U72: 0.83 | V72: 0.83 | W72: OK | AC72: Año 15 | AD72: =SUMIFS($C$58:$C$77,$D$58:$D$77,"<15",$AN$4:$AN$23,">15") -> 0.83 | AE72: 0.83 | AF72: 0.83 | AG72: 0.83 | AH72: 0.83 | AI72: 0.83 | AJ72: 0.83 | AK72: 0.83 | AL72: 0.83 | AM72: 0.83 | AN72: 0.83 | AO72: 0.83
A73: Beneficiario 16 | B73: Ninguno | C73: 0 | D73: 0 | E73: Enero | F73: 0 | G73: OK | J73: Año 16 | K73: 0.83 | L73: 0.83 | M73: 0.83 | N73: 0.83 | O73: 0.83 | P73: 0.83 | Q73: 0.83 | R73: 0.83 | S73: 0.83 | T73: 0.83 | U73: 0.83 | V73: 0.83 | W73: OK | AC73: Año 16 | AD73: =SUMIFS($C$58:$C$77,$D$58:$D$77,"<16",$AN$4:$AN$23,">16") -> 0.83 | AE73: 0.83 | AF73: 0.83 | AG73: 0.83 | AH73: 0.83 | AI73: 0.83 | AJ73: 0.83 | AK73: 0.83 | AL73: 0.83 | AM73: 0.83 | AN73: 0.83 | AO73: 0.83
A74: Beneficiario 17 | B74: Ninguno | C74: 0 | D74: 0 | E74: Enero | F74: 0 | G74: OK | J74: Año 17 | K74: 0.83 | L74: 0.83 | M74: 0.83 | N74: 0.83 | O74: 0.83 | P74: 0.83 | Q74: 0.83 | R74: 0.83 | S74: 0.83 | T74: 0.83 | U74: 0.83 | V74: 0.83 | W74: OK | AC74: Año 17 | AD74: =SUMIFS($C$58:$C$77,$D$58:$D$77,"<17",$AN$4:$AN$23,">17") -> 0.83 | AE74: 0.83 | AF74: 0.83 | AG74: 0.83 | AH74: 0.83 | AI74: 0.83 | AJ74: 0.83 | AK74: 0.83 | AL74: 0.83 | AM74: 0.83 | AN74: 0.83 | AO74: 0.83
A75: Beneficiario 18 | B75: Ninguno | C75: 0 | D75: 0 | E75: Enero | F75: 0 | G75: OK | J75: Año 18 | K75: 0.83 | L75: 0.83 | M75: 0.83 | N75: 0.83 | O75: 0.83 | P75: 0.83 | Q75: 0.83 | R75: 0.83 | S75: 0.83 | T75: 0.83 | U75: 0.83 | V75: 0.83 | W75: OK | AC75: Año 18 | AD75: =SUMIFS($C$58:$C$77,$D$58:$D$77,"<18",$AN$4:$AN$23,">18") -> 0.83 | AE75: 0.83 | AF75: 0.83 | AG75: 0.83 | AH75: 0.83 | AI75: 0.83 | AJ75: 0.83 | AK75: 0.83 | AL75: 0.83 | AM75: 0.83 | AN75: 0.83 | AO75: 0.83
A76: Beneficiario 19 | B76: Ninguno | C76: 0 | D76: 0 | E76: Enero | F76: 0 | G76: OK | J76: Año 19 | K76: 0.83 | L76: 0.83 | M76: 0.83 | N76: 0.83 | O76: 0.83 | P76: 0.83 | Q76: 0.83 | R76: 0.83 | S76: 0.83 | T76: 0.83 | U76: 0.83 | V76: 0.83 | W76: OK | AC76: Año 19 | AD76: =SUMIFS($C$58:$C$77,$D$58:$D$77,"<19",$AN$4:$AN$23,">19") -> 0.83 | AE76: 0.83 | AF76: 0.83 | AG76: 0.83 | AH76: 0.83 | AI76: 0.83 | AJ76: 0.83 | AK76: 0.83 | AL76: 0.83 | AM76: 0.83 | AN76: 0.83 | AO76: 0.83
A77: Beneficiario 20 | B77: Ninguno | C77: 0 | D77: 0 | E77: Enero | F77: 1 | G77: OK | J77: Año 20 | K77: 0.83 | L77: 0.83 | M77: 0.83 | N77: 0.83 | O77: 0.83 | P77: 0.83 | Q77: 0.83 | R77: 0.83 | S77: 0.83 | T77: 0.83 | U77: 0.83 | V77: 0.83 | W77: OK | AC77: Año 20 | AD77: =SUMIFS($C$58:$C$77,$D$58:$D$77,"<20",$AN$4:$AN$23,">20") -> 0.83 | AE77: 0.83 | AF77: 0.83 | AG77: 0.83 | AH77: 0.83 | AI77: 0.83 | AJ77: 0.83 | AK77: 0.83 | AL77: 0.83 | AM77: 0.83 | AN77: 0.83 | AO77: 0.83
J78: Año 21 | K78: 0 | L78: 0 | M78: 0 | N78: 0 | O78: 0 | P78: 0 | Q78: 0 | R78: 0 | S78: 0 | T78: 0 | U78: 0 | V78: 0 | W78: OK | AC78: Año 21 | AD78: =SUMIFS($C$58:$C$77,$D$58:$D$77,"<21",$AN$4:$AN$23,">21") -> 0 | AE78: 0 | AF78: 0 | AG78: 0 | AH78: 0 | AI78: 0 | AJ78: 0 | AK78: 0 | AL78: 0 | AM78: 0 | AN78: 0 | AO78: 0
A80: VII. Glosario | AC80: Energía asignada únicamente en el último año de los contratos con los beneficiarios, cuando estos inician en un mes que no es Enero.
AC81: AÑO | AD81: Ene. | AE81: Feb. | AF81: Mar. | AG81: Abr. | AH81: May. | AI81: Jun. | AJ81: Jul. | AK81: Ago. | AL81: Sept. | AM81: Oct. | AN81: Nov. | AO81: Dic.
AC82: Año 1 | AD82: =SUMIFS($C$58:$C$77,$AG$4:$AG$23,">1",$AN$4:$AN$23,"=1") -> 0 | AE82: =SUMIFS($C$58:$C$77,$AG$4:$AG$23,">2",$AN$4:$AN$23,"=1") -> 0 | AF82: =SUMIFS($C$58:$C$77,$AG$4:$AG$23,">3",$AN$4:$AN$23,"=1") -> 0 | AG82: =SUMIFS($C$58:$C$77,$AG$4:$AG$23,">4",$AN$4:$AN$23,"=1") -> 0 | AH82: =SUMIFS($C$58:$C$77,$AG$4:$AG$23,">5",$AN$4:$AN$23,"=1") -> 0 | AI82: =SUMIFS($C$58:$C$77,$AG$4:$AG$23,">6",$AN$4:$AN$23,"=1") -> 0 | AJ82: =SUMIFS($C$58:$C$77,$AG$4:$AG$23,">7",$AN$4:$AN$23,"=1") -> 0 | AK82: =SUMIFS($C$58:$C$77,$AG$4:$AG$23,">8",$AN$4:$AN$23,"=1") -> 0 | AL82: =SUMIFS($C$58:$C$77,$AG$4:$AG$23,">9",$AN$4:$AN$23,"=1") -> 0 | AM82: =SUMIFS($C$58:$C$77,$AG$4:$AG$23,">10",$AN$4:$AN$23,"=1") -> 0 | AN82: =SUMIFS($C$58:$C$77,$AG$4:$AG$23,">11",$AN$4:$AN$23,"=1") -> 0 | AO82: =SUMIFS($C$58:$C$77,$AG$4:$AG$23,">12",$AN$4:$AN$23,"=1") -> 0
A83: Año de inicio: Número de año en que inicia el contrato entre el generador exento y el beneficiario; minímo 1 y máximo 20. | AC83: Año 2 | AD83: =SUMIFS($C$58:$C$77,$AG$4:$AG$23,">1",$AN$4:$AN$23,"=2") -> 0 | AE83: =SUMIFS($C$58:$C$77,$AG$4:$AG$23,">2",$AN$4:$AN$23,"=2") -> 0 | AF83: =SUMIFS($C$58:$C$77,$AG$4:$AG$23,">3",$AN$4:$AN$23,"=2") -> 0 | AG83: =SUMIFS($C$58:$C$77,$AG$4:$AG$23,">4",$AN$4:$AN$23,"=2") -> 0 | AH83: =SUMIFS($C$58:$C$77,$AG$4:$AG$23,">5",$AN$4:$AN$23,"=2") -> 0 | AI83: =SUMIFS($C$58:$C$77,$AG$4:$AG$23,">6",$AN$4:$AN$23,"=2") -> 0 | AJ83: =SUMIFS($C$58:$C$77,$AG$4:$AG$23,">7",$AN$4:$AN$23,"=2") -> 0 | AK83: =SUMIFS($C$58:$C$77,$AG$4:$AG$23,">8",$AN$4:$AN$23,"=2") -> 0 | AL83: =SUMIFS($C$58:$C$77,$AG$4:$AG$23,">9",$AN$4:$AN$23,"=2") -> 0 | AM83: =SUMIFS($C$58:$C$77,$AG$4:$AG$23,">10",$AN$4:$AN$23,"=2") -> 0 | AN83: =SUMIFS($C$58:$C$77,$AG$4:$AG$23,">11",$AN$4:$AN$23,"=2") -> 0 | AO83: =SUMIFS($C$58:$C$77,$AG$4:$AG$23,">12",$AN$4:$AN$23,"=2") -> 0
A84: Año de operación u operativo: se ajustará dependiendo del mes en que inicie operaciones la central. Por ejemplo, si la central comienza a operar en marzo, el primero año de operación comprenderá desde la primera hora del 1º de marzo, hasta la última hora del 30 de abril. El período de 20 años a evaluar comprenderá 20 años operativos.
A85: Año natural: período de tiempo que comprende desde la primera hora del 1º de enero hasta la última hora del 31 de diciembre.
A86: Beneficiario: consumidor de suministro básico que ha sido asociado al contrato de generación distribuida colectivo y asignado un porcentaje de la energía generada por la central. | AC86: Año 4 | AD86: =SUMIFS($C$58:$C$77,$AG$4:$AG$23,">1",$AN$4:$AN$23,"=4") -> 0 | AE86: =SUMIFS($C$58:$C$77,$AG$4:$AG$23,">2",$AN$4:$AN$23,"=4") -> 0 | AF86: =SUMIFS($C$58:$C$77,$AG$4:$AG$23,">3",$AN$4:$AN$23,"=4") -> 0 | AG86: =SUMIFS($C$58:$C$77,$AG$4:$AG$23,">4",$AN$4:$AN$23,"=4") -> 0 | AH86: =SUMIFS($C$58:$C$77,$AG$4:$AG$23,">5",$AN$4:$AN$23,"=4") -> 0 | AI86: =SUMIFS($C$58:$C$77,$AG$4:$AG$23,">6",$AN$4:$AN$23,"=4") -> 0 | AJ86: =SUMIFS($C$58:$C$77,$AG$4:$AG$23,">7",$AN$4:$AN$23,"=4") -> 0 | AK86: =SUMIFS($C$58:$C$77,$AG$4:$AG$23,">8",$AN$4:$AN$23,"=4") -> 0 | AL86: =SUMIFS($C$58:$C$77,$AG$4:$AG$23,">9",$AN$4:$AN$23,"=4") -> 0 | AM86: =SUMIFS($C$58:$C$77,$AG$4:$AG$23,">10",$AN$4:$AN$23,"=4") -> 0 | AN86: =SUMIFS($C$58:$C$77,$AG$4:$AG$23,">11",$AN$4:$AN$23,"=4") -> 0 | AO86: =SUMIFS($C$58:$C$77,$AG$4:$AG$23,">12",$AN$4:$AN$23,"=4") -> 0
A87: Depreciación: pérdida de valor de un bien como consecuencia de su desgaste con el paso del tiempo. El usuario puede indicar el porcentaje del costo total del activo de generación que será depreciado así como el período en el que será aplicada la depreciación en línea recta. La Ley del Impuesto sobre la Renta (artículo 34, fracción XIII) permite depreciar hasta el 100% de los activos de energía renovable desde el primer año y hasta por un período de diez años. Esto siempre que el activo permanezca en operación por al menos 5 años.
A88: Duración de contrato: número de años en los que estará vigente el contrato. Estos se contarán a partir del mes y año en el que inicie el contrato del beneficiario. Es posible que la duración del contrato se extienda más allá de los 20 años evaluados en este modelo, sin embargo los ingresos obtenidos más allá del año 20 de operación no serán tomados en cuenta.
A89: Energía asignada: porcentaje de la energía generada por la central distribuida (kilowatts-hora) que le corresponde a cada beneficiario y será utilizada para calcular tanto los pagos que deberá hacer al generador exento como los ahorros proyectados en su factura eléctrica de suministro básico.
A90: Estatus: "OK" indica que todos los datos necesarios han sido introducidos correctamente mientras que "Error" marca que existe alguna inconsistencia en la información y debe ser revisada. Es posible que el programa realice la evaluación aún con errores pero los resultados no serían fiables.
A91: Inflación: aumento generalizado y sostenido de los precios y servicios en un país durante un tiempo sostenido, en este caso, anual. | AC91: Año 5 | AD91: =SUMIFS($C$58:$C$77,$AG$4:$AG$23,">1",$AN$4:$AN$23,"=5") -> 0 | AE91: =SUMIFS($C$58:$C$77,$AG$4:$AG$23,">2",$AN$4:$AN$23,"=5") -> 0 | AF91: =SUMIFS($C$58:$C$77,$AG$4:$AG$23,">3",$AN$4:$AN$23,"=5") -> 0 | AG91: =SUMIFS($C$58:$C$77,$AG$4:$AG$23,">4",$AN$4:$AN$23,"=5") -> 0 | AH91: =SUMIFS($C$58:$C$77,$AG$4:$AG$23,">5",$AN$4:$AN$23,"=5") -> 0 | AI91: =SUMIFS($C$58:$C$77,$AG$4:$AG$23,">6",$AN$4:$AN$23,"=5") -> 0 | AJ91: =SUMIFS($C$58:$C$77,$AG$4:$AG$23,">7",$AN$4:$AN$23,"=5") -> 0 | AK91: =SUMIFS($C$58:$C$77,$AG$4:$AG$23,">8",$AN$4:$AN$23,"=5") -> 0 | AL91: =SUMIFS($C$58:$C$77,$AG$4:$AG$23,">9",$AN$4:$AN$23,"=5") -> 0 | AM91: =SUMIFS($C$58:$C$77,$AG$4:$AG$23,">10",$AN$4:$AN$23,"=5") -> 0 | AN91: =SUMIFS($C$58:$C$77,$AG$4:$AG$23,">11",$AN$4:$AN$23,"=5") -> 0 | AO91: =SUMIFS($C$58:$C$77,$AG$4:$AG$23,">12",$AN$4:$AN$23,"=5") -> 0
A92: Mes de inicio: Mes en el que se da por iniciado el contrato entre el generador exento y el beneficiario. El modelo considera que el beneficiario comenzará a recibir energía del generador exento a partir de este mes. En el año 1 este no podrá ser anterior al mes de inicio de operaciones. | AC92: Año 6 | AD92: =SUMIFS($C$58:$C$77,$AG$4:$AG$23,">1",$AN$4:$AN$23,"=6") -> 0 | AE92: =SUMIFS($C$58:$C$77,$AG$4:$AG$23,">2",$AN$4:$AN$23,"=6") -> 0 | AF92: =SUMIFS($C$58:$C$77,$AG$4:$AG$23,">3",$AN$4:$AN$23,"=6") -> 0 | AG92: =SUMIFS($C$58:$C$77,$AG$4:$AG$23,">4",$AN$4:$AN$23,"=6") -> 0 | AH92: =SUMIFS($C$58:$C$77,$AG$4:$AG$23,">5",$AN$4:$AN$23,"=6") -> 0 | AI92: =SUMIFS($C$58:$C$77,$AG$4:$AG$23,">6",$AN$4:$AN$23,"=6") -> 0 | AJ92: =SUMIFS($C$58:$C$77,$AG$4:$AG$23,">7",$AN$4:$AN$23,"=6") -> 0 | AK92: =SUMIFS($C$58:$C$77,$AG$4:$AG$23,">8",$AN$4:$AN$23,"=6") -> 0 | AL92: =SUMIFS($C$58:$C$77,$AG$4:$AG$23,">9",$AN$4:$AN$23,"=6") -> 0 | AM92: =SUMIFS($C$58:$C$77,$AG$4:$AG$23,">10",$AN$4:$AN$23,"=6") -> 0 | AN92: =SUMIFS($C$58:$C$77,$AG$4:$AG$23,">11",$AN$4:$AN$23,"=6") -> 0 | AO92: =SUMIFS($C$58:$C$77,$AG$4:$AG$23,">12",$AN$4:$AN$23,"=6") -> 0
AC93: Año 7 | AD93: =SUMIFS($C$58:$C$77,$AG$4:$AG$23,">1",$AN$4:$AN$23,"=7") -> 0 | AE93: =SUMIFS($C$58:$C$77,$AG$4:$AG$23,">2",$AN$4:$AN$23,"=7") -> 0 | AF93: =SUMIFS($C$58:$C$77,$AG$4:$AG$23,">3",$AN$4:$AN$23,"=7") -> 0 | AG93: =SUMIFS($C$58:$C$77,$AG$4:$AG$23,">4",$AN$4:$AN$23,"=7") -> 0 | AH93: =SUMIFS($C$58:$C$77,$AG$4:$AG$23,">5",$AN$4:$AN$23,"=7") -> 0 | AI93: =SUMIFS($C$58:$C$77,$AG$4:$AG$23,">6",$AN$4:$AN$23,"=7") -> 0 | AJ93: =SUMIFS($C$58:$C$77,$AG$4:$AG$23,">7",$AN$4:$AN$23,"=7") -> 0 | AK93: =SUMIFS($C$58:$C$77,$AG$4:$AG$23,">8",$AN$4:$AN$23,"=7") -> 0 | AL93: =SUMIFS($C$58:$C$77,$AG$4:$AG$23,">9",$AN$4:$AN$23,"=7") -> 0 | AM93: =SUMIFS($C$58:$C$77,$AG$4:$AG$23,">10",$AN$4:$AN$23,"=7") -> 0 | AN93: =SUMIFS($C$58:$C$77,$AG$4:$AG$23,">11",$AN$4:$AN$23,"=7") -> 0 | AO93: =SUMIFS($C$58:$C$77,$AG$4:$AG$23,">12",$AN$4:$AN$23,"=7") -> 0
A94: Mes de inicio de operaciones : Mes en el que iniciará a operar la central de generación distribuida. A partir de este mes comenzará a contabilizarse el período de 20 años a evaluar. | AC94: Año 8 | AD94: =SUMIFS($C$58:$C$77,$AG$4:$AG$23,">1",$AN$4:$AN$23,"=8") -> 0 | AE94: =SUMIFS($C$58:$C$77,$AG$4:$AG$23,">2",$AN$4:$AN$23,"=8") -> 0 | AF94: =SUMIFS($C$58:$C$77,$AG$4:$AG$23,">3",$AN$4:$AN$23,"=8") -> 0 | AG94: =SUMIFS($C$58:$C$77,$AG$4:$AG$23,">4",$AN$4:$AN$23,"=8") -> 0 | AH94: =SUMIFS($C$58:$C$77,$AG$4:$AG$23,">5",$AN$4:$AN$23,"=8") -> 0 | AI94: =SUMIFS($C$58:$C$77,$AG$4:$AG$23,">6",$AN$4:$AN$23,"=8") -> 0 | AJ94: =SUMIFS($C$58:$C$77,$AG$4:$AG$23,">7",$AN$4:$AN$23,"=8") -> 0 | AK94: =SUMIFS($C$58:$C$77,$AG$4:$AG$23,">8",$AN$4:$AN$23,"=8") -> 0 | AL94: =SUMIFS($C$58:$C$77,$AG$4:$AG$23,">9",$AN$4:$AN$23,"=8") -> 0 | AM94: =SUMIFS($C$58:$C$77,$AG$4:$AG$23,">10",$AN$4:$AN$23,"=8") -> 0 | AN94: =SUMIFS($C$58:$C$77,$AG$4:$AG$23,">11",$AN$4:$AN$23,"=8") -> 0 | AO94: =SUMIFS($C$58:$C$77,$AG$4:$AG$23,">12",$AN$4:$AN$23,"=8") -> 0
A95: Plazo del crédito: período de tiempo en el que deberá devolverse el préstamo a la institución financiera, con intereses.
A96: Porcentaje de deuda: porcentaje de la inversión inicial del proyecto que será financiada mediante un crédito con intereses y no con recursos propios.
A97: Precio por kWh entregado: precio por kilowatt-hora que el generador exento ofrece a cada beneficiario. Este deberá expresarse en pesos mexicanos. Es posible que el precio pactado sea cero.
A98: Renta mensual fija: monto fijo que los beneficiarios pagarán mensualmente al generador exento por el suministro de energía eléctrica, independientemente de los kilowatt-hora entregados. | AC98: Año 12 | AD98: =SUMIFS($C$58:$C$77,$AG$4:$AG$23,">1",$AN$4:$AN$23,"=12") -> 0 | AE98: =SUMIFS($C$58:$C$77,$AG$4:$AG$23,">2",$AN$4:$AN$23,"=12") -> 0 | AF98: =SUMIFS($C$58:$C$77,$AG$4:$AG$23,">3",$AN$4:$AN$23,"=12") -> 0 | AG98: =SUMIFS($C$58:$C$77,$AG$4:$AG$23,">4",$AN$4:$AN$23,"=12") -> 0 | AH98: =SUMIFS($C$58:$C$77,$AG$4:$AG$23,">5",$AN$4:$AN$23,"=12") -> 0 | AI98: =SUMIFS($C$58:$C$77,$AG$4:$AG$23,">6",$AN$4:$AN$23,"=12") -> 0 | AJ98: =SUMIFS($C$58:$C$77,$AG$4:$AG$23,">7",$AN$4:$AN$23,"=12") -> 0 | AK98: =SUMIFS($C$58:$C$77,$AG$4:$AG$23,">8",$AN$4:$AN$23,"=12") -> 0 | AL98: =SUMIFS($C$58:$C$77,$AG$4:$AG$23,">9",$AN$4:$AN$23,"=12") -> 0 | AM98: =SUMIFS($C$58:$C$77,$AG$4:$AG$23,">10",$AN$4:$AN$23,"=12") -> 0 | AN98: =SUMIFS($C$58:$C$77,$AG$4:$AG$23,">11",$AN$4:$AN$23,"=12") -> 0 | AO98: =SUMIFS($C$58:$C$77,$AG$4:$AG$23,">12",$AN$4:$AN$23,"=12") -> 0
A99: Tasa de descuento: Costo de capital que se aplicará para determinar el valor presente neto de un pago futuro. Como ejemplo, puede utilizarse la Tasa de Interés Interbancario que publica el Banco de México periódicamente.
A100: Tasa de interés anual: porcentaje que la institución financiera cobrará anualmente al beneficiario sobre los saldos insolutos del crédito otorgado.
A101: Tipo de beneficiario: Clasificación del beneficiario según la categoría tarifaria de suministro básico a la que pertenece. Para proyectos en baja tensión, el modelo considera como potenciales beneficiarios a los consumidores domésticos de bajo consumo (DOM), domésticos de alto consumo (DAC), no domésticos con pequeña demanda (PDBT), no domésticos con gran demanda (GDBT) y riego agrícola en baja tensión (RABT). Para mayor información de estas categorías, ir a la pestaña 3. | AC101: Año 9 | AD101: =SUMIFS($C$58:$C$77,$AG$4:$AG$23,">1",$AN$4:$AN$23,"=9") -> 0 | AE101: =SUMIFS($C$58:$C$77,$AG$4:$AG$23,">2",$AN$4:$AN$23,"=9") -> 0 | AF101: =SUMIFS($C$58:$C$77,$AG$4:$AG$23,">3",$AN$4:$AN$23,"=9") -> 0 | AG101: =SUMIFS($C$58:$C$77,$AG$4:$AG$23,">4",$AN$4:$AN$23,"=9") -> 0 | AH101: =SUMIFS($C$58:$C$77,$AG$4:$AG$23,">5",$AN$4:$AN$23,"=9") -> 0 | AI101: =SUMIFS($C$58:$C$77,$AG$4:$AG$23,">6",$AN$4:$AN$23,"=9") -> 0 | AJ101: =SUMIFS($C$58:$C$77,$AG$4:$AG$23,">7",$AN$4:$AN$23,"=9") -> 0 | AK101: =SUMIFS($C$58:$C$77,$AG$4:$AG$23,">8",$AN$4:$AN$23,"=9") -> 0 | AL101: =SUMIFS($C$58:$C$77,$AG$4:$AG$23,">9",$AN$4:$AN$23,"=9") -> 0 | AM101: =SUMIFS($C$58:$C$77,$AG$4:$AG$23,">10",$AN$4:$AN$23,"=9") -> 0 | AN101: =SUMIFS($C$58:$C$77,$AG$4:$AG$23,">11",$AN$4:$AN$23,"=9") -> 0 | AO101: =SUMIFS($C$58:$C$77,$AG$4:$AG$23,">12",$AN$4:$AN$23,"=9") -> 0
AC102: Año 10 | AD102: =SUMIFS($C$58:$C$77,$AG$4:$AG$23,">1",$AN$4:$AN$23,"=10") -> 0 | AE102: =SUMIFS($C$58:$C$77,$AG$4:$AG$23,">2",$AN$4:$AN$23,"=10") -> 0 | AF102: =SUMIFS($C$58:$C$77,$AG$4:$AG$23,">3",$AN$4:$AN$23,"=10") -> 0 | AG102: =SUMIFS($C$58:$C$77,$AG$4:$AG$23,">4",$AN$4:$AN$23,"=10") -> 0 | AH102: =SUMIFS($C$58:$C$77,$AG$4:$AG$23,">5",$AN$4:$AN$23,"=10") -> 0 | AI102: =SUMIFS($C$58:$C$77,$AG$4:$AG$23,">6",$AN$4:$AN$23,"=10") -> 0 | AJ102: =SUMIFS($C$58:$C$77,$AG$4:$AG$23,">7",$AN$4:$AN$23,"=10") -> 0 | AK102: =SUMIFS($C$58:$C$77,$AG$4:$AG$23,">8",$AN$4:$AN$23,"=10") -> 0 | AL102: =SUMIFS($C$58:$C$77,$AG$4:$AG$23,">9",$AN$4:$AN$23,"=10") -> 0 | AM102: =SUMIFS($C$58:$C$77,$AG$4:$AG$23,">10",$AN$4:$AN$23,"=10") -> 0 | AN102: =SUMIFS($C$58:$C$77,$AG$4:$AG$23,">11",$AN$4:$AN$23,"=10") -> 0 | AO102: =SUMIFS($C$58:$C$77,$AG$4:$AG$23,">12",$AN$4:$AN$23,"=10") -> 0
A103: Total de energía asignada: suma de todos los porcentajes de energía asignada a cada uno de los beneficiarios asociados a la central en cada mes y año de operación. En ningún momento este debe exceder 100%. | AC103: Año 11 | AD103: =SUMIFS($C$58:$C$77,$AG$4:$AG$23,">1",$AN$4:$AN$23,"=11") -> 0 | AE103: =SUMIFS($C$58:$C$77,$AG$4:$AG$23,">2",$AN$4:$AN$23,"=11") -> 0 | AF103: =SUMIFS($C$58:$C$77,$AG$4:$AG$23,">3",$AN$4:$AN$23,"=11") -> 0 | AG103: =SUMIFS($C$58:$C$77,$AG$4:$AG$23,">4",$AN$4:$AN$23,"=11") -> 0 | AH103: =SUMIFS($C$58:$C$77,$AG$4:$AG$23,">5",$AN$4:$AN$23,"=11") -> 0 | AI103: =SUMIFS($C$58:$C$77,$AG$4:$AG$23,">6",$AN$4:$AN$23,"=11") -> 0 | AJ103: =SUMIFS($C$58:$C$77,$AG$4:$AG$23,">7",$AN$4:$AN$23,"=11") -> 0 | AK103: =SUMIFS($C$58:$C$77,$AG$4:$AG$23,">8",$AN$4:$AN$23,"=11") -> 0 | AL103: =SUMIFS($C$58:$C$77,$AG$4:$AG$23,">9",$AN$4:$AN$23,"=11") -> 0 | AM103: =SUMIFS($C$58:$C$77,$AG$4:$AG$23,">10",$AN$4:$AN$23,"=11") -> 0 | AN103: =SUMIFS($C$58:$C$77,$AG$4:$AG$23,">11",$AN$4:$AN$23,"=11") -> 0 | AO103: =SUMIFS($C$58:$C$77,$AG$4:$AG$23,">12",$AN$4:$AN$23,"=11") -> 0
A105: …............................................................................................................................................................................................................................................................................................................................................................................................................................................ | AC105: Año 12 | AD105: =SUMIFS($C$58:$C$77,$AG$4:$AG$23,">1",$AN$4:$AN$23,"=12") -> 0 | AE105: =SUMIFS($C$58:$C$77,$AG$4:$AG$23,">2",$AN$4:$AN$23,"=12") -> 0 | AF105: =SUMIFS($C$58:$C$77,$AG$4:$AG$23,">3",$AN$4:$AN$23,"=12") -> 0 | AG105: =SUMIFS($C$58:$C$77,$AG$4:$AG$23,">4",$AN$4:$AN$23,"=12") -> 0 | AH105: =SUMIFS($C$58:$C$77,$AG$4:$AG$23,">5",$AN$4:$AN$23,"=12") -> 0 | AI105: =SUMIFS($C$58:$C$77,$AG$4:$AG$23,">6",$AN$4:$AN$23,"=12") -> 0 | AJ105: =SUMIFS($C$58:$C$77,$AG$4:$AG$23,">7",$AN$4:$AN$23,"=12") -> 0 | AK105: =SUMIFS($C$58:$C$77,$AG$4:$AG$23,">8",$AN$4:$AN$23,"=12") -> 0 | AL105: =SUMIFS($C$58:$C$77,$AG$4:$AG$23,">9",$AN$4:$AN$23,"=12") -> 0 | AM105: =SUMIFS($C$58:$C$77,$AG$4:$AG$23,">10",$AN$4:$AN$23,"=12") -> 0 | AN105: =SUMIFS($C$58:$C$77,$AG$4:$AG$23,">11",$AN$4:$AN$23,"=12") -> 0 | AO105: =SUMIFS($C$58:$C$77,$AG$4:$AG$23,">12",$AN$4:$AN$23,"=12") -> 0
AC106: Año 17 | AD106: =SUMIFS($C$58:$C$77,$AG$4:$AG$23,">1",$AN$4:$AN$23,"=17") -> 0 | AE106: =SUMIFS($C$58:$C$77,$AG$4:$AG$23,">2",$AN$4:$AN$23,"=17") -> 0 | AF106: =SUMIFS($C$58:$C$77,$AG$4:$AG$23,">3",$AN$4:$AN$23,"=17") -> 0 | AG106: =SUMIFS($C$58:$C$77,$AG$4:$AG$23,">4",$AN$4:$AN$23,"=17") -> 0 | AH106: =SUMIFS($C$58:$C$77,$AG$4:$AG$23,">5",$AN$4:$AN$23,"=17") -> 0 | AI106: =SUMIFS($C$58:$C$77,$AG$4:$AG$23,">6",$AN$4:$AN$23,"=17") -> 0 | AJ106: =SUMIFS($C$58:$C$77,$AG$4:$AG$23,">7",$AN$4:$AN$23,"=17") -> 0 | AK106: =SUMIFS($C$58:$C$77,$AG$4:$AG$23,">8",$AN$4:$AN$23,"=17") -> 0 | AL106: =SUMIFS($C$58:$C$77,$AG$4:$AG$23,">9",$AN$4:$AN$23,"=17") -> 0 | AM106: =SUMIFS($C$58:$C$77,$AG$4:$AG$23,">10",$AN$4:$AN$23,"=17") -> 0 | AN106: =SUMIFS($C$58:$C$77,$AG$4:$AG$23,">11",$AN$4:$AN$23,"=17") -> 0 | AO106: =SUMIFS($C$58:$C$77,$AG$4:$AG$23,">12",$AN$4:$AN$23,"=17") -> 0
AC107: Año 18 | AD107: =SUMIFS($C$58:$C$77,$AG$4:$AG$23,">1",$AN$4:$AN$23,"=18") -> 0 | AE107: =SUMIFS($C$58:$C$77,$AG$4:$AG$23,">2",$AN$4:$AN$23,"=18") -> 0 | AF107: =SUMIFS($C$58:$C$77,$AG$4:$AG$23,">3",$AN$4:$AN$23,"=18") -> 0 | AG107: =SUMIFS($C$58:$C$77,$AG$4:$AG$23,">4",$AN$4:$AN$23,"=18") -> 0 | AH107: =SUMIFS($C$58:$C$77,$AG$4:$AG$23,">5",$AN$4:$AN$23,"=18") -> 0 | AI107: =SUMIFS($C$58:$C$77,$AG$4:$AG$23,">6",$AN$4:$AN$23,"=18") -> 0 | AJ107: =SUMIFS($C$58:$C$77,$AG$4:$AG$23,">7",$AN$4:$AN$23,"=18") -> 0 | AK107: =SUMIFS($C$58:$C$77,$AG$4:$AG$23,">8",$AN$4:$AN$23,"=18") -> 0 | AL107: =SUMIFS($C$58:$C$77,$AG$4:$AG$23,">9",$AN$4:$AN$23,"=18") -> 0 | AM107: =SUMIFS($C$58:$C$77,$AG$4:$AG$23,">10",$AN$4:$AN$23,"=18") -> 0 | AN107: =SUMIFS($C$58:$C$77,$AG$4:$AG$23,">11",$AN$4:$AN$23,"=18") -> 0 | AO107: =SUMIFS($C$58:$C$77,$AG$4:$AG$23,">12",$AN$4:$AN$23,"=18") -> 0
AC108: Año 19 | AD108: =SUMIFS($C$58:$C$77,$AG$4:$AG$23,">1",$AN$4:$AN$23,"=19") -> 0 | AE108: =SUMIFS($C$58:$C$77,$AG$4:$AG$23,">2",$AN$4:$AN$23,"=19") -> 0 | AF108: =SUMIFS($C$58:$C$77,$AG$4:$AG$23,">3",$AN$4:$AN$23,"=19") -> 0 | AG108: =SUMIFS($C$58:$C$77,$AG$4:$AG$23,">4",$AN$4:$AN$23,"=19") -> 0 | AH108: =SUMIFS($C$58:$C$77,$AG$4:$AG$23,">5",$AN$4:$AN$23,"=19") -> 0 | AI108: =SUMIFS($C$58:$C$77,$AG$4:$AG$23,">6",$AN$4:$AN$23,"=19") -> 0 | AJ108: =SUMIFS($C$58:$C$77,$AG$4:$AG$23,">7",$AN$4:$AN$23,"=19") -> 0 | AK108: =SUMIFS($C$58:$C$77,$AG$4:$AG$23,">8",$AN$4:$AN$23,"=19") -> 0 | AL108: =SUMIFS($C$58:$C$77,$AG$4:$AG$23,">9",$AN$4:$AN$23,"=19") -> 0 | AM108: =SUMIFS($C$58:$C$77,$AG$4:$AG$23,">10",$AN$4:$AN$23,"=19") -> 0 | AN108: =SUMIFS($C$58:$C$77,$AG$4:$AG$23,">11",$AN$4:$AN$23,"=19") -> 0 | AO108: =SUMIFS($C$58:$C$77,$AG$4:$AG$23,">12",$AN$4:$AN$23,"=19") -> 0
AC109: Año 20 | AD109: =SUMIFS($C$58:$C$77,$AG$4:$AG$23,">1",$AN$4:$AN$23,"=20") -> 0 | AE109: =SUMIFS($C$58:$C$77,$AG$4:$AG$23,">2",$AN$4:$AN$23,"=20") -> 0 | AF109: =SUMIFS($C$58:$C$77,$AG$4:$AG$23,">3",$AN$4:$AN$23,"=20") -> 0 | AG109: =SUMIFS($C$58:$C$77,$AG$4:$AG$23,">4",$AN$4:$AN$23,"=20") -> 0 | AH109: =SUMIFS($C$58:$C$77,$AG$4:$AG$23,">5",$AN$4:$AN$23,"=20") -> 0 | AI109: =SUMIFS($C$58:$C$77,$AG$4:$AG$23,">6",$AN$4:$AN$23,"=20") -> 0 | AJ109: =SUMIFS($C$58:$C$77,$AG$4:$AG$23,">7",$AN$4:$AN$23,"=20") -> 0 | AK109: =SUMIFS($C$58:$C$77,$AG$4:$AG$23,">8",$AN$4:$AN$23,"=20") -> 0 | AL109: =SUMIFS($C$58:$C$77,$AG$4:$AG$23,">9",$AN$4:$AN$23,"=20") -> 0 | AM109: =SUMIFS($C$58:$C$77,$AG$4:$AG$23,">10",$AN$4:$AN$23,"=20") -> 0 | AN109: =SUMIFS($C$58:$C$77,$AG$4:$AG$23,">11",$AN$4:$AN$23,"=20") -> 0 | AO109: =SUMIFS($C$58:$C$77,$AG$4:$AG$23,">12",$AN$4:$AN$23,"=20") -> 0
AC110: Año 21 | AD110: =SUMIFS($C$58:$C$77,$AG$4:$AG$23,">1",$AN$4:$AN$23,"=21") -> 0 | AE110: =SUMIFS($C$58:$C$77,$AG$4:$AG$23,">2",$AN$4:$AN$23,"=21") -> 0 | AF110: =SUMIFS($C$58:$C$77,$AG$4:$AG$23,">3",$AN$4:$AN$23,"=21") -> 0 | AG110: =SUMIFS($C$58:$C$77,$AG$4:$AG$23,">4",$AN$4:$AN$23,"=21") -> 0 | AH110: =SUMIFS($C$58:$C$77,$AG$4:$AG$23,">5",$AN$4:$AN$23,"=21") -> 0 | AI110: =SUMIFS($C$58:$C$77,$AG$4:$AG$23,">6",$AN$4:$AN$23,"=21") -> 0 | AJ110: =SUMIFS($C$58:$C$77,$AG$4:$AG$23,">7",$AN$4:$AN$23,"=21") -> 0 | AK110: =SUMIFS($C$58:$C$77,$AG$4:$AG$23,">8",$AN$4:$AN$23,"=21") -> 0 | AL110: =SUMIFS($C$58:$C$77,$AG$4:$AG$23,">9",$AN$4:$AN$23,"=21") -> 0 | AM110: =SUMIFS($C$58:$C$77,$AG$4:$AG$23,">10",$AN$4:$AN$23,"=21") -> 0 | AN110: =SUMIFS($C$58:$C$77,$AG$4:$AG$23,">11",$AN$4:$AN$23,"=21") -> 0 | AO110: =SUMIFS($C$58:$C$77,$AG$4:$AG$23,">12",$AN$4:$AN$23,"=21") -> 0
AC112: Matriz para revisión de estatus | AP112: CHECK
AC113: AÑO | AD113: Ene. | AE113: Feb. | AF113: Mar. | AG113: Abr. | AH113: May. | AI113: Jun. | AJ113: Jul. | AK113: Ago. | AL113: Sept. | AM113: Oct. | AN113: Nov. | AO113: Dic.
AC114: Año 1 | AD114: =IF(K42>1, 1,0) -> 0 | AE114: 0 | AF114: 0 | AG114: 0 | AH114: 0 | AI114: 0 | AJ114: 0 | AK114: 0 | AL114: 0 | AM114: 0 | AN114: 0 | AO114: 0 | AP114: =SUM(AD114:AO114) -> 0
AC115: Año 2 | AD115: 0 | AE115: 0 | AF115: 0 | AG115: 0 | AH115: 0 | AI115: 0 | AJ115: 0 | AK115: 0 | AL115: 0 | AM115: 0 | AN115: 0 | AO115: 0 | AP115: =SUM(AD115:AO115) -> 0
AC116: Año 3 | AD116: 0 | AE116: 0 | AF116: 0 | AG116: 0 | AH116: 0 | AI116: 0 | AJ116: 0 | AK116: 0 | AL116: 0 | AM116: 0 | AN116: 0 | AO116: 0 | AP116: 0
AC118: Año 13 | AD118: =SUMIFS($C$58:$C$77,$AG$4:$AG$23,">1",$AN$4:$AN$23,"=13") -> 0 | AE118: =SUMIFS($C$58:$C$77,$AG$4:$AG$23,">2",$AN$4:$AN$23,"=13") -> 0 | AF118: =SUMIFS($C$58:$C$77,$AG$4:$AG$23,">3",$AN$4:$AN$23,"=13") -> 0 | AG118: =SUMIFS($C$58:$C$77,$AG$4:$AG$23,">4",$AN$4:$AN$23,"=13") -> 0 | AH118: =SUMIFS($C$58:$C$77,$AG$4:$AG$23,">5",$AN$4:$AN$23,"=13") -> 0 | AI118: =SUMIFS($C$58:$C$77,$AG$4:$AG$23,">6",$AN$4:$AN$23,"=13") -> 0 | AJ118: =SUMIFS($C$58:$C$77,$AG$4:$AG$23,">7",$AN$4:$AN$23,"=13") -> 0 | AK118: =SUMIFS($C$58:$C$77,$AG$4:$AG$23,">8",$AN$4:$AN$23,"=13") -> 0 | AL118: =SUMIFS($C$58:$C$77,$AG$4:$AG$23,">9",$AN$4:$AN$23,"=13") -> 0 | AM118: =SUMIFS($C$58:$C$77,$AG$4:$AG$23,">10",$AN$4:$AN$23,"=13") -> 0 | AN118: =SUMIFS($C$58:$C$77,$AG$4:$AG$23,">11",$AN$4:$AN$23,"=13") -> 0 | AO118: =SUMIFS($C$58:$C$77,$AG$4:$AG$23,">12",$AN$4:$AN$23,"=13") -> 0
AC119: Año 14 | AD119: =SUMIFS($C$58:$C$77,$AG$4:$AG$23,">1",$AN$4:$AN$23,"=14") -> 0 | AE119: =SUMIFS($C$58:$C$77,$AG$4:$AG$23,">2",$AN$4:$AN$23,"=14") -> 0 | AF119: =SUMIFS($C$58:$C$77,$AG$4:$AG$23,">3",$AN$4:$AN$23,"=14") -> 0 | AG119: =SUMIFS($C$58:$C$77,$AG$4:$AG$23,">4",$AN$4:$AN$23,"=14") -> 0 | AH119: =SUMIFS($C$58:$C$77,$AG$4:$AG$23,">5",$AN$4:$AN$23,"=14") -> 0 | AI119: =SUMIFS($C$58:$C$77,$AG$4:$AG$23,">6",$AN$4:$AN$23,"=14") -> 0 | AJ119: =SUMIFS($C$58:$C$77,$AG$4:$AG$23,">7",$AN$4:$AN$23,"=14") -> 0 | AK119: =SUMIFS($C$58:$C$77,$AG$4:$AG$23,">8",$AN$4:$AN$23,"=14") -> 0 | AL119: =SUMIFS($C$58:$C$77,$AG$4:$AG$23,">9",$AN$4:$AN$23,"=14") -> 0 | AM119: =SUMIFS($C$58:$C$77,$AG$4:$AG$23,">10",$AN$4:$AN$23,"=14") -> 0 | AN119: =SUMIFS($C$58:$C$77,$AG$4:$AG$23,">11",$AN$4:$AN$23,"=14") -> 0 | AO119: =SUMIFS($C$58:$C$77,$AG$4:$AG$23,">12",$AN$4:$AN$23,"=14") -> 0
AC120: Año 15 | AD120: =SUMIFS($C$58:$C$77,$AG$4:$AG$23,">1",$AN$4:$AN$23,"=15") -> 0 | AE120: =SUMIFS($C$58:$C$77,$AG$4:$AG$23,">2",$AN$4:$AN$23,"=15") -> 0 | AF120: =SUMIFS($C$58:$C$77,$AG$4:$AG$23,">3",$AN$4:$AN$23,"=15") -> 0 | AG120: =SUMIFS($C$58:$C$77,$AG$4:$AG$23,">4",$AN$4:$AN$23,"=15") -> 0 | AH120: =SUMIFS($C$58:$C$77,$AG$4:$AG$23,">5",$AN$4:$AN$23,"=15") -> 0 | AI120: =SUMIFS($C$58:$C$77,$AG$4:$AG$23,">6",$AN$4:$AN$23,"=15") -> 0 | AJ120: =SUMIFS($C$58:$C$77,$AG$4:$AG$23,">7",$AN$4:$AN$23,"=15") -> 0 | AK120: =SUMIFS($C$58:$C$77,$AG$4:$AG$23,">8",$AN$4:$AN$23,"=15") -> 0 | AL120: =SUMIFS($C$58:$C$77,$AG$4:$AG$23,">9",$AN$4:$AN$23,"=15") -> 0 | AM120: =SUMIFS($C$58:$C$77,$AG$4:$AG$23,">10",$AN$4:$AN$23,"=15") -> 0 | AN120: =SUMIFS($C$58:$C$77,$AG$4:$AG$23,">11",$AN$4:$AN$23,"=15") -> 0 | AO120: =SUMIFS($C$58:$C$77,$AG$4:$AG$23,">12",$AN$4:$AN$23,"=15") -> 0
AC121: Año 16 | AD121: =SUMIFS($C$58:$C$77,$AG$4:$AG$23,">1",$AN$4:$AN$23,"=16") -> 0 | AE121: =SUMIFS($C$58:$C$77,$AG$4:$AG$23,">2",$AN$4:$AN$23,"=16") -> 0 | AF121: =SUMIFS($C$58:$C$77,$AG$4:$AG$23,">3",$AN$4:$AN$23,"=16") -> 0 | AG121: =SUMIFS($C$58:$C$77,$AG$4:$AG$23,">4",$AN$4:$AN$23,"=16") -> 0 | AH121: =SUMIFS($C$58:$C$77,$AG$4:$AG$23,">5",$AN$4:$AN$23,"=16") -> 0 | AI121: =SUMIFS($C$58:$C$77,$AG$4:$AG$23,">6",$AN$4:$AN$23,"=16") -> 0 | AJ121: =SUMIFS($C$58:$C$77,$AG$4:$AG$23,">7",$AN$4:$AN$23,"=16") -> 0 | AK121: =SUMIFS($C$58:$C$77,$AG$4:$AG$23,">8",$AN$4:$AN$23,"=16") -> 0 | AL121: =SUMIFS($C$58:$C$77,$AG$4:$AG$23,">9",$AN$4:$AN$23,"=16") -> 0 | AM121: =SUMIFS($C$58:$C$77,$AG$4:$AG$23,">10",$AN$4:$AN$23,"=16") -> 0 | AN121: =SUMIFS($C$58:$C$77,$AG$4:$AG$23,">11",$AN$4:$AN$23,"=16") -> 0 | AO121: =SUMIFS($C$58:$C$77,$AG$4:$AG$23,">12",$AN$4:$AN$23,"=16") -> 0
AC122: Año 17 | AD122: =SUMIFS($C$58:$C$77,$AG$4:$AG$23,">1",$AN$4:$AN$23,"=17") -> 0 | AE122: =SUMIFS($C$58:$C$77,$AG$4:$AG$23,">2",$AN$4:$AN$23,"=17") -> 0 | AF122: =SUMIFS($C$58:$C$77,$AG$4:$AG$23,">3",$AN$4:$AN$23,"=17") -> 0 | AG122: =SUMIFS($C$58:$C$77,$AG$4:$AG$23,">4",$AN$4:$AN$23,"=17") -> 0 | AH122: =SUMIFS($C$58:$C$77,$AG$4:$AG$23,">5",$AN$4:$AN$23,"=17") -> 0 | AI122: =SUMIFS($C$58:$C$77,$AG$4:$AG$23,">6",$AN$4:$AN$23,"=17") -> 0 | AJ122: =SUMIFS($C$58:$C$77,$AG$4:$AG$23,">7",$AN$4:$AN$23,"=17") -> 0 | AK122: =SUMIFS($C$58:$C$77,$AG$4:$AG$23,">8",$AN$4:$AN$23,"=17") -> 0 | AL122: =SUMIFS($C$58:$C$77,$AG$4:$AG$23,">9",$AN$4:$AN$23,"=17") -> 0 | AM122: =SUMIFS($C$58:$C$77,$AG$4:$AG$23,">10",$AN$4:$AN$23,"=17") -> 0 | AN122: =SUMIFS($C$58:$C$77,$AG$4:$AG$23,">11",$AN$4:$AN$23,"=17") -> 0 | AO122: =SUMIFS($C$58:$C$77,$AG$4:$AG$23,">12",$AN$4:$AN$23,"=17") -> 0
AC123: Año 18 | AD123: =SUMIFS($C$58:$C$77,$AG$4:$AG$23,">1",$AN$4:$AN$23,"=18") -> 0 | AE123: =SUMIFS($C$58:$C$77,$AG$4:$AG$23,">2",$AN$4:$AN$23,"=18") -> 0 | AF123: =SUMIFS($C$58:$C$77,$AG$4:$AG$23,">3",$AN$4:$AN$23,"=18") -> 0 | AG123: =SUMIFS($C$58:$C$77,$AG$4:$AG$23,">4",$AN$4:$AN$23,"=18") -> 0 | AH123: =SUMIFS($C$58:$C$77,$AG$4:$AG$23,">5",$AN$4:$AN$23,"=18") -> 0 | AI123: =SUMIFS($C$58:$C$77,$AG$4:$AG$23,">6",$AN$4:$AN$23,"=18") -> 0 | AJ123: =SUMIFS($C$58:$C$77,$AG$4:$AG$23,">7",$AN$4:$AN$23,"=18") -> 0 | AK123: =SUMIFS($C$58:$C$77,$AG$4:$AG$23,">8",$AN$4:$AN$23,"=18") -> 0 | AL123: =SUMIFS($C$58:$C$77,$AG$4:$AG$23,">9",$AN$4:$AN$23,"=18") -> 0 | AM123: =SUMIFS($C$58:$C$77,$AG$4:$AG$23,">10",$AN$4:$AN$23,"=18") -> 0 | AN123: =SUMIFS($C$58:$C$77,$AG$4:$AG$23,">11",$AN$4:$AN$23,"=18") -> 0 | AO123: =SUMIFS($C$58:$C$77,$AG$4:$AG$23,">12",$AN$4:$AN$23,"=18") -> 0
AC124: Año 19 | AD124: =SUMIFS($C$58:$C$77,$AG$4:$AG$23,">1",$AN$4:$AN$23,"=19") -> 0 | AE124: =SUMIFS($C$58:$C$77,$AG$4:$AG$23,">2",$AN$4:$AN$23,"=19") -> 0 | AF124: =SUMIFS($C$58:$C$77,$AG$4:$AG$23,">3",$AN$4:$AN$23,"=19") -> 0 | AG124: =SUMIFS($C$58:$C$77,$AG$4:$AG$23,">4",$AN$4:$AN$23,"=19") -> 0 | AH124: =SUMIFS($C$58:$C$77,$AG$4:$AG$23,">5",$AN$4:$AN$23,"=19") -> 0 | AI124: =SUMIFS($C$58:$C$77,$AG$4:$AG$23,">6",$AN$4:$AN$23,"=19") -> 0 | AJ124: =SUMIFS($C$58:$C$77,$AG$4:$AG$23,">7",$AN$4:$AN$23,"=19") -> 0 | AK124: =SUMIFS($C$58:$C$77,$AG$4:$AG$23,">8",$AN$4:$AN$23,"=19") -> 0 | AL124: =SUMIFS($C$58:$C$77,$AG$4:$AG$23,">9",$AN$4:$AN$23,"=19") -> 0 | AM124: =SUMIFS($C$58:$C$77,$AG$4:$AG$23,">10",$AN$4:$AN$23,"=19") -> 0 | AN124: =SUMIFS($C$58:$C$77,$AG$4:$AG$23,">11",$AN$4:$AN$23,"=19") -> 0 | AO124: =SUMIFS($C$58:$C$77,$AG$4:$AG$23,">12",$AN$4:$AN$23,"=19") -> 0
AC125: Año 20 | AD125: =SUMIFS($C$58:$C$77,$AG$4:$AG$23,">1",$AN$4:$AN$23,"=20") -> 0 | AE125: =SUMIFS($C$58:$C$77,$AG$4:$AG$23,">2",$AN$4:$AN$23,"=20") -> 0 | AF125: =SUMIFS($C$58:$C$77,$AG$4:$AG$23,">3",$AN$4:$AN$23,"=20") -> 0 | AG125: =SUMIFS($C$58:$C$77,$AG$4:$AG$23,">4",$AN$4:$AN$23,"=20") -> 0 | AH125: =SUMIFS($C$58:$C$77,$AG$4:$AG$23,">5",$AN$4:$AN$23,"=20") -> 0 | AI125: =SUMIFS($C$58:$C$77,$AG$4:$AG$23,">6",$AN$4:$AN$23,"=20") -> 0 | AJ125: =SUMIFS($C$58:$C$77,$AG$4:$AG$23,">7",$AN$4:$AN$23,"=20") -> 0 | AK125: =SUMIFS($C$58:$C$77,$AG$4:$AG$23,">8",$AN$4:$AN$23,"=20") -> 0 | AL125: =SUMIFS($C$58:$C$77,$AG$4:$AG$23,">9",$AN$4:$AN$23,"=20") -> 0 | AM125: =SUMIFS($C$58:$C$77,$AG$4:$AG$23,">10",$AN$4:$AN$23,"=20") -> 0 | AN125: =SUMIFS($C$58:$C$77,$AG$4:$AG$23,">11",$AN$4:$AN$23,"=20") -> 0 | AO125: =SUMIFS($C$58:$C$77,$AG$4:$AG$23,">12",$AN$4:$AN$23,"=20") -> 0
AC126: Año 21 | AD126: =SUMIFS($C$58:$C$77,$AG$4:$AG$23,">1",$AN$4:$AN$23,"=21") -> 0 | AE126: =SUMIFS($C$58:$C$77,$AG$4:$AG$23,">2",$AN$4:$AN$23,"=21") -> 0 | AF126: =SUMIFS($C$58:$C$77,$AG$4:$AG$23,">3",$AN$4:$AN$23,"=21") -> 0 | AG126: =SUMIFS($C$58:$C$77,$AG$4:$AG$23,">4",$AN$4:$AN$23,"=21") -> 0 | AH126: =SUMIFS($C$58:$C$77,$AG$4:$AG$23,">5",$AN$4:$AN$23,"=21") -> 0 | AI126: =SUMIFS($C$58:$C$77,$AG$4:$AG$23,">6",$AN$4:$AN$23,"=21") -> 0 | AJ126: =SUMIFS($C$58:$C$77,$AG$4:$AG$23,">7",$AN$4:$AN$23,"=21") -> 0 | AK126: =SUMIFS($C$58:$C$77,$AG$4:$AG$23,">8",$AN$4:$AN$23,"=21") -> 0 | AL126: =SUMIFS($C$58:$C$77,$AG$4:$AG$23,">9",$AN$4:$AN$23,"=21") -> 0 | AM126: =SUMIFS($C$58:$C$77,$AG$4:$AG$23,">10",$AN$4:$AN$23,"=21") -> 0 | AN126: =SUMIFS($C$58:$C$77,$AG$4:$AG$23,">11",$AN$4:$AN$23,"=21") -> 0 | AO126: =SUMIFS($C$58:$C$77,$AG$4:$AG$23,">12",$AN$4:$AN$23,"=21") -> 0
AC128: Matriz para revisión de estatus | AP128: CHECK
AC129: AÑO | AD129: Ene. | AE129: Feb. | AF129: Mar. | AG129: Abr. | AH129: May. | AI129: Jun. | AJ129: Jul. | AK129: Ago. | AL129: Sept. | AM129: Oct. | AN129: Nov. | AO129: Dic.
AC130: Año 1 | AD130: =IF(K58>1, 1,0) -> 0 | AE130: =IF(L58>1, 1,0) -> 0 | AF130: =IF(M58>1, 1,0) -> 0 | AG130: =IF(N58>1, 1,0) -> 0 | AH130: =IF(O58>1, 1,0) -> 0 | AI130: =IF(P58>1, 1,0) -> 0 | AJ130: =IF(Q58>1, 1,0) -> 0 | AK130: =IF(R58>1, 1,0) -> 0 | AL130: =IF(S58>1, 1,0) -> 0 | AM130: =IF(T58>1, 1,0) -> 0 | AN130: =IF(U58>1, 1,0) -> 0 | AO130: =IF(V58>1, 1,0) -> 0 | AP130: =SUM(AD130:AO130) -> 0
AC131: Año 2 | AD131: 0 | AE131: 0 | AF131: 0 | AG131: 0 | AH131: 0 | AI131: 0 | AJ131: 0 | AK131: 0 | AL131: 0 | AM131: 0 | AN131: 0 | AO131: 0 | AP131: =SUM(AD131:AO131) -> 0
AC132: Año 3 | AD132: 0 | AE132: 0 | AF132: 0 | AG132: 0 | AH132: 0 | AI132: 0 | AJ132: 0 | AK132: 0 | AL132: 0 | AM132: 0 | AN132: 0 | AO132: 0 | AP132: 0
AC133: Año 4 | AD133: 0 | AE133: 0 | AF133: 0 | AG133: 0 | AH133: 0 | AI133: 0 | AJ133: 0 | AK133: 0 | AL133: 0 | AM133: 0 | AN133: 0 | AO133: 0 | AP133: 0
AC134: Año 5 | AD134: 0 | AE134: 0 | AF134: 0 | AG134: 0 | AH134: 0 | AI134: 0 | AJ134: 0 | AK134: 0 | AL134: 0 | AM134: 0 | AN134: 0 | AO134: 0 | AP134: 0
AC135: Año 6 | AD135: 0 | AE135: 0 | AF135: 0 | AG135: 0 | AH135: 0 | AI135: 0 | AJ135: 0 | AK135: 0 | AL135: 0 | AM135: 0 | AN135: 0 | AO135: 0 | AP135: 0
AC136: Año 7 | AD136: 0 | AE136: 0 | AF136: 0 | AG136: 0 | AH136: 0 | AI136: 0 | AJ136: 0 | AK136: 0 | AL136: 0 | AM136: 0 | AN136: 0 | AO136: 0 | AP136: 0
AC137: Año 8 | AD137: 0 | AE137: 0 | AF137: 0 | AG137: 0 | AH137: 0 | AI137: 0 | AJ137: 0 | AK137: 0 | AL137: 0 | AM137: 0 | AN137: 0 | AO137: 0 | AP137: 0
AC138: Año 9 | AD138: 0 | AE138: 0 | AF138: 0 | AG138: 0 | AH138: 0 | AI138: 0 | AJ138: 0 | AK138: 0 | AL138: 0 | AM138: 0 | AN138: 0 | AO138: 0 | AP138: 0
AC139: Año 10 | AD139: 0 | AE139: 0 | AF139: 0 | AG139: 0 | AH139: 0 | AI139: 0 | AJ139: 0 | AK139: 0 | AL139: 0 | AM139: 0 | AN139: 0 | AO139: 0 | AP139: 0
AC140: Año 11 | AD140: 0 | AE140: 0 | AF140: 0 | AG140: 0 | AH140: 0 | AI140: 0 | AJ140: 0 | AK140: 0 | AL140: 0 | AM140: 0 | AN140: 0 | AO140: 0 | AP140: 0
AC141: Año 12 | AD141: 0 | AE141: 0 | AF141: 0 | AG141: 0 | AH141: 0 | AI141: 0 | AJ141: 0 | AK141: 0 | AL141: 0 | AM141: 0 | AN141: 0 | AO141: 0 | AP141: 0
AC142: Año 13 | AD142: 0 | AE142: 0 | AF142: 0 | AG142: 0 | AH142: 0 | AI142: 0 | AJ142: 0 | AK142: 0 | AL142: 0 | AM142: 0 | AN142: 0 | AO142: 0 | AP142: 0
AC143: Año 14 | AD143: 0 | AE143: 0 | AF143: 0 | AG143: 0 | AH143: 0 | AI143: 0 | AJ143: 0 | AK143: 0 | AL143: 0 | AM143: 0 | AN143: 0 | AO143: 0 | AP143: 0
AC144: Año 15 | AD144: 0 | AE144: 0 | AF144: 0 | AG144: 0 | AH144: 0 | AI144: 0 | AJ144: 0 | AK144: 0 | AL144: 0 | AM144: 0 | AN144: 0 | AO144: 0 | AP144: 0
AC145: Año 16 | AD145: 0 | AE145: 0 | AF145: 0 | AG145: 0 | AH145: 0 | AI145: 0 | AJ145: 0 | AK145: 0 | AL145: 0 | AM145: 0 | AN145: 0 | AO145: 0 | AP145: 0
AC146: Año 17 | AD146: 0 | AE146: 0 | AF146: 0 | AG146: 0 | AH146: 0 | AI146: 0 | AJ146: 0 | AK146: 0 | AL146: 0 | AM146: 0 | AN146: 0 | AO146: 0 | AP146: 0
AC147: Año 18 | AD147: 0 | AE147: 0 | AF147: 0 | AG147: 0 | AH147: 0 | AI147: 0 | AJ147: 0 | AK147: 0 | AL147: 0 | AM147: 0 | AN147: 0 | AO147: 0 | AP147: 0
AC148: Año 19 | AD148: 0 | AE148: 0 | AF148: 0 | AG148: 0 | AH148: 0 | AI148: 0 | AJ148: 0 | AK148: 0 | AL148: 0 | AM148: 0 | AN148: 0 | AO148: 0 | AP148: 0
AC149: Año 20 | AD149: 0 | AE149: 0 | AF149: 0 | AG149: 0 | AH149: 0 | AI149: 0 | AJ149: 0 | AK149: 0 | AL149: 0 | AM149: 0 | AN149: 0 | AO149: 0 | AP149: 0
AC150: Año 21 | AD150: 0 | AE150: 0 | AF150: 0 | AG150: 0 | AH150: 0 | AI150: 0 | AJ150: 0 | AK150: 0 | AL150: 0 | AM150: 0 | AN150: 0 | AO150: 0 | AP150: 0

Sheet 3.Demanda
A1: 3. DEMANDA
Z2: Opciones
A3: I. Instrucciones | Z3: SI
Z4: NO
A5: 1. Agregar la demanda mensual de energía activa (kilowatt-hora) esperada para cada beneficiario asociado al contrato colectivo. En el caso de los beneficiarios GDMTH es necesario desagregar la demanda por período horario (esta información se encuentra disponible en la factura eléctrica de suministro básico). Para todos los demás beneficiarios, solo deberá colocarse el consumo mensual en las líneas correspondientes al período base pues las demás no serán tomadas en cuenta al no existir discriminación horaria en estas tarifas.
A6: 2. Es necesario que todos los beneficiarios que han sido activados tengan información sobre su demanda mensual esperada para tener un estatus de "OK". Es posible que en algunos meses exista un consumo nulo de energía, por lo que la tabla solo marcará como "Error" aquellos donde el beneficiario exista y tenga un promedio de cero kilowatt-hora consumidos durante un año. Para los beneficiarios GDMTH, bastará con que en uno solo de los períodos tenga un promedio mayor a cero para que el programa considere los datos como correctos, ya que podría darse el caso de que sus consumos se concentren en un sólo período horario. Los demás beneficiarios deberán contar con un promedio de consumo mayor a cero forzosamente en el período base. 3. Para los usuarios en media tensión (GDMTO y GDMTH) deberás indicar si estos tienen medición en baja tensión en la columna "R". De ser este el caso, se añadirá un 2% extra en su factura eléctrica como lo hace CFE. 4. Para los usuarios de gran demanda (GDBT, GDMTO y GDMTH) es necesario indicar la demanda de energía reactiva (kVArh) registrada en el año en la sección III. Esta información puede ser hallada en las facturas eléctricas de los beneficiarios.
A8: 5. Si tu central distribuida inicia operaciones en un mes diferente a enero, no es necesario que reorganices los consumos de tus beneficiarios. Deberás colocarlos en la columna del mes correspondiente y el programa automáticamente reorganizará los consumos para los años operativos tomando como mes inicial el que hayas indicado como el inicio de operaciones de tu proyecto.
A9: 6. En el bloque IV de esta pestaña se presentan perfiles de demanda típicos en el estado de Yucatán para cada una de la categorías tarifarias que pueden ser utilizados para realizar pruebas hipotéticas con este modelo. No obstante, para proyectos reales es recomendable utilizar datos históricos de los potenciales beneficiarios.
A10: II. Demanda de energía de los beneficiarios asociados al contrato de generación distribuida colectivo.
B12: Información sobre la demanda mensual esperada de los beneficiarios en kilowatts-hora (kWh) por mes durante un año natural. | R12: ¿Medición en BT?
B13: Tipo | C13: Período | D13: Enero | E13: Febrero | F13: Marzo | G13: Abril | H13: Mayo | I13: Junio | J13: Julio | K13: Agosto | L13: Septiembre | M13: Octubre | N13: Noviembre | O13: Diciembre | P13: TOTAL | Q13: Promedio | S13: Estatus | Z13: CheckGDMTH | AA13: CheckOther | AB13: CheckNinguno
A14: Beneficiario 1 | C14: Base | D14: 1100 | E14: 916.5271025 | F14: 955.2127646 | G14: 1038.455347 | H14: 1375.889137 | I14: 1503.413622 | J14: 1852.201928 | K14: 1878.248193 | L14: 2054.180745 | M14: 1714.341478 | N14: 1678.608034 | O14: 1364.304636 | P14: =SUM(D14:O14) -> 17431.38299 | Q14: =IF(P14>0,AVERAGE(D14:O14),0) -> 1452.615249 | S14: =IF(((Z14+AA14)*AB14)=1, "Error", "OK") -> OK | Z14: =IF(B15="GDMTH",1,0) * IF(AVERAGE(Q14:Q16)=0, 1,0) -> 0 | AA14: =IF(B15<>"GDMTH",1,0) * IF(Q14=0, 1,0) -> 0 | AB14: =IF(B15<>"Ninguno",1,0) -> 1
B15: ='2.Proyecto'!B58 -> DAC | C15: Intermedio | P15: =SUM(D15:O15) -> 0 | Q15: =IF(P15>0,AVERAGE(D15:O15),0) -> 0 | R15: SI
C16: Punta | P16: 0 | Q16: 0
A17: Beneficiario 2 | C17: Base | D17: 1100 | E17: 916.5271025 | F17: 955.2127646 | G17: 1038.455347 | H17: 1375.889137 | I17: 1503.413622 | J17: 1852.201928 | K17: 1878.248193 | L17: 2054.180745 | M17: 1714.341478 | N17: 1678.608034 | O17: 1364.304636 | P17: 17431.38299 | Q17: 1452.615249 | S17: =IF(((Z17+AA17)*AB17)=1, "Error", "OK") -> OK | Z17: =IF(B18="GDMTH",1,0) * IF(AVERAGE(Q17:Q19)=0, 1,0) -> 0 | AA17: =IF(B18<>"GDMTH",1,0) * IF(Q17=0, 1,0) -> 0 | AB17: =IF(B18<>"Ninguno",1,0) -> 1
B18: ='2.Proyecto'!B59 -> DAC | C18: Intermedio | P18: 0 | Q18: 0 | R18: NO
C19: Punta | P19: 0 | Q19: 0
A20: Beneficiario 3 | C20: Base | D20: 1100 | E20: 916.5271025 | F20: 955.2127646 | G20: 1038.455347 | H20: 1375.889137 | I20: 1503.413622 | J20: 1852.201928 | K20: 1878.248193 | L20: 2054.180745 | M20: 1714.341478 | N20: 1678.608034 | O20: 1364.304636 | P20: 17431.38299 | Q20: 1452.615249 | S20: =IF(((Z20+AA20)*AB20)=1, "Error", "OK") -> OK | Z20: =IF(B21="GDMTH",1,0) * IF(AVERAGE(Q20:Q22)=0, 1,0) -> 0 | AA20: =IF(B21<>"GDMTH",1,0) * IF(Q20=0, 1,0) -> 0 | AB20: =IF(B21<>"Ninguno",1,0) -> 1
B21: ='2.Proyecto'!B60 -> DAC | C21: Intermedio | P21: 0 | Q21: 0 | R21: NO
C22: Punta | P22: 0 | Q22: 0
A23: Beneficiario 4 | C23: Base | D23: 172.5295922 | E23: 143.7527702 | F23: 149.8204261 | G23: 162.8766159 | H23: 215.8014469 | I23: 235.8030355 | J23: 290.5087665 | K23: 294.5939951 | L23: 322.188151 | M23: 268.8860328 | N23: 263.2814178 | O23: 213.9844749 | P23: 2734.026725 | Q23: 227.8355604 | S23: =IF(((Z23+AA23)*AB23)=1, "Error", "OK") -> OK | Z23: =IF(B24="GDMTH",1,0) * IF(AVERAGE(Q23:Q25)=0, 1,0) -> 0 | AA23: =IF(B24<>"GDMTH",1,0) * IF(Q23=0, 1,0) -> 0 | AB23: =IF(B24<>"Ninguno",1,0) -> 1
B24: ='2.Proyecto'!B61 -> DOM | C24: Intermedio | P24: 0 | Q24: 0 | R24: NO
C25: Punta | P25: 0 | Q25: 0
A26: Beneficiario 5 | C26: Base | P26: 0 | Q26: 0 | S26: =IF(((Z26+AA26)*AB26)=1, "Error", "OK") -> OK | Z26: =IF(B27="GDMTH",1,0) * IF(AVERAGE(Q26:Q28)=0, 1,0) -> 0 | AA26: =IF(B27<>"GDMTH",1,0) * IF(Q26=0, 1,0) -> 1 | AB26: =IF(B27<>"Ninguno",1,0) -> 0
B27: ='2.Proyecto'!B62 -> Ninguno | C27: Intermedio | P27: 0 | Q27: 0 | R27: NO
C28: Punta | P28: 0 | Q28: 0
A29: Beneficiario 6 | C29: Base | P29: 0 | Q29: 0 | S29: =IF(((Z29+AA29)*AB29)=1, "Error", "OK") -> OK | Z29: =IF(B30="GDMTH",1,0) * IF(AVERAGE(Q29:Q31)=0, 1,0) -> 0 | AA29: =IF(B30<>"GDMTH",1,0) * IF(Q29=0, 1,0) -> 1 | AB29: =IF(B30<>"Ninguno",1,0) -> 0
B30: ='2.Proyecto'!B63 -> Ninguno | C30: Intermedio | P30: 0 | Q30: 0 | R30: NO
C31: Punta | P31: 0 | Q31: 0
A32: Beneficiario 7 | C32: Base | P32: 0 | Q32: 0 | S32: =IF(((Z32+AA32)*AB32)=1, "Error", "OK") -> OK | Z32: =IF(B33="GDMTH",1,0) * IF(AVERAGE(Q32:Q34)=0, 1,0) -> 0 | AA32: =IF(B33<>"GDMTH",1,0) * IF(Q32=0, 1,0) -> 1 | AB32: =IF(B33<>"Ninguno",1,0) -> 0
B33: ='2.Proyecto'!B64 -> Ninguno | C33: Intermedio | P33: 0 | Q33: 0 | R33: NO
C34: Punta | P34: 0 | Q34: 0
A35: Beneficiario 8 | C35: Base | P35: 0 | Q35: 0 | S35: =IF(((Z35+AA35)*AB35)=1, "Error", "OK") -> OK | Z35: =IF(B36="GDMTH",1,0) * IF(AVERAGE(Q35:Q37)=0, 1,0) -> 0 | AA35: =IF(B36<>"GDMTH",1,0) * IF(Q35=0, 1,0) -> 1 | AB35: =IF(B36<>"Ninguno",1,0) -> 0
B36: ='2.Proyecto'!B65 -> Ninguno | C36: Intermedio | P36: 0 | Q36: 0 | R36: NO
C37: Punta | P37: 0 | Q37: 0
A38: Beneficiario 9 | C38: Base | P38: 0 | Q38: 0 | S38: =IF(((Z38+AA38)*AB38)=1, "Error", "OK") -> OK | Z38: =IF(B39="GDMTH",1,0) * IF(AVERAGE(Q38:Q40)=0, 1,0) -> 0 | AA38: =IF(B39<>"GDMTH",1,0) * IF(Q38=0, 1,0) -> 1 | AB38: =IF(B39<>"Ninguno",1,0) -> 0
B39: ='2.Proyecto'!B66 -> Ninguno | C39: Intermedio | P39: 0 | Q39: 0 | R39: NO
C40: Punta | P40: 0 | Q40: 0
A41: Beneficiario 10 | C41: Base | P41: 0 | Q41: 0 | S41: =IF(((Z41+AA41)*AB41)=1, "Error", "OK") -> OK | Z41: =IF(B42="GDMTH",1,0) * IF(AVERAGE(Q41:Q43)=0, 1,0) -> 0 | AA41: =IF(B42<>"GDMTH",1,0) * IF(Q41=0, 1,0) -> 1 | AB41: =IF(B42<>"Ninguno",1,0) -> 0
B42: ='2.Proyecto'!B67 -> Ninguno | C42: Intermedio | P42: 0 | Q42: 0 | R42: NO
C43: Punta | P43: 0 | Q43: 0
A44: Beneficiario 11 | C44: Base | P44: 0 | Q44: 0 | S44: =IF(((Z44+AA44)*AB44)=1, "Error", "OK") -> OK | Z44: =IF(B45="GDMTH",1,0) * IF(AVERAGE(Q44:Q46)=0, 1,0) -> 0 | AA44: =IF(B45<>"GDMTH",1,0) * IF(Q44=0, 1,0) -> 1 | AB44: =IF(B45<>"Ninguno",1,0) -> 0
B45: ='2.Proyecto'!B68 -> Ninguno | C45: Intermedio | P45: 0 | Q45: 0 | R45: NO
C46: Punta | P46: 0 | Q46: 0
A47: Beneficiario 12 | C47: Base | P47: 0 | Q47: 0 | S47: =IF(((Z47+AA47)*AB47)=1, "Error", "OK") -> OK | Z47: =IF(B48="GDMTH",1,0) * IF(AVERAGE(Q47:Q49)=0, 1,0) -> 0 | AA47: =IF(B48<>"GDMTH",1,0) * IF(Q47=0, 1,0) -> 1 | AB47: =IF(B48<>"Ninguno",1,0) -> 0
B48: ='2.Proyecto'!B69 -> Ninguno | C48: Intermedio | P48: 0 | Q48: 0 | R48: NO
C49: Punta | P49: 0 | Q49: 0
A50: Beneficiario 13 | C50: Base | P50: 0 | Q50: 0 | S50: =IF(((Z50+AA50)*AB50)=1, "Error", "OK") -> OK | Z50: =IF(B51="GDMTH",1,0) * IF(AVERAGE(Q50:Q52)=0, 1,0) -> 0 | AA50: =IF(B51<>"GDMTH",1,0) * IF(Q50=0, 1,0) -> 1 | AB50: =IF(B51<>"Ninguno",1,0) -> 0
B51: ='2.Proyecto'!B70 -> Ninguno | C51: Intermedio | P51: 0 | Q51: 0 | R51: NO
C52: Punta | P52: 0 | Q52: 0
A53: Beneficiario 14 | C53: Base | P53: 0 | Q53: 0 | S53: =IF(((Z53+AA53)*AB53)=1, "Error", "OK") -> OK | Z53: =IF(B54="GDMTH",1,0) * IF(AVERAGE(Q53:Q55)=0, 1,0) -> 0 | AA53: =IF(B54<>"GDMTH",1,0) * IF(Q53=0, 1,0) -> 1 | AB53: =IF(B54<>"Ninguno",1,0) -> 0
B54: ='2.Proyecto'!B71 -> Ninguno | C54: Intermedio | P54: 0 | Q54: 0 | R54: NO
C55: Punta | P55: 0 | Q55: 0
A56: Beneficiario 15 | C56: Base | P56: 0 | Q56: 0 | S56: =IF(((Z56+AA56)*AB56)=1, "Error", "OK") -> OK | Z56: =IF(B57="GDMTH",1,0) * IF(AVERAGE(Q56:Q58)=0, 1,0) -> 0 | AA56: =IF(B57<>"GDMTH",1,0) * IF(Q56=0, 1,0) -> 1 | AB56: =IF(B57<>"Ninguno",1,0) -> 0
B57: ='2.Proyecto'!B72 -> Ninguno | C57: Intermedio | P57: 0 | Q57: 0 | R57: NO
C58: Punta | P58: 0 | Q58: 0
A59: Beneficiario 16 | C59: Base | P59: 0 | Q59: 0 | S59: =IF(((Z59+AA59)*AB59)=1, "Error", "OK") -> OK | Z59: =IF(B60="GDMTH",1,0) * IF(AVERAGE(Q59:Q61)=0, 1,0) -> 0 | AA59: =IF(B60<>"GDMTH",1,0) * IF(Q59=0, 1,0) -> 1 | AB59: =IF(B60<>"Ninguno",1,0) -> 0
B60: ='2.Proyecto'!B73 -> Ninguno | C60: Intermedio | P60: 0 | Q60: 0 | R60: NO
C61: Punta | P61: 0 | Q61: 0
A62: Beneficiario 17 | C62: Base | P62: 0 | Q62: 0 | S62: =IF(((Z62+AA62)*AB62)=1, "Error", "OK") -> OK | Z62: =IF(B63="GDMTH",1,0) * IF(AVERAGE(Q62:Q64)=0, 1,0) -> 0 | AA62: =IF(B63<>"GDMTH",1,0) * IF(Q62=0, 1,0) -> 1 | AB62: =IF(B63<>"Ninguno",1,0) -> 0
B63: ='2.Proyecto'!B74 -> Ninguno | C63: Intermedio | P63: 0 | Q63: 0 | R63: NO
C64: Punta | P64: 0 | Q64: 0
A65: Beneficiario 18 | C65: Base | P65: 0 | Q65: 0 | S65: =IF(((Z65+AA65)*AB65)=1, "Error", "OK") -> OK | Z65: =IF(B66="GDMTH",1,0) * IF(AVERAGE(Q65:Q67)=0, 1,0) -> 0 | AA65: =IF(B66<>"GDMTH",1,0) * IF(Q65=0, 1,0) -> 1 | AB65: =IF(B66<>"Ninguno",1,0) -> 0
B66: ='2.Proyecto'!B75 -> Ninguno | C66: Intermedio | P66: 0 | Q66: 0 | R66: NO
C67: Punta | P67: 0 | Q67: 0
A68: Beneficiario 19 | C68: Base | P68: 0 | Q68: 0 | S68: =IF(((Z68+AA68)*AB68)=1, "Error", "OK") -> OK | Z68: =IF(B69="GDMTH",1,0) * IF(AVERAGE(Q68:Q70)=0, 1,0) -> 0 | AA68: =IF(B69<>"GDMTH",1,0) * IF(Q68=0, 1,0) -> 1 | AB68: =IF(B69<>"Ninguno",1,0) -> 0
B69: ='2.Proyecto'!B76 -> Ninguno | C69: Intermedio | P69: 0 | Q69: 0 | R69: NO
C70: Punta | P70: 0 | Q70: 0
A71: Beneficiario 20 | C71: Base | P71: 0 | Q71: 0 | S71: =IF(((Z71+AA71)*AB71)=1, "Error", "OK") -> OK | Z71: =IF(B72="GDMTH",1,0) * IF(AVERAGE(Q71:Q73)=0, 1,0) -> 0 | AA71: =IF(B72<>"GDMTH",1,0) * IF(Q71=0, 1,0) -> 1 | AB71: =IF(B72<>"Ninguno",1,0) -> 0
B72: ='2.Proyecto'!B77 -> Ninguno | C72: Intermedio | P72: 0 | Q72: 0 | R72: NO
C73: Punta | P73: 0 | Q73: 0
A76: III. Energía reactiva (kVArh) registrada por los beneficiarios GDBT, GDMTO o GDMTH en el año base
A78: Información sobre la energía reactiva reportada por los usuarios en kilo voltio-amperios reactivo hora (kVArh) durante un año natural | Z78: CheckGDBT | AA78: CheckGDMTO | AB78: CheckGDMTH | AC78: kVArh | AD78: CHECK
B79: Tipo | C79: Enero | D79: Febrero | E79: Marzo | F79: Abril | G79: Mayo | H79: Junio | I79: Julio | J79: Agosto | K79: Septiembre | L79: Octubre | M79: Noviembre | N79: Diciembre | O79: TOTAL | P79: Promedio | Q79: Estatus | Z79: =IF(B80="GDBT", 1,0) -> 0 | AA79: =IF(B80="GDMTO", 1,0) -> 0 | AB79: =IF(B80="GDMTH", 1,0) -> 0 | AC79: =P80 -> 0 | AD79: =IF(SUM(Z79:AB79)<>0,1,0)*IF(P80=0,1,0) -> 0
A80: Beneficiario 1 | B80: ='2.Proyecto'!B58 -> DAC | O80: =SUM(C80:N80) -> 0 | P80: =IF(O80>0,AVERAGE(C80:N80),0) -> 0 | Q80: =IF(AD79=1, "Error", "OK") -> OK | Z80: =IF(B81="GDBT", 1,0) -> 0 | AA80: =IF(B81="GDMTO", 1,0) -> 0 | AB80: =IF(B81="GDMTH", 1,0) -> 0 | AC80: =P81 -> 0 | AD80: =IF(SUM(Z80:AB80)<>0,1,0)*IF(P81=0,1,0) -> 0
A81: Beneficiario 2 | B81: ='2.Proyecto'!B59 -> DAC | O81: =SUM(C81:N81) -> 0 | P81: =IF(O81>0,AVERAGE(C81:N81),0) -> 0 | Q81: =IF(AD80=1, "Error", "OK") -> OK | Z81: 0 | AA81: 0 | AB81: 0 | AC81: 0 | AD81: 0
A82: Beneficiario 3 | B82: ='2.Proyecto'!B60 -> DAC | O82: =SUM(C82:N82) -> 0 | P82: 0 | Q82: OK | Z82: 0 | AA82: 0 | AB82: 0 | AC82: 0 | AD82: 0
A83: Beneficiario 4 | B83: ='2.Proyecto'!B61 -> DOM | O83: =SUM(C83:N83) -> 0 | P83: =IF(O83>0,AVERAGE(C83:N83),0) -> 0 | Q83: OK | Z83: 0 | AA83: 0 | AB83: 0 | AC83: 0 | AD83: 0
A84: Beneficiario 5 | B84: ='2.Proyecto'!B62 -> Ninguno | O84: 0 | P84: 0 | Q84: OK | Z84: 0 | AA84: 0 | AB84: 0 | AC84: 0 | AD84: 0
A85: Beneficiario 6 | B85: ='2.Proyecto'!B63 -> Ninguno | O85: 0 | P85: 0 | Q85: OK | Z85: 0 | AA85: 0 | AB85: 0 | AC85: 0 | AD85: 0
A86: Beneficiario 7 | B86: ='2.Proyecto'!B64 -> Ninguno | O86: 0 | P86: 0 | Q86: OK | Z86: 0 | AA86: 0 | AB86: 0 | AC86: 0 | AD86: 0
A87: Beneficiario 8 | B87: ='2.Proyecto'!B65 -> Ninguno | O87: 0 | P87: 0 | Q87: OK | Z87: 0 | AA87: 0 | AB87: 0 | AC87: 0 | AD87: 0
A88: Beneficiario 9 | B88: ='2.Proyecto'!B66 -> Ninguno | O88: 0 | P88: 0 | Q88: OK | Z88: 0 | AA88: 0 | AB88: 0 | AC88: 0 | AD88: 0
A89: Beneficiario 10 | B89: ='2.Proyecto'!B67 -> Ninguno | O89: 0 | P89: 0 | Q89: OK | Z89: 0 | AA89: 0 | AB89: 0 | AC89: 0 | AD89: 0
A90: Beneficiario 11 | B90: ='2.Proyecto'!B68 -> Ninguno | O90: 0 | P90: 0 | Q90: OK | Z90: 0 | AA90: 0 | AB90: 0 | AC90: 0 | AD90: 0
A91: Beneficiario 12 | B91: ='2.Proyecto'!B69 -> Ninguno | O91: 0 | P91: 0 | Q91: OK | Z91: 0 | AA91: 0 | AB91: 0 | AC91: 0 | AD91: 0
A92: Beneficiario 13 | B92: ='2.Proyecto'!B70 -> Ninguno | O92: 0 | P92: 0 | Q92: OK | Z92: 0 | AA92: 0 | AB92: 0 | AC92: 0 | AD92: 0
A93: Beneficiario 14 | B93: ='2.Proyecto'!B71 -> Ninguno | O93: =SUM(C93:N93) -> 0 | P93: =IF(O93>0,AVERAGE(C93:N93),0) -> 0 | Q93: OK | Z93: 0 | AA93: 0 | AB93: 0 | AC93: 0 | AD93: 0
A94: Beneficiario 15 | B94: ='2.Proyecto'!B72 -> Ninguno | O94: =SUM(C94:N94) -> 0 | P94: =IF(O94>0,AVERAGE(C94:N94),0) -> 0 | Q94: OK | Z94: 0 | AA94: 0 | AB94: 0 | AC94: 0 | AD94: 0
A95: Beneficiario 16 | B95: ='2.Proyecto'!B73 -> Ninguno | O95: 0 | P95: 0 | Q95: OK | Z95: 0 | AA95: 0 | AB95: 0 | AC95: 0 | AD95: 0
A96: Beneficiario 17 | B96: ='2.Proyecto'!B74 -> Ninguno | O96: =SUM(C96:N96) -> 0 | P96: =IF(O96>0,AVERAGE(C96:N96),0) -> 0 | Q96: OK | Z96: 0 | AA96: 0 | AB96: 0 | AC96: 0 | AD96: 0
A97: Beneficiario 18 | B97: ='2.Proyecto'!B75 -> Ninguno | O97: 0 | P97: 0 | Q97: OK | Z97: 0 | AA97: 0 | AB97: 0 | AC97: 0 | AD97: 0
A98: Beneficiario 19 | B98: ='2.Proyecto'!B76 -> Ninguno | O98: 0 | P98: 0 | Q98: OK | Z98: 0 | AA98: 0 | AB98: 0 | AC98: 0 | AD98: 0
A99: Beneficiario 20 | B99: ='2.Proyecto'!B77 -> Ninguno | O99: =SUM(C99:N99) -> 0 | P99: =IF(O99>0,AVERAGE(C99:N99),0) -> 0 | Q99: OK | Z99: 0 | AA99: 0 | AB99: 0 | AC99: 0 | AD99: 0
A101: IV. Ejemplos de perfiles de demanda de energía activa y reactiva de consumidores de suministro doméstico para cada tipo de categoría tarifaria considerada
A103: Ejemplos de perfiles de demanda de energía activa (kWh) para la beneficiarios de diferentes categorías tarifarias en Mérida, Yucatán.
C104: Período | D104: Enero | E104: Febrero | F104: Marzo | G104: Abril | H104: Mayo | I104: Junio | J104: Julio | K104: Agosto | L104: Septiembre | M104: Octubre | N104: Noviembre | O104: Diciembre | P104: TOTAL | Q104: Promedio
A105: Consumidor DOM | C105: Base | D105: 172.5295922 | E105: 143.7527702 | F105: 149.8204261 | G105: 162.8766159 | H105: 215.8014469 | I105: 235.8030355 | J105: 290.5087665 | K105: 294.5939951 | L105: 322.188151 | M105: 268.8860328 | N105: 263.2814178 | O105: 213.9844749 | P105: =SUM(D105:O105) -> 2734.026725 | Q105: =P105/12 -> 227.8355604
A106: Consumidor DAC | C106: Base | D106: 1100 | E106: 916.5271025 | F106: 955.2127646 | G106: 1038.455347 | H106: 1375.889137 | I106: 1503.413622 | J106: 1852.201928 | K106: 1878.248193 | L106: 2054.180745 | M106: 1714.341478 | N106: 1678.608034 | O106: 1364.304636 | P106: =SUM(D106:O106) -> 17431.38299 | Q106: =P106/12 -> 1452.615249
A107: Consumidor PDBT | C107: Base | D107: 262.9559856 | E107: 254.8118873 | F107: 256.4960872 | G107: 268.4480494 | H107: 295.4555458 | I107: 314.2876597 | J107: 321.7420138 | K107: 311.4927005 | L107: 315.850513 | M107: 310.0727428 | N107: 297.181553 | O107: 296.1670649 | P107: =SUM(D107:O107) -> 3504.961803 | Q107: 292.0801503
A108: Consumidor GDBT | C108: Base | D108: 5736.884268 | E108: 6075.732421 | F108: 6081.28854 | G108: 6257.999902 | H108: 6760.773914 | I108: 6926.858255 | J108: 6486.529064 | K108: 6588.953551 | L108: 7098.073749 | M108: 6624.250776 | N108: 6405.17571 | O108: 6381.645273 | P108: 77424.16542 | Q108: 6452.013785
A109: Consumidor GDMTO | C109: Base | D109: 4782.404774 | E109: 4588.08478 | F109: 4760.058576 | G109: 5235.153715 | H109: 5514.983382 | I109: 5783.336544 | J109: 5798.811873 | K109: 5872.426008 | L109: 5859.061295 | M109: 5773.04706 | N109: 5246.443505 | O109: 4918.157007 | P109: =SUM(D109:O109) -> 64131.96852 | Q109: =P109/12 -> 5344.33071
C110: Base | D110: 9616.959838 | E110: 9421.56135 | F110: 10230.49035 | G110: 10603.85785 | H110: 11295.27798 | I110: 11234.94248 | J110: 11508.94747 | K110: 11468.5041 | L110: 10944.92119 | M110: 11015.33104 | N110: 10222.12651 | O110: 9504.766138 | P110: =SUM(D110:O110) -> 127067.6863 | Q110: =P110/12 -> 10588.97386
A111: Consumidor GDMTH | C111: Intermedio | D111: 44478.43925 | E111: 43574.72124 | F111: 47316.01785 | G111: 49042.84256 | H111: 52240.66067 | I111: 51961.60896 | J111: 53228.88204 | K111: 53041.83148 | L111: 50620.26051 | M111: 50945.90608 | N111: 47277.3351 | O111: 43959.54339 | P111: 587688.0491 | Q111: 48974.00409
C112: Punta | D112: 6010.599899 | E112: 5888.475844 | F112: 6394.056466 | G112: 6627.411157 | H112: 7059.548739 | I112: 7021.839049 | J112: 7193.092168 | K112: 7167.815065 | L112: 6840.575745 | M112: 6884.581902 | N112: 6388.829067 | O112: 5940.478836 | P112: =SUM(D112:O112) -> 79417.30394 | Q112: =P112/12 -> 6618.108661
C115: Ejemplos de perfiles de demanda de energía reactiva (kVArh) para la beneficiarios de diferentes categorías tarifarias en Mérida, Yucatán.
C116: Enero | D116: Febrero | E116: Marzo | F116: Abril | G116: Mayo | H116: Junio | I116: Julio | J116: Agosto | K116: Septiembre | L116: Octubre | M116: Noviembre | N116: Diciembre | O116: TOTAL | P116: Promedio
A117: Consumidor GDBT | C117: 1082.4 | D117: 1155 | E117: 925.1 | F117: 773.3 | G117: 1479.5 | H117: 1373.9 | I117: 1235.3 | J117: 1357.4 | K117: 1210 | L117: 1203.4 | M117: 1393.7 | N117: 1081.3 | O117: =SUM(C117:N117) -> 14270.3 | P117: =O117/12 -> 1189.191667
A118: Consumidor GDMTO | C118: 984 | D118: 1050 | E118: 841 | F118: 703 | G118: 1345 | H118: 1249.2 | I118: 1123 | J118: 1234 | K118: 1100 | L118: 1094.3 | M118: 1267 | N118: 983 | O118: =SUM(C118:N118) -> 12973.5 | P118: =O118/12 -> 1081.125
A119: Consumidor GDMTH | C119: 18472 | D119: 21560 | E119: 14569 | F119: 12345.3 | G119: 23498 | H119: 18764 | I119: 10987 | J119: 11342.1 | K119: 18005 | L119: 19034 | M119: 21345 | N119: 18765 | O119: =SUM(C119:N119) -> 208686.4 | P119: =O119/12 -> 17390.53333
A121: V. Glosario
A123: Consumidor DOM: Consumidor doméstico de bajo consumo en la categoría tarifaria que corresponda a la zona del proyecto. Por ejemplo, en Mérida, Yucatán estos beneficiarios se clasifican en la categoría 1D establecida por la Secretaría de Hacienda y Crédito Público en un Acuerdo oficial publicado en el Diario Oficial de la Federación. Se encuentra conectado a los circuitos de baja tensión.
A124: Consumidor DAC: Consumidor doméstico de alto consumo; es decir, que su consumo mensual promedio de los últimos 12 meses es mayor al límite establecido por la Secretaría de Hacienda y Crédito Público en el mismo Acuerdo donde se definen las características de los grupos tarifarios para consumidores domésticos. Para Mérida, Yucatán este límite es de 1000 kWh/mes.
A125: Consumidor PDBT: consumidor no doméstico, principalmente comerciales, con pequeña demanda (hasta 25 kw-mes) y conectado a los circuitos de baja tensión.
A126: Consumidor GDBT: consumidor no doméstico, principalmente comerciales e industriales con gran demanda (mayor a 25 kW-mes) y conectado a los circuitos de baja tensión.
A127: Consumidor GDMTO: consumidor no doméstico, principalmente comerciales e industriales, con gran demanda (menor a 100 kW-mes) y conectado a los circuitos de media tensión.
A128: Consumidor GDMTH: consumidor no doméstico, principalmente comerciales e industriales, con gran demanda (mayor o igual a 100 kW-mes) y conectado a los circuitos de media tensión. Es el único tipo de consumidor que requiere fraccionar el consumo mensual en diferentes períodos: base, intermedio y punta. El consumo por período puede consultarse directamente en la factura eléctrica de los consumidores.
A129: Período: grupo de horas clasificadas por el suministrador de servicios básicos (CFE) como valle, intermedio o punta. De manera general, los precios de la energía eléctrica en el período valle son mucho más bajos, mientras que en período punta suelen ser los más caros. El número de horas consideradas en cada período varía según la región donde se encuentre el proyecto, habiendo 8 regiones: Baja California, Baja California Sur, Central, Noreste, Noroeste, Norte, Peninsular y Sur. Más información al respecto puede consultarse en la sección de tarifas de la página oficial de CFE (consultar esquema vigente): https://www.cfe.mx/tarifas/Pages/Tarifas.aspx
A131: …............................................................................................................................................................................................................................................................................................................................................................................................................................................

Sheet 4.Tarifas
A1: 4. TARIFAS
AJ2: Mes de inicio del verano (núm.)= | AM2: =IF(G14="Enero", 1, IF(G14="Febrero", 2, IF(G14="Marzo", 3, IF(G14="Abril", 4, IF(G14="Mayo", 5, IF(G14="Junio", 6, IF(G14="Julio", 7, IF(G14="Agosto", 8, IF(G14="Septiembre", 9, IF(G14="Octubre", 10, IF(G14="Noviembre", 11, IF(G14="Diciembre", 12)))))))))))) -> 4
A3: I. Instrucciones
AJ4: Regiones
A5: 1. Llenar la información requerida para aquellas categorías tarifarias que vayas a analizar; esta la encuentras en la página oficial de CFE (ver esquema tarifario vigente). | AJ5: Baja California
A6: 2. Se necesita contar con información de al menos un año y se recomienda utilizar los datos del año anterior al proyecto. | AJ6: Baja California Sur
A7: 3. Para la tarifa doméstica de bajo consumo es necesario conocer el mes cuando empieza el verano en la localidad donde se ubica el proyecto. Esto debe ser consultado directamente con el servicio al cliente de CFE o a través de la información histórica de los consumidores. | AJ7: Central
A8: 4. La tarifa doméstica de bajo consumo es la única que presenta cargos por energía diferenciados por nivel de consumo (escalones de consumo). Los límites para los escalones de consumo cambian si es temporada de verano o invierno por lo que se debe proporcionar la información en tablas separadas. En los meses donde no existan datos para esa temporada, simplemente colocar un cero "0". 5. Cuando se analicen beneficiarios DOM o DAC deberán proporcionarse los datos de ambas categorías tarifarias aunque solo se contemplen beneficiarios de un solo grupo. Así, el modelo puede evaluar si el usuario cambia de categoría al elevar o disminuir su energía demanda de la red. | AJ8: Noreste
A9: 6. En la sección VII es posible definir el porcentaje en el que aumentarán o disminuirán las tarifas de suministro básico durante el período proyectado (20 años). Para escenarios tendenciales se recomienda utilizar un porcentaje equivalente a la inflación esperada. | AJ9: Noroeste
A10: 7. La plantilla de ejemplo se encuentra precargado con información de los cargos aplicables en la ciudad de Mérida, Yucatán durante 2019 cuando ya se encontraba en funcionamiento el modelo tarifario vigente. | AJ10: Norte
AJ11: Pensinsular
A12: II. Beneficiarios domésticos de bajo consumo: DOM | AJ12: Sur
A14: Mes cuando empieza el verano en el sitio donde se ubica el proyecto: | G14: Abril | H14: Recuerde que debe proporcionar estos datos también para usuarios DAC.
A16: Información de la temporada de verano | R16: Notas sobre los límites superiores. Los límites para las temporadas de verano e invierno dependerán de la categoría tarifaria que corresponda al sitio donde se ubica el proyecto. El modelo de ejemplo se encuentra precargado con los datos de Mérida, Yucatán (tarifa 1D). Como ejemplo, para la temporada de invierno se considera que la tarifa de consumo básico aplicará a los primeros 75 kWh consumidos en el período, mientras que la de consumo intermedio aplicará a los siguientes 125 kWh, es por esto que el límite máximo para este segundo escalón son 200 kWh (75 kWh + 125 kWh).
C17: Tarifas variables por escalón de consumo ($/kWh) en la temporada de verano para el primer año de operación. | P17: Límite superior (kWh)
C18: Enero | D18: Febrero | E18: Marzo | F18: Abril | G18: Mayo | H18: Junio | I18: Julio | J18: Agosto | K18: Septiembre | L18: Octubre | M18: Noviembre | N18: Diciembre
A19: Consumo básico | C19: 0 | D19: 0 | E19: 0 | F19: 0.709 | G19: 0.712 | H19: 0.715 | I19: 0.718 | J19: 0.721 | K19: 0.724 | L19: 0 | M19: 0 | N19: 0 | P19: 175
A20: Consumo intermedio bajo | C20: 0 | D20: 0 | E20: 0 | F20: 0.834 | G20: 0.837 | H20: 0.84 | I20: 0.843 | J20: 0.846 | K20: 0.849 | L20: 0 | M20: 0 | N20: 0 | P20: 400
A21: Consumo intermedio alto | C21: 0 | D21: 0 | E21: 0 | F21: 1.066 | G21: 1.07 | H21: 1.074 | I21: 1.078 | J21: 1.082 | K21: 1.086 | L21: 0 | M21: 0 | N21: 0 | P21: 600
A22: Consumo excedente | C22: 0 | D22: 0 | E22: 0 | F22: 2.846 | G22: 2.857 | H22: 2.868 | I22: 2.879 | J22: 2.89 | K22: 2.901 | L22: 0 | M22: 0 | N22: 0
A24: Información de la temporada de invierno
C25: Tarifas variables por escalón de consumo ($/kWh) en la temporada de invierno para el primer año de operación. | P25: Límite superior (kWh)
C26: Enero | D26: Febrero | E26: Marzo | F26: Abril | G26: Mayo | H26: Junio | I26: Julio | J26: Agosto | K26: Septiembre | L26: Octubre | M26: Noviembre | N26: Diciembre
A27: Consumo básico | C27: 0.796 | D27: 0.799 | E27: 0.802 | F27: 0 | G27: 0 | H27: 0 | I27: 0 | J27: 0 | K27: 0 | L27: 0.823 | M27: 0.826 | N27: 0.829 | P27: 75
A28: Consumo intermedio | C28: 0.96 | D28: 0.964 | E28: 0.968 | F28: 0 | G28: 0 | H28: 0 | I28: 0 | J28: 0 | K28: 0 | L28: 0.996 | M28: 1 | N28: 1.004 | P28: 200
A29: Consumo excedente | C29: 2.813 | D29: 2.824 | E29: 2.835 | F29: 0 | G29: 0 | H29: 0 | I29: 0 | J29: 0 | K29: 0 | L29: 2.912 | M29: 2.923 | N29: 2.934
A31: III. Beneficiarios domésticos de alto consumo: DAC
A33: Límite de alto consumo para la localidad donde se ubica el proyecto: | G33: 1000 | H33: kWh/mes | I33: Recuerde que debe proporcionar estos datos también para usuarios DOM.
C35: Tarifas variables y fijas aplicables a los usuarios DAC en la localidad donde se ubica el proyecto para el primer año de operación.
A36: Tipo de tarifa | C36: Enero | D36: Febrero | E36: Marzo | F36: Abril | G36: Mayo | H36: Junio | I36: Julio | J36: Agosto | K36: Septiembre | L36: Octubre | M36: Noviembre | N36: Diciembre
A37: Cargo por energía ($/kWh) | C37: 5.07 | D37: 4.845 | E37: 4.623 | F37: 4.496 | G37: 4.563 | H37: 4.562 | I37: 4.441 | J37: 4.443 | K37: 4.263 | L37: 4.329 | M37: 4.377 | N37: 4.276
A38: Cargo fijo ($/mes) | C38: 107.58 | D38: 107.92 | E38: 107.37 | F38: 107.31 | G38: 107.37 | H38: 107.13 | I38: 107.33 | J38: 107.91 | K38: 107.74 | L38: 108.52 | M38: 108.79 | N38: 108.35
A40: IV. Beneficiarios no domésticos con pequeña demanda (hasta 25 kW-mes) en baja tensión: PDBT
C42: Tarifas variables y fijas aplicables a los usuarios PDBT en la localidad donde se ubica el proyecto para el primer año de operación.
A43: Tipo de tarifa | C43: Enero | D43: Febrero | E43: Marzo | F43: Abril | G43: Mayo | H43: Junio | I43: Julio | J43: Agosto | K43: Septiembre | L43: Octubre | M43: Noviembre | N43: Diciembre
A44: Cargo por energía ($/kWh) | C44: 3.589 | D44: 3.572 | E44: 3.619 | F44: 3.61 | G44: 3.659 | H44: 3.67 | I44: 3.675 | J44: 3.655 | K44: 3.6 | L44: 3.547 | M44: 3.544 | N44: 3.544
A45: Cargo fijo ($/mes) | C45: 51.24 | D45: 51.24 | E45: 51.24 | F45: 51.24 | G45: 51.24 | H45: 51.24 | I45: 51.24 | J45: 51.24 | K45: 51.24 | L45: 51.24 | M45: 51.24 | N45: 51.24
A47: V. Beneficiarios no domésticos con gran demanda (mayor a 25 kw-mes) en baja tensión: GDBT
C49: Tarifas variables y fijas aplicables a los usuarios GDBT en la localidad donde se ubica el proyecto para el primer año de operación.
A50: Tipo de tarifa | C50: Enero | D50: Febrero | E50: Marzo | F50: Abril | G50: Mayo | H50: Junio | I50: Julio | J50: Agosto | K50: Septiembre | L50: Octubre | M50: Noviembre | N50: Diciembre
A51: Cargo por energía ($/kWh) | C51: 1.841 | D51: 1.83 | E51: 1.862 | F51: 1.856 | G51: 1.889 | H51: 1.896 | I51: 1.899 | J51: 1.886 | K51: 1.849 | L51: 1.813 | M51: 1.812 | N51: 1.811
A52: Cargo fijo ($/mes) | C52: 512.44 | D52: 512.44 | E52: 512.44 | F52: 512.44 | G52: 512.44 | H52: 512.44 | I52: 512.44 | J52: 512.44 | K52: 512.44 | L52: 512.44 | M52: 512.44 | N52: 512.44
A53: Cargo por distribución ($/kW) | C53: 285.82 | D53: 285.82 | E53: 285.82 | F53: 285.82 | G53: 285.82 | H53: 285.82 | I53: 285.82 | J53: 285.82 | K53: 285.82 | L53: 285.82 | M53: 285.82 | N53: 285.82
A54: Cargo por capacidad ($/kW) | C54: 266.8 | D54: 264.98 | E54: 270.18 | F54: 269.2 | G54: 274.48 | H54: 275.55 | I54: 276.11 | J54: 273.93 | K54: 268.04 | L54: 262.29 | M54: 262.03 | N54: 261.92
A56: VI. Beneficiarios no domésticos con gran demanda (menor a 100 kw-mes) en media tensión y tarifa ordinaria: GDMTO
C58: Tarifas variables y fijas aplicables a los usuarios GDMTO en la localidad donde se ubica el proyecto para el primer año de operación.
A59: Tipo de tarifa | C59: Enero | D59: Febrero | E59: Marzo | F59: Abril | G59: Mayo | H59: Junio | I59: Julio | J59: Agosto | K59: Septiembre | L59: Octubre | M59: Noviembre | N59: Diciembre
A60: Cargo por energía ($/kWh) | C60: 1.533 | D60: 1.523 | E60: 1.55 | F60: 1.545 | G60: 1.572 | H60: 1.577 | I60: 1.58 | J60: 1.569 | K60: 1.539 | L60: 1.51 | M60: 1.508 | N60: 1.508
A61: Cargo fijo ($/mes) | C61: 512.44 | D61: 512.44 | E61: 512.44 | F61: 512.44 | G61: 512.44 | H61: 512.44 | I61: 512.44 | J61: 512.44 | K61: 512.44 | L61: 512.44 | M61: 512.44 | N61: 512.44
A62: Cargo por distribución ($/kW) | C62: 87.62 | D62: 87.62 | E62: 87.62 | F62: 87.62 | G62: 87.62 | H62: 87.62 | I62: 87.62 | J62: 87.62 | K62: 87.62 | L62: 87.62 | M62: 87.62 | N62: 87.62
A63: Cargo por capacidad ($/kW) | C63: 290.79 | D63: 288.81 | E63: 294.47 | F63: 293.41 | G63: 299.16 | H63: 300.33 | I63: 300.94 | J63: 298.56 | K63: 292.15 | L63: 285.88 | M63: 285.59 | N63: 285.48
A65: VI. Beneficiarios no domésticos con gran demanda (mayor o igual a 100 kw-mes) en media tensión y tarifa horaria: GDMTH
A67: Región donde se ubica el proyecto: | D67: Pensinsular
C69: Tarifas variables y fijas aplicables a los usuarios GDMTH en la localidad donde se ubica el proyecto para el primer año de operación.
A70: Tipo de tarifa | C70: Enero | D70: Febrero | E70: Marzo | F70: Abril | G70: Mayo | H70: Junio | I70: Julio | J70: Agosto | K70: Septiembre | L70: Octubre | M70: Noviembre | N70: Diciembre
A71: Cargo energía base ($/kWh) | C71: 1.0925 | D71: 1.0863 | E71: 1.104 | F71: 1.1007 | G71: 1.1188 | H71: 1.1224 | I71: 1.1244 | J71: 1.1169 | K71: 1.0967 | L71: 1.0771 | M71: 1.0762 | N71: 1.0758
A72: Cargo energía int. ($/kWh) | C72: 1.8333 | D72: 1.822 | E72: 1.8542 | F72: 1.8481 | G72: 1.8809 | H72: 1.8875 | I72: 1.891 | J72: 1.8774 | K72: 1.841 | L72: 1.8053 | M72: 1.8037 | N72: 1.803
A73: Cargo energía punta ($/kWh) | C73: 2.0446 | D73: 2.0319 | E73: 2.0682 | F73: 2.0614 | G73: 2.0983 | H73: 2.1058 | I73: 2.1097 | J73: 2.0945 | K73: 2.0533 | L73: 2.0131 | M73: 2.0113 | N73: 2.0106
A74: Cargo fijo ($/mes) | C74: 512.44 | D74: 512.44 | E74: 512.44 | F74: 512.44 | G74: 512.44 | H74: 512.44 | I74: 512.44 | J74: 512.44 | K74: 512.44 | L74: 512.44 | M74: 512.44 | N74: 512.44
A75: Cargo por distribución ($/kW) | C75: 87.62 | D75: 87.62 | E75: 87.62 | F75: 87.62 | G75: 87.62 | H75: 87.62 | I75: 87.62 | J75: 87.62 | K75: 87.62 | L75: 87.62 | M75: 87.62 | N75: 87.62
A76: Cargo por capacidad ($/kW) | C76: 344.18 | D76: 341.83 | E76: 348.54 | F76: 347.27 | G76: 354.09 | H76: 355.47 | I76: 356.19 | J76: 353.38 | K76: 345.79 | L76: 338.36 | M76: 338.02 | N76: 337.89
A78: VII. Análisis de sensibilidad ante cambios en los cargos tarifarios
A80: Aumento anual esperado de los tarifas de suministro básico (%): | F80: 0.03 | G80: Un porcentaje de 3% indicará que cada año de operación todas las tarifas aumentarán 3% respecto al valor de los cargos del año anterior, mientras que un valor de -3% indicará que las tarifas disminuirán 3% cada año respecto a los cargos del año anterior.
A83: …............................................................................................................................................................................................................................................................................................................................................................................................................................................

Sheet 5.Costos
A1: 5. COSTOS
A3: I. Instrucciones
A5: 1. En esta sección se presentan costos promedio de inversión, operación y mantenimiento para centrales fotovoltaicas distribuidas. Los costos están clasificados por rangos y existen diferencias entre las plantas menores a 350 kW y aquellas con capacidad mayor o igual a 350kW debido a que en capacidades mayores resulta competitivo realizar estos servicios internamente mientras que en las plantas pequeñas es más económico subcontratar el servicio.
A6: 2. Si el usuario lo desea puede modificar los valores del rango o los rangos donde se encuentran las capacidades de planta que desea evaluar, calculando con sus propios datos el costo por kWp instalado aplicable al tamaño de su central.
A7: 3. El usuario también debe indicar el año en que seerán reemplazados los inversores de la central, los cuales tiene una vida útil menor a los demás componentes del sistema (el modelo viene precargado con el año 10). El costo de los inversores también puede ser modificado si el usuario así lo desea.
A9: II. Información sobre costos tipícos de inversión, operación y mantenimiento en proyectos fotovoltaicos por rango de capacidad instalada
A11: Costos promedio para centrales con capacidad menor a 350kWp | E11: Costos promedio para centrales distribuidas con capacidad mayor o igual a 350 kWp | L11: Información sobre inversores de reemplazo - aplicable a todas las capacidades
A12: Rango de capacidad instalada (kWp): | B12: Inversión ($/kWp) | C12: Operación y mantenimiento ($/kWp) | E12: Rango de capacidad instalada (kWp): | F12: Inversión ($/kWp) | G12: Póliza de seguro ($/kWp) | H12: Mtto. preventivo ($/año) | I12: Mtto. correctivo ($/año) | J12: Operaciones diarias ($/año) | L12: Equipo | M12: Año operativo de reemplazo | N12: Costo ($/kWp)
A13: 1.3* - 2.5 | B13: 36000 | C13: 615.385 | E13: 350.0 - 449.9 | F13: 16500 | G13: =F13*0.015 -> 247.5 | H13: 30000 | I13: 15000 | J13: 180000 | L13: Inversores | M13: 10 | N13: 1200
A14: 2.6 -3.8 | B14: 34000 | C14: 615.385 | E14: 450.0 - 499.9 | F14: 16000 | G14: =F14*0.015 -> 240 | H14: 30000 | I14: 15000 | J14: 180000
A15: 3.9 -5.1 | B15: 32000 | C15: 615.385 | F15: Cargos por kWp instalado | H15: Cargos fijos anuales
A16: 5.2 -6.4 | B16: 28000 | C16: 615.385
A17: 6.5 -29.9 | B17: 24000 | C17: 615.385
A18: 30.0 - 49.9 | B18: 21000 | C18: 615.385 | E18: Nota: Para las plantas con capacidad instalada menor a 350 kWp se considera un costo de $200.00 por panel, equivalente a $615.39 por kWp instalado. Este precio es otorgado por empresas que ofrecen este servicio. A partir de 350 kWp el costo de realizar las actividades de operación y mantenimiento internamente es competitivo con el costo de contratar un servicio externo. En plantas de capacidades mayores, realizar estas actividades con recursos propios aumentan las economías de escala, sumándose a las ya logradas en la compra e instalación del sistema. Por otro lado, contar con sistemas de seguridad y mantenimiento propios es generalmente un requisito para la contratación de primas de seguro que facilitan la obtención del financiamiento del proyecto mediante deuda. No obstante la decision final respecto a todos estos aspectos recae en la estrategia individual de cada empresa y estos datos deben tomarse únicamente como un panorama general.
A19: 50.0 - 99.9 | B19: 19000 | C19: 615.385
A20: 100.0 - 149.9 | B20: 18500 | C20: 615.385
A21: 150.0 - 199.9 | B21: 18000 | C21: 615.385
A22: 200.0 - 249.9 | B22: 17500 | C22: 615.385
A23: 250.0 - 299.9 | B23: 17250 | C23: 615.385
A24: 300.0 - 349.10 | B24: 17000 | C24: 615.385
A25: * 1.3 kWp es la capacidad mínima recomendable (4 paneles).
A27: III. Costos adicionales
A29: Costos administrativos y otros conceptos asociados al modelo de negocio de generación distribuida colectiva | E29: Desglose de "Otros conceptos"
A30: Año Operativo | B30: Costos administrativos ($/año) | C30: Otros conceptos ($/año) | E30: Concepto 1 | F30: Concepto 2 | G30: Concepto 3 | H30: Concepto 4
A31: 1 | B31: 0 | C31: =SUM(E31:H31) -> 0 | E31: 0 | F31: 0 | G31: 0 | H31: 0 | J31: Concepto 1: | K31: Describir.
A32: 2 | B32: 0 | C32: =SUM(E32:H32) -> 0 | E32: 0 | F32: 0 | G32: 0 | H32: 0 | J32: Concepto 2: | K32: Describir.
A33: 3 | B33: 0 | C33: 0 | E33: 0 | F33: 0 | G33: 0 | H33: 0 | J33: Concepto 3: | K33: Describir.
A34: 4 | B34: 0 | C34: 0 | E34: 0 | F34: 0 | G34: 0 | H34: 0 | J34: Concepto 4: | K34: Describir.
A35: 5 | B35: 0 | C35: 0 | E35: 0 | F35: 0 | G35: 0 | H35: 0
A36: 6 | B36: 0 | C36: 0 | E36: 0 | F36: 0 | G36: 0 | H36: 0
A37: 7 | B37: 0 | C37: 0 | E37: 0 | F37: 0 | G37: 0 | H37: 0
A38: 8 | B38: 0 | C38: 0 | E38: 0 | F38: 0 | G38: 0 | H38: 0
A39: 9 | B39: 0 | C39: 0 | E39: 0 | F39: 0 | G39: 0 | H39: 0
A40: 10 | B40: 0 | C40: 0 | E40: 0 | F40: 0 | G40: 0 | H40: 0
A41: 11 | B41: 0 | C41: 0 | E41: 0 | F41: 0 | G41: 0 | H41: 0
A42: 12 | B42: 0 | C42: 0 | E42: 0 | F42: 0 | G42: 0 | H42: 0
A43: 13 | B43: 0 | C43: 0 | E43: 0 | F43: 0 | G43: 0 | H43: 0
A44: 14 | B44: 0 | C44: 0 | E44: 0 | F44: 0 | G44: 0 | H44: 0
A45: 15 | B45: 0 | C45: 0 | E45: 0 | F45: 0 | G45: 0 | H45: 0
A46: 16 | B46: 0 | C46: 0 | E46: 0 | F46: 0 | G46: 0 | H46: 0
A47: 17 | B47: 0 | C47: 0 | E47: 0 | F47: 0 | G47: 0 | H47: 0
A48: 18 | B48: 0 | C48: 0 | E48: 0 | F48: 0 | G48: 0 | H48: 0
A49: 19 | B49: 0 | C49: 0 | E49: 0 | F49: 0 | G49: 0 | H49: 0
A50: 20 | B50: 0 | C50: 0 | E50: 0 | F50: 0 | G50: 0 | H50: 0
A52: IV. Glosario
A54: Año de reemplazo: Indica el año en el que se realizará la realizará la sustitución de los inversores originales por equipos nuevos.
A55: Costos administrativos: Costos administrativos asociados a la venta de energía tales como costos de facturación por la energía entregada al suministrador de servicios básicos.
A56: Otros conceptos: Cualquier otro concepto de gastos que genere el modelo de negocio a evaluar y que no esté considerada ya en las otras categorías.
A57: Mtto. correctivo: mantenimiento realizado para corregir el malfuncionamiento de la central causado por algún evento natural u otra causa. Se considera un evento por año de este tipo.
A58: Mtto. preventivo: mantenimiento preventivo, es decir, mantenimiento de rutina que debe realizarse para mantener la central de generación distribuida en condiciones óptimas de operación. Se consideran dos sesiones de mantenimiento preventivo al año.
A59: Operaciones diarias: considera la contratación de dos operadores para la realización de labores de vigilancia y limpieza de la central de generación distribuida.
A60: Rango de capacidad: Capacidad miníma y máxima a la que son aplicables los costos de inversión y de operación y mantenimiento presentados.
A62: …............................................................................................................................................................................................................................................................................................................................................................................................................................................

Sheet 6.Generación
A1: 6. GENERACIÓN
A3: I. Instrucciones
A5: 1. En la sección II se presentan los factores de pérdida de eficiencia del equipo fotovoltaico. En este caso el modelo se encuentra precargado con los valores que ofrece el fabricante para paneles monocristalino estándar y pueden ser modificados si el usuario así lo desea.
A6: 2. La sección III muestra un resumen de la curva de generación esperada de manera mensual, horaria y anual para la central distribuida. Estos datos no deben ser modificados pues son calculados automáticamente.
A7: 3. En la sección IV se presentan los datos de generación horaria en un año base, ajustados a megawatt-hora generados por cada kilowatt-pico instalado en el sitio donde se desarollará el proyecto. Estos valores pueden ser modificados si el proyecto a analizar será realizado fuera de Mérida, Yucatán, ya que los valores de radiación solar y factor de planta pueden variar.
A8: 4. El usuario debe proporcionar estos datos calculando la generación por kWp instalado en la columna "D", filas 50 a 8809, a o puede directamente poner los valores de generación esperada para cada hora del año para una central de la capacidad que deseee analizar en la columna "E" (en MWh). No obstante, la segunda opción tiene la desventaja de que para probar otras capacidades en el mismo sitio deberá volver a modificar la columna mientras que con el factor este cálculo se hará automáticamente.
A10: II. Factor de eficiencia de los módulos fotovoltaicos
B12: Pérdida de eficiencia esperada en los modulos fotovoltaicos durante el período analizado.
A13: Año | B13: 1 | C13: 2 | D13: 3 | E13: 4 | F13: 5 | G13: 6 | H13: 7 | I13: 8 | J13: 9 | K13: 10 | L13: 11 | M13: 12 | N13: 13 | O13: 14 | P13: 15 | Q13: 16 | R13: 17 | S13: 18 | T13: 19 | U13: 20
A14: Eficiencia (%) | B14: 0.975 | C14: 0.969 | D14: 0.963 | E14: 0.957 | F14: 0.951 | G14: 0.945 | H14: 0.939 | I14: 0.933 | J14: 0.927 | K14: 0.921 | L14: 0.915 | M14: 0.909 | N14: 0.903 | O14: 0.897 | P14: 0.891 | Q14: 0.885 | R14: 0.879 | S14: 0.873 | T14: 0.867 | U14: 0.861
A16: III. Generación esperada para un sistema fotoltaico con la capacidad indicada en las características del proyecto
A18: Generación mensual proyectada con eficiencia de 100% | F18: Generación promedio horaria con eficiencia de 100% | K18: Generación anual esperada durante el período analizado considerando los factores de pérdida de eficiencia
A19: Mes | B19: Energía generada (Mwh) | F19: ID | G19: Hora | H19: Energía generada (kWh) | L19: Año | M19: Energía generada (Mwh)
A20: Ene | B20: =SUM(E50:E793) -> 6.6502 | C20: MWh | F20: 0 | G20: 00:00:00 | H20: =(SUMIF($B$50:$B$8809, G20,$E$50:$E$8809)/COUNTIF($B$50:$B$8809, G20))*1000 -> 0 | I20: kWh | L20: 1 | M20: =$B$32*B14 -> 78.05737875 | N20: MWh
A21: Feb | B21: =SUM(E794:E1465) -> 6.9381 | C21: MWh | F21: 1 | G21: 01:00:00 | H21: =(SUMIF($B$50:$B$8809, G21,$E$50:$E$8809)/COUNTIF($B$50:$B$8809, G21))*1000 -> 0 | I21: kWh | L21: 2 | M21: =$B$32*C14 -> 77.57702565 | N21: MWh
A22: Marz | B22: =SUM(E1466:E2209) -> 7.81435 | C22: MWh | F22: 2 | G22: 02:00:00 | H22: 0 | I22: kWh | L22: 3 | M22: =$B$32*D14 -> 77.09667255 | N22: MWh
A23: Abr | B23: =SUM(E2210:E2929) -> 7.42145 | C23: MWh | F23: 3 | G23: 03:00:00 | H23: 0 | I23: kWh | L23: 4 | M23: =$B$32*E14 -> 76.61631945 | N23: MWh
A24: May | B24: =SUM(E2930:E3673) -> 7.1686 | C24: MWh | F24: 4 | G24: 04:00:00 | H24: 0 | I24: kWh | L24: 5 | M24: =$B$32*F14 -> 76.13596635 | N24: MWh
A25: Jun | B25: =SUM(E3674:E4393) -> 6.3295 | C25: MWh | F25: 5 | G25: 05:00:00 | H25: 0.04150684932 | I25: kWh | L25: 6 | M25: =$B$32*G14 -> 75.65561325 | N25: MWh
A26: Jul | B26: =SUM(E4394:E5137) -> 6.77155 | C26: MWh | F26: 6 | G26: 06:00:00 | H26: 2.28 | I26: kWh | L26: 7 | M26: =$B$32*H14 -> 75.17526015 | N26: MWh
A27: Ago | B27: =SUM(E5138:E5881) -> 6.48955 | C27: MWh | F27: 7 | G27: 07:00:00 | H27: 9.934109589 | I27: kWh | L27: 8 | M27: =$B$32*I14 -> 74.69490705 | N27: MWh
A28: Sept | B28: =SUM(E5882:E6601) -> 5.3415 | C28: MWh | F28: 8 | G28: 08:00:00 | H28: 17.85328767 | I28: kWh | L28: 9 | M28: =$B$32*J14 -> 74.21455395 | N28: MWh
A29: Oct | B29: =SUM(E6602:E7345) -> 5.8029 | C29: MWh | F29: 9 | G29: 09:00:00 | H29: 24.04219178 | I29: kWh | L29: 10 | M29: =$B$32*K14 -> 73.73420085 | N29: MWh
A30: Nov | B30: =SUM(E7346:E8065) -> 6.7575 | C30: MWh | F30: 10 | G30: 10:00:00 | H30: 28.24643836 | I30: kWh | L30: 11 | M30: =$B$32*L14 -> 73.25384775 | N30: MWh
A31: Dic | B31: =SUM(E8066:E8809) -> 6.57365 | C31: MWh | F31: 11 | G31: 11:00:00 | H31: 30.18123288 | I31: kWh | L31: 12 | M31: =$B$32*M14 -> 72.77349465 | N31: MWh
A32: ANUAL | B32: =SUM(B20:B31) -> 80.05885 | C32: MWh | F32: 12 | G32: 12:00:00 | H32: 29.93835616 | I32: kWh | L32: 13 | M32: =$B$32*N14 -> 72.29314155 | N32: MWh
D33: 13 | F33: 13 | G33: 13:00:00 | H33: 27.4930137 | I33: kWh | L33: 14 | M33: =$B$32*O14 -> 71.81278845 | N33: MWh
D34: 14 | F34: 14 | G34: 14:00:00 | H34: 22.94643836 | I34: kWh | L34: 15 | M34: =$B$32*P14 -> 71.33243535 | N34: MWh
D35: 15 | F35: 15 | G35: 15:00:00 | H35: 16.17835616 | I35: kWh | L35: 16 | M35: =$B$32*Q14 -> 70.85208225 | N35: MWh
D36: 16 | F36: 16 | G36: 16:00:00 | H36: 8.381369863 | I36: kWh | L36: 17 | M36: =$B$32*R14 -> 70.37172915 | N36: MWh
D37: 17 | F37: 17 | G37: 17:00:00 | H37: 1.799589041 | I37: kWh | L37: 18 | M37: =$B$32*S14 -> 69.89137605 | N37: MWh
D38: 18 | F38: 18 | G38: 18:00:00 | H38: 0.02342465753 | I38: kWh | L38: 19 | M38: =$B$32*T14 -> 69.41102295 | N38: MWh
D39: 19 | F39: 19 | G39: 19:00:00 | H39: 0 | I39: kWh | L39: 20 | M39: =$B$32*U14 -> 68.93066985 | N39: MWh
D40: 20 | F40: 20 | G40: 20:00:00 | H40: 0 | I40: kWh
D41: 21 | F41: 21 | G41: 21:00:00 | H41: 0 | I41: kWh
D42: 22 | F42: 22 | G42: 22:00:00 | H42: 0 | I42: kWh
D43: 23 | F43: 23 | G43: 23:00:00 | H43: 0 | I43: kWh
A46: IV. Datos para la curva de generación horaria en el sitio donde se localizará el proyecto
A48: Marca de tiempo | C48: Hora (número) | D48: Factor (MWh/kWp) | E48: Generación (MWh)
A49: Día | B49: Hora
A50: 2019-01-01 | B50: 00:00:00 | C50: 1 | D50: 0 | E50: =D50*'2.Proyecto'!$E$18 -> 0
A51: 2014-01-01T01:00:00 | B51: 01:00:00 | C51: 2 | D51: 0 | E51: =D51*'2.Proyecto'!$E$18 -> 0
A52: 2014-01-01T02:00:00 | B52: 02:00:00 | C52: 3 | D52: 0 | E52: =D52*'2.Proyecto'!$E$18 -> 0
A53: 2014-01-01T03:00:00.005 | B53: 03:00:00 | C53: 4 | D53: 0 | E53: =D53*'2.Proyecto'!$E$18 -> 0
A54: 2014-01-01T04:00:00.010 | B54: 04:00:00 | C54: 5 | D54: 0 | E54: =D54*'2.Proyecto'!$E$18 -> 0
A55: 2014-01-01T05:00:00.015 | B55: 05:00:00 | C55: 6 | D55: 0 | E55: =D55*'2.Proyecto'!$E$18 -> 0
A56: 2014-01-01T06:00:00.020 | B56: 06:00:00 | C56: 7 | D56: 2e-06 | E56: =D56*'2.Proyecto'!$E$18 -> 0.0001
A57: 2014-01-01T07:00:00.025 | B57: 07:00:00 | C57: 8 | D57: 0.000163 | E57: =D57*'2.Proyecto'!$E$18 -> 0.00815
A58: 2014-01-01T08:00:00.030 | B58: 08:00:00 | C58: 9 | D58: 0.000379 | E58: =D58*'2.Proyecto'!$E$18 -> 0.01895
A59: 2014-01-01T09:00:00.035 | B59: 09:00:00 | C59: 10 | D59: 0.000531 | E59: =D59*'2.Proyecto'!$E$18 -> 0.02655
A60: 2014-01-01T10:00:00.040 | B60: 10:00:00 | C60: 11 | D60: 0.000622 | E60: =D60*'2.Proyecto'!$E$18 -> 0.0311
A61: 2014-01-01T11:00:00.045 | B61: 11:00:00 | C61: 12 | D61: 0.000667 | E61: =D61*'2.Proyecto'!$E$18 -> 0.03335
A62: 2014-01-01T12:00:00.050 | B62: 12:00:00 | C62: 13 | D62: 0.000661 | E62: =D62*'2.Proyecto'!$E$18 -> 0.03305
A63: 2014-01-01T13:00:00.055 | B63: 13:00:00 | C63: 14 | D63: 0.00061 | E63: =D63*'2.Proyecto'!$E$18 -> 0.0305
A64: 2014-01-01T14:00:00.060 | B64: 14:00:00 | C64: 15 | D64: 0.000508 | E64: =D64*'2.Proyecto'!$E$18 -> 0.0254
A65: 2014-01-01T15:00:00.065 | B65: 15:00:00 | C65: 16 | D65: 0.000341 | E65: =D65*'2.Proyecto'!$E$18 -> 0.01705
A66: 2014-01-01T16:00:00.070 | B66: 16:00:00 | C66: 17 | D66: 0.000107 | E66: =D66*'2.Proyecto'!$E$18 -> 0.00535
A67: 2014-01-01T17:00:00.075 | B67: 17:00:00 | C67: 18 | D67: 0 | E67: =D67*'2.Proyecto'!$E$18 -> 0
A68: 2014-01-01T18:00:00.080 | B68: 18:00:00 | C68: 19 | D68: 0 | E68: =D68*'2.Proyecto'!$E$18 -> 0
A69: 2014-01-01T19:00:00.085 | B69: 19:00:00 | C69: 20 | D69: 0 | E69: =D69*'2.Proyecto'!$E$18 -> 0
A70: 2014-01-01T20:00:00.090 | B70: 20:00:00 | C70: 21 | D70: 0 | E70: =D70*'2.Proyecto'!$E$18 -> 0
A71: 2014-01-01T21:00:00.095 | B71: 21:00:00 | C71: 22 | D71: 0 | E71: =D71*'2.Proyecto'!$E$18 -> 0
A72: 2014-01-01T22:00:00.100 | B72: 22:00:00 | C72: 23 | D72: 0 | E72: =D72*'2.Proyecto'!$E$18 -> 0
A73: 2014-01-01T23:00:00.105 | B73: 23:00:00 | C73: 24 | D73: 0 | E73: =D73*'2.Proyecto'!$E$18 -> 0
A74: 2014-01-02T00:00:00.110 | B74: 00:00:00 | C74: 25 | D74: 0 | E74: =D74*'2.Proyecto'!$E$18 -> 0
A75: 2014-01-02T01:00:00.115 | B75: 01:00:00 | C75: 26 | D75: 0 | E75: =D75*'2.Proyecto'!$E$18 -> 0
A76: 2014-01-02T02:00:00.120 | B76: 02:00:00 | C76: 27 | D76: 0 | E76: =D76*'2.Proyecto'!$E$18 -> 0
A77: 2014-01-02T03:00:00.125 | B77: 03:00:00 | C77: 28 | D77: 0 | E77: =D77*'2.Proyecto'!$E$18 -> 0
A78: 2014-01-02T04:00:00.130 | B78: 04:00:00 | C78: 29 | D78: 0 | E78: =D78*'2.Proyecto'!$E$18 -> 0
A79: 2014-01-02T05:00:00.135 | B79: 05:00:00 | C79: 30 | D79: 0 | E79: =D79*'2.Proyecto'!$E$18 -> 0
A80: 2014-01-02T06:00:00.140 | B80: 06:00:00 | C80: 31 | D80: 3e-06 | E80: =D80*'2.Proyecto'!$E$18 -> 0.00015
A81: 2014-01-02T07:00:00.145 | B81: 07:00:00 | C81: 32 | D81: 0.000191 | E81: =D81*'2.Proyecto'!$E$18 -> 0.00955
A82: 2014-01-02T08:00:00.150 | B82: 08:00:00 | C82: 33 | D82: 0.000388 | E82: =D82*'2.Proyecto'!$E$18 -> 0.0194
A83: 2014-01-02T09:00:00.155 | B83: 09:00:00 | C83: 34 | D83: 0.00053 | E83: =D83*'2.Proyecto'!$E$18 -> 0.0265
A84: 2014-01-02T10:00:00.160 | B84: 10:00:00 | C84: 35 | D84: 0.00062 | E84: =D84*'2.Proyecto'!$E$18 -> 0.031
A85: 2014-01-02T11:00:00.165 | B85: 11:00:00 | C85: 36 | D85: 0.000664 | E85: =D85*'2.Proyecto'!$E$18 -> 0.0332
A86: 2014-01-02T12:00:00.170 | B86: 12:00:00 | C86: 37 | D86: 0.000661 | E86: =D86*'2.Proyecto'!$E$18 -> 0.03305
A87: 2014-01-02T13:00:00.175 | B87: 13:00:00 | C87: 38 | D87: 0.000614 | E87: =D87*'2.Proyecto'!$E$18 -> 0.0307
A88: 2014-01-02T14:00:00.180 | B88: 14:00:00 | C88: 39 | D88: 0.000515 | E88: =D88*'2.Proyecto'!$E$18 -> 0.02575
A89: 2014-01-02T15:00:00.185 | B89: 15:00:00 | C89: 40 | D89: 0.000354 | E89: =D89*'2.Proyecto'!$E$18 -> 0.0177
A90: 2014-01-02T16:00:00.190 | B90: 16:00:00 | C90: 41 | D90: 0.000137 | E90: =D90*'2.Proyecto'!$E$18 -> 0.00685
A91: 2014-01-02T17:00:00.195 | B91: 17:00:00 | C91: 42 | D91: 1e-06 | E91: =D91*'2.Proyecto'!$E$18 -> 5e-05
A92: 2014-01-02T18:00:00.200 | B92: 18:00:00 | C92: 43 | D92: 0 | E92: =D92*'2.Proyecto'!$E$18 -> 0
A93: 2014-01-02T19:00:00.205 | B93: 19:00:00 | C93: 44 | D93: 0 | E93: =D93*'2.Proyecto'!$E$18 -> 0
A94: 2014-01-02T20:00:00.210 | B94: 20:00:00 | C94: 45 | D94: 0 | E94: =D94*'2.Proyecto'!$E$18 -> 0
A95: 2014-01-02T21:00:00.215 | B95: 21:00:00 | C95: 46 | D95: 0 | E95: =D95*'2.Proyecto'!$E$18 -> 0
A96: 2014-01-02T22:00:00.220 | B96: 22:00:00 | C96: 47 | D96: 0 | E96: =D96*'2.Proyecto'!$E$18 -> 0
A97: 2014-01-02T23:00:00.225 | B97: 23:00:00 | C97: 48 | D97: 0 | E97: =D97*'2.Proyecto'!$E$18 -> 0
A98: 2014-01-03T00:00:00.230 | B98: 00:00:00 | C98: 49 | D98: 0 | E98: =D98*'2.Proyecto'!$E$18 -> 0
A99: 2014-01-03T01:00:00.235 | B99: 01:00:00 | C99: 50 | D99: 0 | E99: =D99*'2.Proyecto'!$E$18 -> 0
A100: 2014-01-03T02:00:00.240 | B100: 02:00:00 | C100: 51 | D100: 0 | E100: =D100*'2.Proyecto'!$E$18 -> 0
A101: 2014-01-03T03:00:00.245 | B101: 03:00:00 | C101: 52 | D101: 0 | E101: =D101*'2.Proyecto'!$E$18 -> 0
A102: 2014-01-03T04:00:00.250 | B102: 04:00:00 | C102: 53 | D102: 0 | E102: =D102*'2.Proyecto'!$E$18 -> 0
A103: 2014-01-03T05:00:00.255 | B103: 05:00:00 | C103: 54 | D103: 0 | E103: =D103*'2.Proyecto'!$E$18 -> 0
A104: 2014-01-03T06:00:00.260 | B104: 06:00:00 | C104: 55 | D104: 0 | E104: =D104*'2.Proyecto'!$E$18 -> 0
A105: 2014-01-03T07:00:00.265 | B105: 07:00:00 | C105: 56 | D105: 7.4e-05 | E105: =D105*'2.Proyecto'!$E$18 -> 0.0037
A106: 2014-01-03T08:00:00.270 | B106: 08:00:00 | C106: 57 | D106: 0.000209 | E106: =D106*'2.Proyecto'!$E$18 -> 0.01045
A107: 2014-01-03T09:00:00.275 | B107: 09:00:00 | C107: 58 | D107: 0.00037 | E107: =D107*'2.Proyecto'!$E$18 -> 0.0185
A108: 2014-01-03T10:00:00.280 | B108: 10:00:00 | C108: 59 | D108: 0.000483 | E108: =D108*'2.Proyecto'!$E$18 -> 0.02415
A109: 2014-01-03T11:00:00.285 | B109: 11:00:00 | C109: 60 | D109: 0.000476 | E109: =D109*'2.Proyecto'!$E$18 -> 0.0238
A110: 2014-01-03T12:00:00.290 | B110: 12:00:00 | C110: 61 | D110: 0.000433 | E110: =D110*'2.Proyecto'!$E$18 -> 0.02165
A111: 2014-01-03T13:00:00.295 | B111: 13:00:00 | C111: 62 | D111: 0.00037 | E111: =D111*'2.Proyecto'!$E$18 -> 0.0185
A112: 2014-01-03T14:00:00.300 | B112: 14:00:00 | C112: 63 | D112: 0.000299 | E112: =D112*'2.Proyecto'!$E$18 -> 0.01495
A113: 2014-01-03T15:00:00.305 | B113: 15:00:00 | C113: 64 | D113: 0.000201 | E113: =D113*'2.Proyecto'!$E$18 -> 0.01005
A114: 2014-01-03T16:00:00.310 | B114: 16:00:00 | C114: 65 | D114: 8e-05 | E114: =D114*'2.Proyecto'!$E$18 -> 0.004
A115: 2014-01-03T17:00:00.315 | B115: 17:00:00 | C115: 66 | D115: 0 | E115: =D115*'2.Proyecto'!$E$18 -> 0
A116: 2014-01-03T18:00:00.320 | B116: 18:00:00 | C116: 67 | D116: 0 | E116: =D116*'2.Proyecto'!$E$18 -> 0
A117: 2014-01-03T19:00:00.325 | B117: 19:00:00 | C117: 68 | D117: 0 | E117: =D117*'2.Proyecto'!$E$18 -> 0
A118: 2014-01-03T20:00:00.330 | B118: 20:00:00 | C118: 69 | D118: 0 | E118: =D118*'2.Proyecto'!$E$18 -> 0
A119: 2014-01-03T21:00:00.335 | B119: 21:00:00 | C119: 70 | D119: 0 | E119: =D119*'2.Proyecto'!$E$18 -> 0
A120: 2014-01-03T22:00:00.340 | B120: 22:00:00 | C120: 71 | D120: 0 | E120: =D120*'2.Proyecto'!$E$18 -> 0
A121: 2014-01-03T23:00:00.345 | B121: 23:00:00 | C121: 72 | D121: 0 | E121: =D121*'2.Proyecto'!$E$18 -> 0
A122: 2014-01-04T00:00:00.350 | B122: 00:00:00 | C122: 73 | D122: 0 | E122: =D122*'2.Proyecto'!$E$18 -> 0
A123: 2014-01-04T01:00:00.355 | B123: 01:00:00 | C123: 74 | D123: 0 | E123: =D123*'2.Proyecto'!$E$18 -> 0
A124: 2014-01-04T02:00:00.360 | B124: 02:00:00 | C124: 75 | D124: 0 | E124: =D124*'2.Proyecto'!$E$18 -> 0
A125: 2014-01-04T03:00:00.365 | B125: 03:00:00 | C125: 76 | D125: 0 | E125: =D125*'2.Proyecto'!$E$18 -> 0
A126: 2014-01-04T04:00:00.370 | B126: 04:00:00 | C126: 77 | D126: 0 | E126: =D126*'2.Proyecto'!$E$18 -> 0
A127: 2014-01-04T05:00:00.375 | B127: 05:00:00 | C127: 78 | D127: 0 | E127: =D127*'2.Proyecto'!$E$18 -> 0
A128: 2014-01-04T06:00:00.380 | B128: 06:00:00 | C128: 79 | D128: 1e-06 | E128: =D128*'2.Proyecto'!$E$18 -> 5e-05
A129: 2014-01-04T07:00:00.385 | B129: 07:00:00 | C129: 80 | D129: 0.000106 | E129: =D129*'2.Proyecto'!$E$18 -> 0.0053
A130: 2014-01-04T08:00:00.390 | B130: 08:00:00 | C130: 81 | D130: 0.000279 | E130: =D130*'2.Proyecto'!$E$18 -> 0.01395
A131: 2014-01-04T09:00:00.395 | B131: 09:00:00 | C131: 82 | D131: 0.000432 | E131: =D131*'2.Proyecto'!$E$18 -> 0.0216
A132: 2014-01-04T10:00:00.400 | B132: 10:00:00 | C132: 83 | D132: 0.000533 | E132: =D132*'2.Proyecto'!$E$18 -> 0.02665
A133: 2014-01-04T11:00:00.405 | B133: 11:00:00 | C133: 84 | D133: 0.000575 | E133: =D133*'2.Proyecto'!$E$18 -> 0.02875
A134: 2014-01-04T12:00:00.410 | B134: 12:00:00 | C134: 85 | D134: 0.000559 | E134: =D134*'2.Proyecto'!$E$18 -> 0.02795
A135: 2014-01-04T13:00:00.415 | B135: 13:00:00 | C135: 86 | D135: 0.000503 | E135: =D135*'2.Proyecto'!$E$18 -> 0.02515
A136: 2014-01-04T14:00:00.420 | B136: 14:00:00 | C136: 87 | D136: 0.000364 | E136: =D136*'2.Proyecto'!$E$18 -> 0.0182
A137: 2014-01-04T15:00:00.425 | B137: 15:00:00 | C137: 88 | D137: 0.00023 | E137: =D137*'2.Proyecto'!$E$18 -> 0.0115
A138: 2014-01-04T16:00:00.430 | B138: 16:00:00 | C138: 89 | D138: 8.1e-05 | E138: =D138*'2.Proyecto'!$E$18 -> 0.00405
A139: 2014-01-04T17:00:00.435 | B139: 17:00:00 | C139: 90 | D139: 0 | E139: =D139*'2.Proyecto'!$E$18 -> 0
A140: 2014-01-04T18:00:00.440 | B140: 18:00:00 | C140: 91 | D140: 0 | E140: =D140*'2.Proyecto'!$E$18 -> 0
A141: 2014-01-04T19:00:00.445 | B141: 19:00:00 | C141: 92 | D141: 0 | E141: =D141*'2.Proyecto'!$E$18 -> 0
A142: 2014-01-04T20:00:00.450 | B142: 20:00:00 | C142: 93 | D142: 0 | E142: =D142*'2.Proyecto'!$E$18 -> 0
A143: 2014-01-04T21:00:00.455 | B143: 21:00:00 | C143: 94 | D143: 0 | E143: =D143*'2.Proyecto'!$E$18 -> 0
A144: 2014-01-04T22:00:00.460 | B144: 22:00:00 | C144: 95 | D144: 0 | E144: =D144*'2.Proyecto'!$E$18 -> 0
A145: 2014-01-04T23:00:00.465 | B145: 23:00:00 | C145: 96 | D145: 0 | E145: =D145*'2.Proyecto'!$E$18 -> 0
A146: 2014-01-05T00:00:00.470 | B146: 00:00:00 | C146: 97 | D146: 0 | E146: =D146*'2.Proyecto'!$E$18 -> 0
A147: 2014-01-05T01:00:00.475 | B147: 01:00:00 | C147: 98 | D147: 0 | E147: =D147*'2.Proyecto'!$E$18 -> 0
A148: 2014-01-05T02:00:00.480 | B148: 02:00:00 | C148: 99 | D148: 0 | E148: =D148*'2.Proyecto'!$E$18 -> 0
A149: 2014-01-05T03:00:00.485 | B149: 03:00:00 | C149: 100 | D149: 0 | E149: =D149*'2.Proyecto'!$E$18 -> 0
A150: 2014-01-05T04:00:00.490 | B150: 04:00:00 | C150: 101 | D150: 0 | E150: =D150*'2.Proyecto'!$E$18 -> 0
A151: 2014-01-05T05:00:00.495 | B151: 05:00:00 | C151: 102 | D151: 0 | E151: =D151*'2.Proyecto'!$E$18 -> 0
A152: 2014-01-05T06:00:00.500 | B152: 06:00:00 | C152: 103 | D152: 3e-06 | E152: =D152*'2.Proyecto'!$E$18 -> 0.00015
A153: 2014-01-05T07:00:00.505 | B153: 07:00:00 | C153: 104 | D153: 0.000169 | E153: =D153*'2.Proyecto'!$E$18 -> 0.00845
A154: 2014-01-05T08:00:00.510 | B154: 08:00:00 | C154: 105 | D154: 0.000363 | E154: =D154*'2.Proyecto'!$E$18 -> 0.01815
A155: 2014-01-05T09:00:00.515 | B155: 09:00:00 | C155: 106 | D155: 0.00054 | E155: =D155*'2.Proyecto'!$E$18 -> 0.027
A156: 2014-01-05T10:00:00.520 | B156: 10:00:00 | C156: 107 | D156: 0.00064 | E156: =D156*'2.Proyecto'!$E$18 -> 0.032
A157: 2014-01-05T11:00:00.525 | B157: 11:00:00 | C157: 108 | D157: 0.000682 | E157: =D157*'2.Proyecto'!$E$18 -> 0.0341
A158: 2014-01-05T12:00:00.530 | B158: 12:00:00 | C158: 109 | D158: 0.00067 | E158: =D158*'2.Proyecto'!$E$18 -> 0.0335
A159: 2014-01-05T13:00:00.535 | B159: 13:00:00 | C159: 110 | D159: 0.000609 | E159: =D159*'2.Proyecto'!$E$18 -> 0.03045
A160: 2014-01-05T14:00:00.540 | B160: 14:00:00 | C160: 111 | D160: 0.000504 | E160: =D160*'2.Proyecto'!$E$18 -> 0.0252
A161: 2014-01-05T15:00:00.545 | B161: 15:00:00 | C161: 112 | D161: 0.000298 | E161: =D161*'2.Proyecto'!$E$18 -> 0.0149
A162: 2014-01-05T16:00:00.550 | B162: 16:00:00 | C162: 113 | D162: 0.000127 | E162: =D162*'2.Proyecto'!$E$18 -> 0.00635
A163: 2014-01-05T17:00:00.555 | B163: 17:00:00 | C163: 114 | D163: 1e-06 | E163: =D163*'2.Proyecto'!$E$18 -> 5e-05
A164: 2014-01-05T18:00:00.560 | B164: 18:00:00 | C164: 115 | D164: 0 | E164: =D164*'2.Proyecto'!$E$18 -> 0
A165: 2014-01-05T19:00:00.565 | B165: 19:00:00 | C165: 116 | D165: 0 | E165: =D165*'2.Proyecto'!$E$18 -> 0
A166: 2014-01-05T20:00:00.570 | B166: 20:00:00 | C166: 117 | D166: 0 | E166: =D166*'2.Proyecto'!$E$18 -> 0
A167: 2014-01-05T21:00:00.575 | B167: 21:00:00 | C167: 118 | D167: 0 | E167: =D167*'2.Proyecto'!$E$18 -> 0
A168: 2014-01-05T22:00:00.580 | B168: 22:00:00 | C168: 119 | D168: 0 | E168: =D168*'2.Proyecto'!$E$18 -> 0
A169: 2014-01-05T23:00:00.585 | B169: 23:00:00 | C169: 120 | D169: 0 | E169: =D169*'2.Proyecto'!$E$18 -> 0
A170: 2014-01-06T00:00:00.590 | B170: 00:00:00 | C170: 121 | D170: 0 | E170: =D170*'2.Proyecto'!$E$18 -> 0
A171: 2014-01-06T01:00:00.595 | B171: 01:00:00 | C171: 122 | D171: 0 | E171: =D171*'2.Proyecto'!$E$18 -> 0
A172: 2014-01-06T02:00:00.600 | B172: 02:00:00 | C172: 123 | D172: 0 | E172: =D172*'2.Proyecto'!$E$18 -> 0
A173: 2014-01-06T03:00:00.605 | B173: 03:00:00 | C173: 124 | D173: 0 | E173: =D173*'2.Proyecto'!$E$18 -> 0
A174: 2014-01-06T04:00:00.610 | B174: 04:00:00 | C174: 125 | D174: 0 | E174: =D174*'2.Proyecto'!$E$18 -> 0
A175: 2014-01-06T05:00:00.615 | B175: 05:00:00 | C175: 126 | D175: 0 | E175: =D175*'2.Proyecto'!$E$18 -> 0
A176: 2014-01-06T06:00:00.620 | B176: 06:00:00 | C176: 127 | D176: 3e-06 | E176: =D176*'2.Proyecto'!$E$18 -> 0.00015
A177: 2014-01-06T07:00:00.625 | B177: 07:00:00 | C177: 128 | D177: 0.000168 | E177: =D177*'2.Proyecto'!$E$18 -> 0.0084
A178: 2014-01-06T08:00:00.630 | B178: 08:00:00 | C178: 129 | D178: 0.000358 | E178: =D178*'2.Proyecto'!$E$18 -> 0.0179
A179: 2014-01-06T09:00:00.635 | B179: 09:00:00 | C179: 130 | D179: 0.000513 | E179: =D179*'2.Proyecto'!$E$18 -> 0.02565
A180: 2014-01-06T10:00:00.640 | B180: 10:00:00 | C180: 131 | D180: 0.000611 | E180: =D180*'2.Proyecto'!$E$18 -> 0.03055
A181: 2014-01-06T11:00:00.645 | B181: 11:00:00 | C181: 132 | D181: 0.000644 | E181: =D181*'2.Proyecto'!$E$18 -> 0.0322
A182: 2014-01-06T12:00:00.650 | B182: 12:00:00 | C182: 133 | D182: 0.000633 | E182: =D182*'2.Proyecto'!$E$18 -> 0.03165
A183: 2014-01-06T13:00:00.655 | B183: 13:00:00 | C183: 134 | D183: 0.000555 | E183: =D183*'2.Proyecto'!$E$18 -> 0.02775
A184: 2014-01-06T14:00:00.660 | B184: 14:00:00 | C184: 135 | D184: 0.000389 | E184: =D184*'2.Proyecto'!$E$18 -> 0.01945
A185: 2014-01-06T15:00:00.665 | B185: 15:00:00 | C185: 136 | D185: 0.000194 | E185: =D185*'2.Proyecto'!$E$18 -> 0.0097
A186: 2014-01-06T16:00:00.670 | B186: 16:00:00 | C186: 137 | D186: 7.6e-05 | E186: =D186*'2.Proyecto'!$E$18 -> 0.0038
A187: 2014-01-06T17:00:00.675 | B187: 17:00:00 | C187: 138 | D187: 0 | E187: =D187*'2.Proyecto'!$E$18 -> 0
A188: 2014-01-06T18:00:00.680 | B188: 18:00:00 | C188: 139 | D188: 0 | E188: =D188*'2.Proyecto'!$E$18 -> 0
A189: 2014-01-06T19:00:00.685 | B189: 19:00:00 | C189: 140 | D189: 0 | E189: =D189*'2.Proyecto'!$E$18 -> 0
A190: 2014-01-06T20:00:00.690 | B190: 20:00:00 | C190: 141 | D190: 0 | E190: =D190*'2.Proyecto'!$E$18 -> 0
A191: 2014-01-06T21:00:00.695 | B191: 21:00:00 | C191: 142 | D191: 0 | E191: =D191*'2.Proyecto'!$E$18 -> 0
A192: 2014-01-06T22:00:00.700 | B192: 22:00:00 | C192: 143 | D192: 0 | E192: =D192*'2.Proyecto'!$E$18 -> 0
A193: 2014-01-06T23:00:00.705 | B193: 23:00:00 | C193: 144 | D193: 0 | E193: =D193*'2.Proyecto'!$E$18 -> 0
A194: 2014-01-07T00:00:00.710 | B194: 00:00:00 | C194: 145 | D194: 0 | E194: =D194*'2.Proyecto'!$E$18 -> 0
A195: 2014-01-07T01:00:00.715 | B195: 01:00:00 | C195: 146 | D195: 0 | E195: =D195*'2.Proyecto'!$E$18 -> 0
A196: 2014-01-07T02:00:00.720 | B196: 02:00:00 | C196: 147 | D196: 0 | E196: =D196*'2.Proyecto'!$E$18 -> 0
A197: 2014-01-07T03:00:00.725 | B197: 03:00:00 | C197: 148 | D197: 0 | E197: =D197*'2.Proyecto'!$E$18 -> 0
A198: 2014-01-07T04:00:00.730 | B198: 04:00:00 | C198: 149 | D198: 0 | E198: =D198*'2.Proyecto'!$E$18 -> 0
A199: 2014-01-07T05:00:00.735 | B199: 05:00:00 | C199: 150 | D199: 0 | E199: =D199*'2.Proyecto'!$E$18 -> 0
A200: 2014-01-07T06:00:00.740 | B200: 06:00:00 | C200: 151 | D200: 0 | E200: =D200*'2.Proyecto'!$E$18 -> 0
A201: 2014-01-07T07:00:00.745 | B201: 07:00:00 | C201: 152 | D201: 6.8e-05 | E201: =D201*'2.Proyecto'!$E$18 -> 0.0034
A202: 2014-01-07T08:00:00.750 | B202: 08:00:00 | C202: 153 | D202: 0.000157 | E202: =D202*'2.Proyecto'!$E$18 -> 0.00785
A203: 2014-01-07T09:00:00.755 | B203: 09:00:00 | C203: 154 | D203: 0.000242 | E203: =D203*'2.Proyecto'!$E$18 -> 0.0121
A204: 2014-01-07T10:00:00.760 | B204: 10:00:00 | C204: 155 | D204: 0.000362 | E204: =D204*'2.Proyecto'!$E$18 -> 0.0181
A205: 2014-01-07T11:00:00.765 | B205: 11:00:00 | C205: 156 | D205: 0.000301 | E205: =D205*'2.Proyecto'!$E$18 -> 0.01505
A206: 2014-01-07T12:00:00.770 | B206: 12:00:00 | C206: 157 | D206: 0.000299 | E206: =D206*'2.Proyecto'!$E$18 -> 0.01495
A207: 2014-01-07T13:00:00.775 | B207: 13:00:00 | C207: 158 | D207: 0.000295 | E207: =D207*'2.Proyecto'!$E$18 -> 0.01475
A208: 2014-01-07T14:00:00.780 | B208: 14:00:00 | C208: 159 | D208: 0.000251 | E208: =D208*'2.Proyecto'!$E$18 -> 0.01255
A209: 2014-01-07T15:00:00.785 | B209: 15:00:00 | C209: 160 | D209: 0.000108 | E209: =D209*'2.Proyecto'!$E$18 -> 0.0054
... 8601 more rows

Sheet 7.PML
A1: 7. PRECIOS MARGINALES LOCALES (PML)
A3: I. Instrucciones
A5: 1. Agregar los pronósticos de PML para cada hora de los 21 años a evaluar. Puedes descargas los PML del nodo que evaluarás utilizando el código de Python disponible junto con esta plantilla o directo de la página de CENACE (ver pestaña "1.Inicio").
A10: II. PML para el nodo donde se ubicará la central de generación distribuida
A12: Precios Marginales Locales (PML) proyectados para todo el período analizado en pesos mexicanos por megawatt-hora ($/MWh)
A13: Marca de tiempo | B13: Hora (número) | C13: Año 1 | D13: Año 2 | E13: Año 3 | F13: Año 4 | G13: Año 5 | H13: Año 6 | I13: Año 7 | J13: Año 8 | K13: Año 9 | L13: Año 10 | M13: Año 11 | N13: Año 12 | O13: Año 13 | P13: Año 14 | Q13: Año 15 | R13: Año 16 | S13: Año 17 | T13: Año 18 | U13: Año 19 | V13: Año 20 | W13: Año 21
A14: 2019-01-01 | B14: 1 | C14: 1057.021606 | D14: 1258.023682 | E14: 1101.695435 | F14: 1153.783325 | G14: 1231.491089 | H14: 1274.311035 | I14: 1152.560913 | J14: 1333.242798 | K14: 1439.569946 | L14: 1424.006836 | M14: 1453.519775 | N14: 1520.3125 | O14: 1586.998657 | P14: 1579.642822 | Q14: 1562.138306 | R14: 1599.87146 | S14: 1612.852905 | T14: 1545.894409 | U14: 1447.36499 | V14: 1505.017456 | W14: 1542.200244
A15: 2014-01-01T01:00:00 | B15: 2 | C15: 973.0379639 | D15: 906.9069214 | E15: 1023.931702 | F15: 1050.397583 | G15: 1237.425049 | H15: 1150.470703 | I15: 1152.381226 | J15: 1330.692749 | K15: 1306.897583 | L15: 1371.335083 | M15: 1411.615845 | N15: 1492.438599 | O15: 1550.129639 | P15: 1545.524048 | Q15: 1584.943237 | R15: 1608.704468 | S15: 1611.002319 | T15: 1555.574585 | U15: 1496.277222 | V15: 1572.328247 | W15: 1568.777368
A16: 2014-01-01T02:00:00 | B16: 3 | C16: 882.7366943 | D16: 897.0629883 | E16: 952.5003662 | F16: 942.4589844 | G16: 1100.865845 | H16: 1107.527832 | I16: 1094.775269 | J16: 1304.808838 | K16: 1281.234009 | L16: 1331.346558 | M16: 1353.478149 | N16: 1421.981567 | O16: 1513.08728 | P16: 1512.490601 | Q16: 1553.071167 | R16: 1595.927124 | S16: 1610.694458 | T16: 1564.267578 | U16: 1495.134399 | V16: 1584.132202 | W16: 1570.031152
A17: 2014-01-01T03:00:00.005 | B17: 4 | C17: 850.4327393 | D17: 922.0791016 | E17: 948.2332153 | F17: 863.0602417 | G17: 1053.511841 | H17: 1025.403442 | I17: 1007.228516 | J17: 1253.923828 | K17: 1252.993164 | L17: 1300.565796 | M17: 1325.079102 | N17: 1381.611938 | O17: 1464.203857 | P17: 1462.942749 | Q17: 1509.497681 | R17: 1570.131226 | S17: 1591.618042 | T17: 1556.610718 | U17: 1490.292725 | V17: 1580.256836 | W17: 1557.781909
A18: 2014-01-01T04:00:00.010 | B18: 5 | C18: 831.1467896 | D18: 976.892334 | E18: 950.8521118 | F18: 852.9493408 | G18: 1043.958618 | H18: 994.0144043 | I18: 939.6743164 | J18: 1206.563965 | K18: 1192.601929 | L18: 1256.163574 | M18: 1294.424561 | N18: 1361.099854 | O18: 1429.660034 | P18: 1426.480835 | Q18: 1468.55957 | R18: 1536.425781 | S18: 1561.545166 | T18: 1537.316406 | U18: 1473.980225 | V18: 1569.19519 | W18: 1535.692554
A19: 2014-01-01T05:00:00.015 | B19: 6 | C19: 817.4082642 | D19: 1027.447388 | E19: 953.6345215 | F19: 861.9806519 | G19: 1062.917358 | H19: 993.2369995 | I19: 920.9761353 | J19: 1183.037231 | K19: 1156.947021 | L19: 1211.963745 | M19: 1252.782837 | N19: 1325.19104 | O19: 1398.716675 | P19: 1400.839355 | Q19: 1442.736328 | R19: 1511.561646 | S19: 1535.001709 | T19: 1514.632935 | U19: 1452.539185 | V19: 1550.754517 | W19: 1512.897998
A20: 2014-01-01T06:00:00.020 | B20: 7 | C20: 811.4121704 | D20: 1068.681885 | E20: 953.9074097 | F20: 874.6799927 | G20: 1084.206299 | H20: 1002.038696 | I20: 932.4262085 | J20: 1183.857422 | K20: 1153.956177 | L20: 1195.350586 | M20: 1226.45813 | N20: 1290.815308 | O20: 1363.029175 | P20: 1370.387817 | Q20: 1418.375488 | R20: 1496.368408 | S20: 1518.854004 | T20: 1498.400757 | U20: 1437.476196 | V20: 1534.24231 | W20: 1497.068335
A21: 2014-01-01T07:00:00.025 | B21: 8 | C21: 762.6976929 | D21: 1098.639526 | E21: 925.1173706 | F21: 885.6735229 | G21: 1101.18689 | H21: 1008.636292 | I21: 950.9874268 | J21: 1193.765381 | K21: 1167.278931 | L21: 1202.112305 | M21: 1225.078491 | N21: 1281.405151 | O21: 1340.032959 | P21: 1343.526489 | Q21: 1393.063843 | R21: 1479.956055 | S21: 1504.744507 | T21: 1487.543701 | U21: 1432.759399 | V21: 1525.648926 | W21: 1486.130518
A22: 2014-01-01T08:00:00.030 | B22: 9 | C22: 714.1142578 | D22: 1118.4375 | E22: 858.8432007 | F22: 863.3474121 | G22: 1105.10437 | H22: 1004.213684 | I22: 965.8898926 | J22: 1202.69873 | K22: 1179.871704 | L22: 1217.543579 | M22: 1236.725708 | N22: 1292.72522 | O22: 1339.624878 | P22: 1334.514526 | Q22: 1380.703247 | R22: 1465.013184 | S22: 1490.534546 | T22: 1475.911499 | U22: 1430.040771 | V22: 1520.221436 | W22: 1476.344287
A23: 2014-01-01T09:00:00.035 | B23: 10 | C23: 789.3972778 | D23: 1129.720825 | E23: 900.2174683 | F23: 792.6223755 | G23: 1085.806152 | H23: 976.0704956 | I23: 962.2002563 | J23: 1204.05127 | K23: 1183.861084 | L23: 1230.476685 | M23: 1248.035278 | N23: 1307.776123 | O23: 1354.05249 | P23: 1342.089355 | Q23: 1386.163452 | R23: 1459.811035 | S23: 1484.389893 | T23: 1466.146118 | U23: 1425.611206 | V23: 1514.085693 | W23: 1470.008789
A24: 2014-01-01T10:00:00.040 | B24: 11 | C24: 857.3446045 | D24: 1143.463013 | E24: 940.3961182 | F24: 831.3378296 | G24: 1078.220825 | H24: 959.2374878 | I24: 926.423584 | J24: 1189.121948 | K24: 1170.38147 | L24: 1231.762207 | M24: 1250.992676 | N24: 1315.520508 | O24: 1369.875122 | P24: 1355.066406 | Q24: 1400.361816 | R24: 1463.575317 | S24: 1489.063843 | T24: 1464.087402 | U24: 1423.436646 | V24: 1510.484985 | W24: 1470.129639
A25: 2014-01-01T11:00:00.045 | B25: 12 | C25: 870.0380859 | D25: 1153.796509 | E25: 946.5231934 | F25: 880.7884521 | G25: 1099.415894 | H25: 977.5927734 | I25: 918.1213379 | J25: 1171.260742 | K25: 1144.767822 | L25: 1212.424438 | M25: 1237.943848 | N25: 1309.29541 | O25: 1376.801514 | P25: 1363.239502 | Q25: 1411.738037 | R25: 1468.324707 | S25: 1497.852661 | T25: 1468.365479 | U25: 1424.544434 | V25: 1511.733643 | W25: 1474.164185
A26: 2014-01-01T12:00:00.050 | B26: 13 | C26: 876.9794922 | D26: 1170.799194 | E26: 960.664856 | F26: 891.0480347 | G26: 1113.629639 | H26: 996.7734985 | I26: 937.4382935 | J26: 1175.713379 | K26: 1137.2771 | L26: 1195.689575 | M26: 1212.703369 | N26: 1286.902588 | O26: 1367.044312 | P26: 1358.794189 | Q26: 1412.130493 | R26: 1466.690186 | S26: 1502.298462 | T26: 1472.087769 | U26: 1424.018677 | V26: 1514.174561 | W26: 1475.853931
A27: 2014-01-01T13:00:00.055 | B27: 14 | C27: 875.100769 | D27: 1199.002441 | E27: 971.9402466 | F27: 901.725647 | G27: 1120.919189 | H27: 1004.450806 | I27: 950.2974243 | J27: 1188.843994 | K27: 1144.220337 | L27: 1197.431763 | M27: 1200.380371 | N27: 1267.150635 | O27: 1345.803833 | P27: 1339.515991 | Q27: 1396.89563 | R27: 1453.979004 | S27: 1496.720703 | T27: 1469.316406 | U27: 1416.539185 | V27: 1512.080078 | W27: 1469.727075
A28: 2014-01-01T14:00:00.060 | B28: 15 | C28: 881.2734985 | D28: 1238.337524 | E28: 995.2688599 | F28: 907.4360352 | G28: 1130.986938 | H28: 1011.09082 | I28: 957.5093994 | J28: 1199.276001 | K28: 1147.252441 | L28: 1204.447876 | M28: 1202.706177 | N28: 1264.350342 | O28: 1329.352783 | P28: 1319.684692 | Q28: 1373.369019 | R28: 1431.168091 | S28: 1479.00293 | T28: 1456.942871 | U28: 1399.826538 | V28: 1501.826172 | W28: 1453.75332
A29: 2014-01-01T15:00:00.065 | B29: 16 | C29: 878.9606934 | D29: 1283.081909 | E29: 1009.127014 | F29: 924.7706299 | G29: 1146.638672 | H29: 1021.765076 | I29: 965.6486206 | J29: 1209.709839 | K29: 1148.434814 | L29: 1209.93811 | M29: 1207.616699 | N29: 1269.25708 | O29: 1321.685181 | P29: 1310.147949 | Q29: 1355.937134 | R29: 1409.159912 | S29: 1455.967896 | T29: 1436.713135 | U29: 1375.44165 | V29: 1483.271851 | W29: 1432.110889
A30: 2014-01-01T16:00:00.070 | B30: 17 | C30: 881.0411377 | D30: 1330.476685 | E30: 1029.225464 | F30: 933.5846558 | G30: 1164.451538 | H30: 1033.789551 | I30: 981.3338013 | J30: 1221.614136 | K30: 1153.401489 | L30: 1216.174561 | M30: 1214.184937 | N30: 1274.432983 | O30: 1317.481079 | P30: 1307.361084 | Q30: 1347.642822 | R30: 1397.303101 | S30: 1438.035645 | T30: 1416.579834 | U30: 1351.452881 | V30: 1462.064575 | W30: 1413.087207
A31: 2014-01-01T17:00:00.075 | B31: 18 | C31: 921.3944092 | D31: 1367.886719 | E31: 1057.911133 | F31: 950.0773315 | G31: 1181.892212 | H31: 1043.908936 | I31: 996.7858276 | J31: 1233.296387 | K31: 1162.819702 | L31: 1225.59021 | M31: 1224.181152 | N31: 1281.875732 | O31: 1316.038208 | P31: 1307.516968 | Q31: 1344.75 | R31: 1395.154175 | S31: 1428.114258 | T31: 1402.950439 | U31: 1337.03894 | V31: 1446.474731 | W31: 1401.946509
A32: 2014-01-01T18:00:00.080 | B32: 19 | C32: 1152.914917 | D32: 1386.89502 | E32: 1174.327271 | F32: 980.6672363 | G32: 1200.319946 | H32: 1056.855347 | I32: 1011.626709 | J32: 1240.182983 | K32: 1171.219116 | L32: 1234.526001 | M32: 1236.309692 | N32: 1292.88562 | O32: 1320.450562 | P32: 1311.069702 | Q32: 1347.099365 | R32: 1399.358154 | S32: 1424.247314 | T32: 1396.014648 | U32: 1334.254639 | V32: 1440.017212 | W32: 1398.778393
A33: 2014-01-01T19:00:00.085 | B33: 20 | C33: 1183.481323 | D33: 1388.596558 | E33: 1163.175415 | F33: 1115.557373 | G33: 1240.080933 | H33: 1097.66626 | I33: 1029.131104 | J33: 1243.155151 | K33: 1177.760742 | L33: 1239.471924 | M33: 1244.890503 | N33: 1302.831909 | O33: 1330.950073 | P33: 1318.480591 | Q33: 1355.932007 | R33: 1408.220947 | S33: 1425.755493 | T33: 1394.227783 | U33: 1339.945068 | V33: 1441.078613 | W33: 1401.845581
A34: 2014-01-01T20:00:00.090 | B34: 21 | C34: 1148.47168 | D34: 1372.936401 | E34: 1124.953491 | F34: 1126.05835 | G34: 1269.147705 | H34: 1136.055786 | I34: 1086.00647 | J34: 1254.589111 | K34: 1190.916992 | L34: 1241.08667 | M34: 1247.844116 | N34: 1307.177124 | O34: 1343.476074 | P34: 1326.461304 | Q34: 1368.871582 | R34: 1419.63623 | S34: 1432.473145 | T34: 1397.105835 | U34: 1350.658936 | V34: 1447.220459 | W34: 1409.418921
A35: 2014-01-01T21:00:00.095 | B35: 22 | C35: 1112.349121 | D35: 1338.159302 | E35: 1088.8125 | F35: 1090.262573 | G35: 1253.394653 | H35: 1126.859131 | I35: 1112.643433 | J35: 1271.158936 | K35: 1215.474365 | L35: 1256.048706 | M35: 1251.328613 | N35: 1307.93396 | O35: 1354.254028 | P35: 1331.482056 | Q35: 1380.525879 | R35: 1429.153931 | S35: 1441.530762 | T35: 1403.18689 | U35: 1363.039185 | V35: 1456.317749 | W35: 1418.645703
A36: 2014-01-01T22:00:00.100 | B36: 23 | C36: 1094.118408 | D36: 1316.855347 | E36: 1053.704102 | F36: 1052.202759 | G36: 1221.296753 | H36: 1095.237549 | I36: 1092.392212 | J36: 1260.319458 | K36: 1215.238159 | L36: 1264.945313 | M36: 1261.34082 | N36: 1314.59436 | O36: 1366.67041 | P36: 1334.469116 | Q36: 1387.432739 | R36: 1432.532959 | S36: 1448.265381 | T36: 1408.661865 | U36: 1372.380981 | V36: 1465.003174 | W36: 1425.368872
A37: 2014-01-01T23:00:00.105 | B37: 24 | C37: 949.2010498 | D37: 1301.319214 | E37: 974.3716431 | F37: 1015.202515 | G37: 1194.334106 | H37: 1064.054932 | I37: 1053.456909 | J37: 1230.517944 | K37: 1186.142212 | L37: 1246.370972 | M37: 1253.135254 | N37: 1313.803955 | O37: 1378.065674 | P37: 1340.90979 | Q37: 1392.276733 | R37: 1430.248657 | S37: 1450.078735 | T37: 1409.760132 | U37: 1374.072876 | V37: 1469.088135 | W37: 1426.649707
A38: 2014-01-02T00:00:00.110 | B38: 25 | C38: 896.1619873 | D38: 1299.108398 | E38: 933.0737305 | F38: 927.7385254 | G38: 1159.495239 | H38: 1025.027344 | I38: 1015.674866 | J38: 1199.369873 | K38: 1149.449219 | L38: 1210.919556 | M38: 1222.455811 | N38: 1289.313721 | O38: 1372.027832 | P38: 1339.779053 | Q38: 1391.878662 | R38: 1425.572266 | S38: 1449.025879 | T38: 1406.335815 | U38: 1367.174805 | V38: 1466.569946 | W38: 1422.935742
A39: 2014-01-02T01:00:00.115 | B39: 26 | C39: 831.0021362 | D39: 1313.652588 | E39: 914.1013794 | F39: 874.8370361 | G39: 1126.069946 | H39: 981.923645 | I39: 962.5963745 | J39: 1168.144531 | K39: 1113.919922 | L39: 1174.805664 | M39: 1185.272095 | N39: 1250.672607 | O39: 1344.192505 | P39: 1320.119263 | Q39: 1374.825195 | R39: 1413.821899 | S39: 1442.678101 | T39: 1399.525146 | U39: 1355.262085 | V39: 1459.218018 | W39: 1414.10105
A40: 2014-01-02T02:00:00.120 | B40: 27 | C40: 808.5195923 | D40: 1343.137207 | E40: 921.1790161 | F40: 850.8738403 | G40: 1113.334229 | H40: 957.4082031 | I40: 916.5229492 | J40: 1136.202393 | K40: 1075.263794 | L40: 1136.875732 | M40: 1150.401733 | N40: 1213.651855 | O40: 1306.032227 | P40: 1287.305542 | Q40: 1341.419067 | R40: 1389.897217 | S40: 1424.63916 | T40: 1385.830933 | U40: 1338.861938 | V40: 1447.247314 | W40: 1397.295312
A41: 2014-01-02T03:00:00.125 | B41: 28 | C41: 805.9689941 | D41: 1383.952393 | E41: 939.3435669 | F41: 859.7619629 | G41: 1120.411377 | H41: 955.2055664 | I41: 894.0060425 | J41: 1117.818359 | K41: 1047.067749 | L41: 1103.369385 | M41: 1116.606323 | N41: 1179.883057 | O41: 1266.771606 | P41: 1252.013794 | Q41: 1303.089355 | R41: 1358.548706 | S41: 1396.11145 | T41: 1362.658936 | U41: 1315.653076 | V41: 1427.973633 | W41: 1372.18916
A42: 2014-01-02T04:00:00.130 | B42: 29 | C42: 810.9078369 | D42: 1430.572388 | E42: 961.8791504 | F42: 885.3972778 | G42: 1142.614868 | H42: 970.1264038 | I42: 899.49646 | J42: 1117.549927 | K42: 1039.517822 | L42: 1086.41748 | M42: 1093.973145 | N42: 1153.340576 | O42: 1230.754028 | P42: 1217.966919 | Q42: 1267.51416 | R42: 1328.211792 | S42: 1365.374146 | T42: 1334.363647 | U42: 1288.240479 | V42: 1402.207886 | W42: 1343.67959
A43: 2014-01-02T05:00:00.135 | B43: 30 | C43: 838.8390503 | D43: 1479.647461 | E43: 992.8533936 | F43: 918.0369873 | G43: 1171.640747 | H43: 993.7146606 | I43: 924.9902344 | J43: 1133.91748 | K43: 1052.562744 | L43: 1090.663696 | M43: 1090.202515 | N43: 1143.712402 | O43: 1206.199829 | P43: 1190.932495 | Q43: 1238.722412 | R43: 1303.039307 | S43: 1338.281006 | T43: 1307.502808 | U43: 1263.299927 | V43: 1375.580811 | W43: 1317.540772
A44: 2014-01-02T06:00:00.140 | B44: 31 | C44: 900.9090576 | D44: 1527.176636 | E44: 1048.175293 | F44: 960.5534058 | G44: 1204.4021 | H44: 1022.100159 | I44: 959.6791382 | J44: 1160.17395 | K44: 1079.372925 | L44: 1112.80127 | M44: 1105.248535 | N44: 1154.457764 | O44: 1200.517578 | P44: 1178.660767 | Q44: 1223.342285 | R44: 1286.557373 | S44: 1318.326172 | T44: 1285.692139 | U44: 1244.800049 | V44: 1352.972412 | W44: 1297.669629
A45: 2014-01-02T07:00:00.145 | B45: 32 | C45: 1041.972534 | D45: 1579.126709 | E45: 1157.01355 | F45: 1030.876953 | G45: 1244.428101 | H45: 1059.995728 | I45: 998.854187 | J45: 1191.074463 | K45: 1112.414917 | L45: 1144.912598 | M45: 1132.712158 | N45: 1180.684814 | O45: 1214.726563 | P45: 1184.666748 | Q45: 1226.045044 | R45: 1282.815552 | S45: 1309.807373 | T45: 1271.848145 | U45: 1234.113892 | V45: 1336.915039 | W45: 1287.1
A46: 2014-01-02T08:00:00.150 | B46: 33 | C46: 1224.845093 | D46: 1629.640747 | E46: 1282.345825 | F46: 1163.900269 | G46: 1305.555176 | H46: 1121.915405 | I46: 1048.018188 | J46: 1226.945679 | K46: 1149.371582 | L46: 1180.901001 | M46: 1164.983521 | N46: 1213.836548 | O46: 1243.211426 | P46: 1206.00354 | Q46: 1245.441895 | R46: 1292.869385 | S46: 1315.418823 | T46: 1269.075928 | U46: 1232.446167 | V46: 1329.558594 | W46: 1287.873779
A47: 2014-01-02T09:00:00.155 | B47: 34 | C47: 1463.022949 | D47: 1693.289185 | E47: 1430.446411 | F47: 1322.653198 | G47: 1385.821533 | H47: 1211.13269 | I47: 1125.360962 | J47: 1276.468872 | K47: 1195.730469 | L47: 1220.914185 | M47: 1198.695435 | N47: 1248.033081 | O47: 1278.08374 | P47: 1235.838257 | Q47: 1274.989624 | R47: 1313.162964 | S47: 1333.410767 | T47: 1278.126709 | U47: 1239.766479 | V47: 1332.197388 | W47: 1299.332861
A48: 2014-01-02T10:00:00.160 | B48: 35 | C48: 1631.854736 | D48: 1731.854126 | E48: 1561.815918 | F48: 1507.592896 | G48: 1480.5979 | H48: 1318.13562 | I48: 1225.409668 | J48: 1345.96228 | K48: 1259.752075 | L48: 1273.98938 | M48: 1238.070557 | N48: 1284.20459 | O48: 1314.340942 | P48: 1268.383179 | Q48: 1307.358276 | R48: 1337.617554 | S48: 1358.239502 | T48: 1296.018799 | U48: 1253.301147 | V48: 1343.427124 | W48: 1317.720825
A49: 2014-01-02T11:00:00.165 | B49: 36 | C49: 1647.428223 | D49: 1768.267578 | E49: 1592.554688 | F49: 1673.201294 | G49: 1569.634277 | H49: 1430.955444 | I49: 1342.618774 | J49: 1432.327759 | K49: 1337.884521 | L49: 1343.091553 | M49: 1291.111816 | N49: 1330.072388 | O49: 1353.434448 | P49: 1303.061646 | Q49: 1338.987915 | R49: 1361.619751 | S49: 1383.990356 | T49: 1317.769531 | U49: 1268.449585 | V49: 1359.249268 | W49: 1338.215698
A50: 2014-01-02T12:00:00.170 | B50: 37 | C50: 1727.049561 | D50: 1805.717163 | E50: 1628.489258 | F50: 1717.685669 | G50: 1625.284302 | H50: 1507.490112 | I50: 1456.215332 | J50: 1526.74292 | K50: 1423.81604 | L50: 1425.809082 | M50: 1358.230469 | N50: 1389.325806 | O50: 1399.267456 | P50: 1344.828247 | Q50: 1372.453247 | R50: 1385.428101 | S50: 1408.021362 | T50: 1339.627197 | U50: 1281.684937 | V50: 1375.499268 | W50: 1358.052173
A51: 2014-01-02T13:00:00.175 | B51: 38 | C51: 1600.484131 | D51: 1849.066772 | E51: 1615.870483 | F51: 1749.067383 | G51: 1650.637207 | H51: 1542.860107 | I51: 1517.847168 | J51: 1606.309326 | K51: 1497.050903 | L51: 1512.457397 | M51: 1435.294922 | N51: 1459.726074 | O51: 1452.441528 | P51: 1396.648926 | Q51: 1412.166138 | R51: 1413.868164 | S51: 1432.58313 | T51: 1361.59314 | U51: 1293.320068 | V51: 1390.756714 | W51: 1378.424243
A52: 2014-01-02T14:00:00.180 | B52: 39 | C52: 1596.829468 | D52: 1863.139282 | E52: 1647.323608 | F52: 1724.312866 | G52: 1662.973755 | H52: 1557.137939 | I52: 1548.901489 | J52: 1656.162231 | K52: 1537.338623 | L52: 1576.905762 | M52: 1507.188599 | N52: 1530.879272 | O52: 1509.524414 | P52: 1457.417847 | Q52: 1459.695679 | R52: 1451.398926 | S52: 1461.463257 | T52: 1386.807739 | U52: 1307.9375 | V52: 1407.524414 | W52: 1403.026367
A53: 2014-01-02T15:00:00.185 | B53: 40 | C53: 1588.948242 | D53: 1875.73584 | E53: 1662.311157 | F53: 1740.835693 | G53: 1666.325195 | H53: 1568.479736 | I53: 1556.222778 | J53: 1687.484375 | K53: 1556.829956 | L53: 1615.472778 | M53: 1555.733765 | N53: 1583.828735 | O53: 1558.854126 | P53: 1518.966675 | Q53: 1512.050537 | R53: 1499.025146 | S53: 1496.636719 | T53: 1418.22876 | U53: 1330.921143 | V53: 1429.952515 | W53: 1434.952857
A54: 2014-01-02T16:00:00.190 | B54: 41 | C54: 1585.310547 | D54: 1895.064941 | E54: 1685.738647 | F54: 1745.590942 | G54: 1676.850342 | H54: 1585.080688 | I54: 1569.366821 | J54: 1705.50769 | K54: 1568.290894 | L54: 1635.547363 | M54: 1586.650146 | N54: 1615.313599 | O54: 1591.350342 | P54: 1566.782471 | Q54: 1559.305298 | R54: 1551.359619 | S54: 1536.169922 | T54: 1456.255371 | U54: 1365.045532 | V54: 1460.676392 | W54: 1473.901367
A55: 2014-01-02T17:00:00.195 | B55: 42 | C55: 1561.834473 | D55: 1914.653931 | E55: 1676.581299 | F55: 1759.874634 | G55: 1689.268921 | H55: 1600.647217 | I55: 1585.122681 | J55: 1721.582031 | K55: 1583.421143 | L55: 1649.703125 | M55: 1607.607056 | N55: 1634.761841 | O55: 1611.273926 | P55: 1597.839355 | Q55: 1594.628906 | R55: 1598.442017 | S55: 1572.924561 | T55: 1496.833374 | U55: 1408.069336 | V55: 1498.435425 | W55: 1514.940943
A56: 2014-01-02T18:00:00.200 | B56: 43 | C56: 1678.569214 | D56: 1927.519409 | E56: 1830.725464 | F56: 1743.069336 | G56: 1696.338135 | H56: 1607.11145 | I56: 1602.883667 | J56: 1731.675415 | K56: 1600.854492 | L56: 1662.854858 | M56: 1628.105469 | N56: 1651.998291 | O56: 1628.437622 | P56: 1617.980957 | Q56: 1621.24292 | R56: 1635.889771 | S56: 1602.148193 | T56: 1533.601318 | U56: 1452.428223 | V56: 1537.405396 | W56: 1552.29458
A57: 2014-01-02T19:00:00.205 | B57: 44 | C57: 1658.655884 | D57: 1932.063232 | E57: 1781.978516 | F57: 1910.60376 | G57: 1736.651001 | H57: 1648.59729 | I57: 1607.94751 | J57: 1732.370605 | K57: 1615.674316 | L57: 1673.383911 | M57: 1647.004883 | N57: 1669.657959 | O57: 1649.747925 | P57: 1635.951172 | Q57: 1645.251343 | R57: 1665.853638 | S57: 1625.346802 | T57: 1564.049561 | U57: 1491.725342 | V57: 1571.947754 | W57: 1583.784619
A58: 2014-01-02T20:00:00.210 | B58: 45 | C58: 1576.990967 | D58: 1925.247681 | E58: 1698.660645 | F58: 1879.682617 | G58: 1771.103027 | H58: 1690.808838 | I58: 1674.40625 | J58: 1740.897217 | K58: 1635.410889 | L58: 1674.998291 | M58: 1660.19043 | N58: 1683.861938 | O58: 1674.072388 | P58: 1654.870239 | Q58: 1669.587524 | R58: 1692.021729 | S58: 1646.598511 | T58: 1589.744873 | U58: 1524.450073 | V58: 1600.67627 | W58: 1610.698291
A59: 2014-01-02T21:00:00.215 | B59: 46 | C59: 1528.734375 | D59: 1908.158203 | E59: 1642.738403 | F59: 1782.354126 | G59: 1741.275757 | H59: 1658.973877 | I59: 1697.134399 | J59: 1760.332153 | K59: 1675.813965 | L59: 1696.124878 | M59: 1672.23999 | N59: 1692.938477 | O59: 1695.22522 | P59: 1672.442993 | Q59: 1691.489624 | R59: 1714.661377 | S59: 1667.376099 | T59: 1612.541138 | U59: 1551.675537 | V59: 1625.120483 | W59: 1634.274927
A60: 2014-01-02T22:00:00.220 | B60: 47 | C60: 1483.461426 | D60: 1885.728516 | E60: 1610.705688 | F60: 1715.834229 | G60: 1698.884399 | H60: 1600.684204 | I60: 1650.680542 | J60: 1738.06897 | K60: 1680.339355 | L60: 1711.093384 | M60: 1696.5802 | N60: 1712.031494 | O60: 1717.769775 | P60: 1687.452881 | Q60: 1706.84668 | R60: 1730.628174 | S60: 1685.328491 | T60: 1631.610718 | U60: 1573.252197 | V60: 1645.992065 | W60: 1653.362329
A61: 2014-01-02T23:00:00.225 | B61: 48 | C61: 1051.876831 | D61: 1862.234253 | E61: 1230.864746 | F61: 1684.001221 | G61: 1672.188843 | H61: 1563.695679 | I61: 1592.082031 | J61: 1692.060913 | K61: 1642.359009 | L61: 1685.234253 | M61: 1694.170044 | N61: 1722.199341 | O61: 1741.303589 | P61: 1708.811157 | Q61: 1720.812012 | R61: 1739.991333 | S61: 1697.786255 | T61: 1644.478271 | U61: 1587.029297 | V61: 1661.68689 | W61: 1666.194409
A62: 2014-01-03T00:00:00.230 | B62: 49 | C62: 1201.160156 | D62: 1841.793091 | E62: 1451.977417 | F62: 1267.662964 | G62: 1565.21582 | H62: 1444.096436 | I62: 1554.30835 | J62: 1655.519287 | K62: 1603.620605 | L62: 1639.813477 | M62: 1658.27417 | N62: 1696.861694 | O62: 1742.261719 | P62: 1720.303467 | Q62: 1731.245239 | R62: 1747.579834 | S62: 1708.664185 | T62: 1652.117432 | U62: 1592.431274 | V62: 1670.902832 | W62: 1674.339111
A63: 2014-01-03T01:00:00.235 | B63: 50 | C63: 1020.436035 | D63: 1840.868896 | E63: 1276.806519 | F63: 1472.891846 | G63: 1514.826294 | H63: 1368.450439 | I63: 1378.245117 | J63: 1592.262207 | K63: 1551.405029 | L63: 1604.586548 | M63: 1619.426758 | N63: 1654.436279 | O63: 1715.320435 | P63: 1704.793213 | Q63: 1721.098999 | R63: 1745.841064 | S63: 1715.273193 | T63: 1657.403809 | U63: 1594.192383 | V63: 1676.361206 | W63: 1677.814331
A64: 2014-01-03T02:00:00.240 | B64: 51 | C64: 988.8043823 | D64: 1837.23291 | E64: 1272.827148 | F64: 1321.90332 | G64: 1531.29541 | H64: 1379.741821 | I64: 1364.99707 | J64: 1524.652466 | K64: 1464.04248 | L64: 1522.281372 | M64: 1573.863525 | N64: 1614.694214 | O64: 1680.880737 | P64: 1673.579224 | Q64: 1691.208496 | R64: 1726.227295 | S64: 1707.333496 | T64: 1655.498657 | U64: 1591.745483 | V64: 1677.857544 | W64: 1671.732495
A65: 2014-01-03T03:00:00.245 | B65: 52 | C65: 965.456604 | D65: 1846.875977 | E65: 1240.536987 | F65: 1305.43811 | G65: 1499.147339 | H65: 1351.852539 | I65: 1345.192139 | J65: 1535.658813 | K65: 1454.129883 | L65: 1481.691284 | M65: 1505.141724 | N65: 1552.369995 | O65: 1632.86731 | P65: 1637.984497 | Q65: 1657.460938 | R65: 1697.376343 | S65: 1686.509277 | T65: 1642.135986 | U65: 1579.333862 | V65: 1670.119141 | W65: 1655.094922
A66: 2014-01-03T04:00:00.250 | B66: 53 | C66: 1016.78009 | D66: 1864.843384 | E66: 1295.21228 | F66: 1278.162231 | G66: 1495.947388 | H66: 1337.593628 | I66: 1329.975342 | J66: 1532.693481 | K66: 1454.269043 | L66: 1485.428955 | M66: 1497.485474 | N66: 1519.54126 | O66: 1581.925049 | P66: 1585.811523 | Q66: 1614.870483 | R66: 1666.467407 | S66: 1663.300415 | T66: 1623.615967 | U66: 1560.072388 | V66: 1653.765991 | W66: 1633.444434
A67: 2014-01-03T05:00:00.255 | B67: 54 | C67: 1106.485718 | D67: 1888.772339 | E67: 1374.260254 | F67: 1343.353394 | G67: 1516.212646 | H67: 1356.238037 | I67: 1328.984009 | J67: 1543.778687 | K67: 1453.830444 | L67: 1494.7677 | M67: 1507.278564 | N67: 1529.894775 | O67: 1564.35022 | P67: 1558.081177 | Q67: 1577.622192 | R67: 1632.477051 | S67: 1635.479004 | T67: 1604.217407 | U67: 1541.620605 | V67: 1635.309204 | W67: 1609.820654
A68: 2014-01-03T06:00:00.260 | B68: 55 | C68: 1226.888916 | D68: 1919.31311 | E68: 1476.763916 | F68: 1444.625244 | G68: 1567.589722 | H68: 1412.692871 | I68: 1373.077515 | J68: 1571.236206 | K68: 1473.243042 | L68: 1516.41272 | M68: 1524.482056 | N68: 1549.382446 | O68: 1569.225952 | P68: 1560.035767 | Q68: 1571.912964 | R68: 1616.768188 | S68: 1616.192871 | T68: 1585.911133 | U68: 1523.515381 | V68: 1616.332642 | W68: 1591.744043
A69: 2014-01-03T07:00:00.265 | B69: 56 | C69: 1397.705933 | D69: 1950.00293 | E69: 1622.196045 | F69: 1572.019897 | G69: 1633.693848 | H69: 1489.237793 | I69: 1451.545166 | J69: 1624.714233 | K69: 1523.582886 | L69: 1561.288818 | M69: 1557.325073 | N69: 1577.940552 | O69: 1585.177612 | P69: 1576.709229 | Q69: 1586.566895 | R69: 1625.996826 | S69: 1619.81897 | T69: 1582.081543 | U69: 1515.959229 | V69: 1604.630737 | W69: 1589.697461
A70: 2014-01-03T08:00:00.270 | B70: 57 | C70: 1555.53479 | D70: 1977.567627 | E70: 1677.720581 | F70: 1746.571289 | G70: 1714.103882 | H70: 1584.247437 | I70: 1544.855591 | J70: 1692.375 | K70: 1595.022339 | L70: 1629.994629 | M70: 1613.30835 | N70: 1627.5 | O70: 1616.191284 | P70: 1605.706787 | Q70: 1612.946777 | R70: 1649.855957 | S70: 1640.893066 | T70: 1597.129639 | U70: 1527.858765 | V70: 1609.943115 | W70: 1605.136108
A71: 2014-01-03T09:00:00.275 | B71: 58 | C71: 1937.593628 | D71: 1995.647339 | E71: 1909.794556 | F71: 1822.043335 | G71: 1778.949707 | H71: 1667.001221 | I71: 1653.835449 | J71: 1768.670532 | K71: 1674.627808 | L71: 1709.391724 | M71: 1684.019043 | N71: 1696.614502 | O71: 1668.072144 | P71: 1652.872314 | Q71: 1654.178589 | R71: 1683.593018 | S71: 1672.303101 | T71: 1624.723877 | U71: 1553.849976 | V71: 1630.866089 | W71: 1633.067212
A72: 2014-01-03T10:00:00.280 | B72: 59 | C72: 2110.88501 | D72: 2004.036865 | E72: 2148.233154 | F72: 2078.971191 | G72: 1858.311035 | H72: 1766.109619 | I72: 1725.418213 | J72: 1839.754028 | K72: 1751.347168 | L72: 1793.944336 | M72: 1758.548096 | N72: 1771.804443 | O72: 1734.396851 | P72: 1716.793579 | Q72: 1712.03833 | R72: 1729.139404 | S72: 1714.62854 | T72: 1661.397095 | U72: 1587.087769 | V72: 1661.446045 | W72: 1670.739771
A73: 2014-01-03T11:00:00.285 | B73: 60 | C73: 2602.114258 | D73: 1995.75 | E73: 2706.037598 | F73: 2367.618652 | G73: 1983.006714 | H73: 1925.873779 | I73: 1840.689697 | J73: 1907.563232 | K73: 1814.660645 | L73: 1860.763916 | M73: 1827.871338 | N73: 1843.446655 | O73: 1804.456543 | P73: 1788.001465 | Q73: 1778.716675 | R73: 1784.67749 | S73: 1767.945313 | T73: 1708.160767 | U73: 1626.924072 | V73: 1700.055786 | W73: 1717.552686
A74: 2014-01-03T12:00:00.290 | B74: 61 | C74: 2135.316162 | D74: 1977.298218 | E74: 2110.978271 | F74: 3016.645264 | G74: 2192.775391 | H74: 2201.700928 | I74: 2000.702148 | J74: 2011.152222 | K74: 1905.656372 | L74: 1931.994629 | M74: 1883.767212 | N74: 1900.147705 | O74: 1864.998291 | P74: 1857.085449 | Q74: 1844.430542 | R74: 1843.356934 | S74: 1825.850708 | T74: 1762.702148 | U74: 1673.644409 | V74: 1746.646729 | W74: 1770.440186
A75: 2014-01-03T13:00:00.295 | B75: 62 | C75: 2245.754883 | D75: 1936.95752 | E75: 2438.915283 | F75: 2385.957764 | G75: 2188.390869 | H75: 2254.569092 | I75: 2306.002197 | J75: 2176.897949 | K75: 2052.039551 | L75: 2030.538452 | M75: 1958.25061 | N75: 1960.181763 | O75: 1914.618286 | P75: 1913.697754 | Q75: 1899.292236 | R75: 1897.614136 | S75: 1880.238403 | T75: 1818.417358 | U75: 1723.542969 | V75: 1797.731445 | W75: 1823.508862
A76: 2014-01-03T14:00:00.300 | B76: 63 | C76: 2330.329346 | D76: 1914.172729 | E76: 2506.655273 | F76: 2637.875488 | G76: 2081.304932 | H76: 2135.125732 | I76: 2184.006836 | J76: 2275.160645 | K76: 2183.734375 | L76: 2201.382568 | M76: 2076.186279 | N76: 2052.419678 | O76: 1971.514282 | P76: 1971.342285 | Q76: 1946.114868 | R76: 1942.994873 | S76: 1923.744263 | T76: 1868.212036 | U76: 1771.277344 | V76: 1847.45752 | W76: 1870.737207
A77: 2014-01-03T15:00:00.305 | B77: 64 | C77: 2381.256348 | D77: 1889.298218 | E77: 2543.299316 | F77: 2748.712402 | G77: 2154.914063 | H77: 2213.606689 | I77: 2145.281006 | J77: 2201.990479 | K77: 2104.47583 | L77: 2222.988281 | M77: 2190.738037 | N77: 2176.575439 | O77: 2061.703125 | P77: 2051.818359 | Q77: 2003.378662 | R77: 1989.125977 | S77: 1960.30188 | T77: 1909.4729 | U77: 1812.645508 | V77: 1890.798218 | W77: 1912.468897
A78: 2014-01-03T16:00:00.310 | B78: 65 | C78: 1682.85791 | D78: 1866.305664 | E78: 1781.531982 | F78: 2777.046143 | G78: 2189.631836 | H78: 2297.530029 | I78: 2226.082031 | J78: 2237.163818 | K78: 2081.003174 | L78: 2166.914063 | M78: 2147.424805 | N78: 2188.593506 | O78: 2123.164063 | P78: 2150.443359 | Q78: 2084.780762 | R78: 2054.284424 | S78: 2004.426392 | T78: 1949.920532 | U78: 1852.565063 | V78: 1930.045288 | W78: 1958.24834
A79: 2014-01-03T17:00:00.315 | B79: 66 | C79: 1583.983887 | D79: 1840.686523 | E79: 1798.026611 | F79: 1906.199585 | G79: 1987.415039 | H79: 2074.93042 | I79: 2281.407715 | J79: 2288.251709 | K79: 2146.776611 | L79: 2190.113281 | M79: 2132.330322 | N79: 2138.490234 | O79: 2096.931396 | P79: 2163.39502 | Q79: 2130.145752 | R79: 2126.792236 | S79: 2063.827148 | T79: 2001.348999 | U79: 1904.199341 | V79: 1975.824707 | W79: 2014.398486
A80: 2014-01-03T18:00:00.320 | B80: 67 | C80: 1758.838867 | D80: 1835.969116 | E80: 1946.742554 | F80: 1811.986328 | G80: 1759.958984 | H80: 1772.814209 | I80: 1951.82312 | J80: 2194.405273 | K80: 2107.113525 | L80: 2227.285156 | M80: 2180.904785 | N80: 2160.469971 | O80: 2079.519287 | P80: 2136.049561 | Q80: 2111.95459 | R80: 2148.669189 | S80: 2091.727539 | T80: 2049.080322 | U80: 1968.612549 | V80: 2031.786865 | W80: 2057.975293
A81: 2014-01-03T19:00:00.325 | B81: 68 | C81: 1798.353882 | D81: 1834.826294 | E81: 1950.734009 | F81: 1979.446289 | G81: 1782.825806 | H81: 1765.354004 | I81: 1746.211914 | J81: 1976.026367 | K81: 1885.398926 | L81: 2084.105225 | M81: 2157.164063 | N81: 2183.210693 | O81: 2110.535156 | P81: 2147.858643 | Q81: 2111.518555 | R81: 2141.510498 | S81: 2078.231201 | T81: 2059.387939 | U81: 2005.05835 | V81: 2068.688965 | W81: 2070.575391
A82: 2014-01-03T20:00:00.330 | B82: 69 | C82: 1714.617798 | D82: 1819.914307 | E82: 1828.982422 | F82: 2019.970459 | G82: 1840.000122 | H82: 1840.787109 | I82: 1782.810791 | J82: 1902.588623 | K82: 1783.435669 | L82: 1900.420166 | M82: 1988.934082 | N82: 2063.001465 | O82: 2090.567871 | P82: 2154.070313 | Q82: 2135.662598 | R82: 2156.990479 | S82: 2075.794434 | T82: 2052.174316 | U82: 2006.571899 | V82: 2073.666992 | W82: 2073.039624
A83: 2014-01-03T21:00:00.335 | B83: 70 | C83: 1589.571777 | D83: 1799.018799 | E83: 1701.861938 | F83: 1894.214844 | G83: 1819.079468 | H83: 1815.62085 | I83: 1843.584106 | J83: 1902.312256 | K83: 1826.356689 | L83: 1851.462036 | M83: 1889.755737 | N83: 1914.291382 | O83: 1987.418701 | P83: 2063.471191 | Q83: 2099.128906 | R83: 2162.664795 | S83: 2087.431641 | T83: 2058.326172 | U83: 2012.929321 | V83: 2076.382568 | W83: 2079.546899
A84: 2014-01-03T22:00:00.340 | B84: 71 | C84: 1520.874023 | D84: 1773.14978 | E84: 1632.545288 | F84: 1758.129883 | G84: 1749.389893 | H84: 1711.914307 | I84: 1790.938599 | J84: 1867.918091 | K84: 1847.551147 | L84: 1859.650269 | M84: 1892.711426 | N84: 1882.87439 | O84: 1921.277222 | P84: 1956.799438 | Q84: 2003.284546 | R84: 2101.886475 | S84: 2053.27124 | T84: 2051.058594 | U84: 2021.000854 | V84: 2083.880127 | W84: 2062.219458
A85: 2014-01-03T23:00:00.345 | B85: 72 | C85: 1293.753784 | D85: 1747.797241 | E85: 1465.575928 | F85: 1700.54834 | G85: 1695.289673 | H85: 1625.460571 | I85: 1685.803711 | J85: 1781.266357 | K85: 1785.781982 | L85: 1824.652832 | M85: 1888.490356 | N85: 1899.86084 | O85: 1925.52478 | P85: 1921.846069 | Q85: 1943.974976 | R85: 2021.185425 | S85: 1980.415283 | T85: 1997.846069 | U85: 1983.485718 | V85: 2059.575684 | W85: 2008.501636
A86: 2014-01-04T00:00:00.350 | B86: 73 | C86: 1070.130249 | D86: 1724.19519 | E86: 1311.482666 | F86: 1543.948486 | G86: 1639.317627 | H86: 1549.342041 | I86: 1612.562378 | J86: 1699.214355 | K86: 1703.850952 | L86: 1744.990234 | M86: 1826.213989 | N86: 1863.861694 | O86: 1928.220215 | P86: 1921.569214 | Q86: 1931.393311 | R86: 1979.892334 | S86: 1933.356934 | T86: 1933.606201 | U86: 1911.232544 | V86: 2000.917847 | W86: 1951.801172
A87: 2014-01-04T01:00:00.355 | B87: 74 | C87: 962.3304443 | D87: 1708.996826 | E87: 1203.961182 | F87: 1383.890503 | G87: 1559.938843 | H87: 1450.238159 | I87: 1523.852539 | J87: 1640.286865 | K87: 1644.443481 | L87: 1675.213257 | M87: 1745.774536 | N87: 1783.213623 | O87: 1882.484985 | P87: 1891.534668 | Q87: 1908.76001 | R87: 1959.842163 | S87: 1919.946167 | T87: 1896.928345 | U87: 1857.194336 | V87: 1949.849487 | W87: 1916.7521
A88: 2014-01-04T02:00:00.360 | B88: 75 | C88: 951.8247681 | D88: 1707.197754 | E88: 1171.820435 | F88: 1270.708862 | G88: 1492.214722 | H88: 1361.04248 | I88: 1414.556152 | J88: 1581.665161 | K88: 1580.322632 | L88: 1617.55896 | M88: 1682.931763 | N88: 1713.736816 | O88: 1814.96167 | P88: 1828.855347 | Q88: 1852.496094 | R88: 1919.992676 | S88: 1900.359619 | T88: 1874.310547 | U88: 1829.212158 | V88: 1922.29187 | W88: 1889.233374
A89: 2014-01-04T03:00:00.365 | B89: 76 | C89: 975.6645508 | D89: 1714.94043 | E89: 1178.554199 | F89: 1240.877197 | G89: 1459.973267 | H89: 1316.806274 | I89: 1322.964478 | J89: 1534.812622 | K89: 1510.674194 | L89: 1559.135742 | M89: 1623.724609 | N89: 1661.114014 | O89: 1756.053101 | P89: 1766.672485 | Q89: 1788.356934 | R89: 1859.64563 | S89: 1857.837769 | T89: 1838.252197 | U89: 1797.830322 | V89: 1895.849609 | W89: 1849.883105
A90: 2014-01-04T04:00:00.370 | B90: 77 | C90: 1022.719482 | D90: 1731.297974 | E90: 1235.025879 | F90: 1257.222046 | G90: 1462.643188 | H90: 1320.614746 | I90: 1287.230713 | J90: 1520.917603 | K90: 1464.170532 | L90: 1514.327637 | M90: 1568.44043 | N90: 1610.244263 | O90: 1703.828735 | P90: 1713.289917 | Q90: 1736.248047 | R90: 1803.060181 | S90: 1811.460083 | T90: 1791.375488 | U90: 1751.069214 | V90: 1855.192993 | W90: 1802.431592
A91: 2014-01-04T05:00:00.375 | B91: 78 | C91: 1142.329346 | D91: 1752.360474 | E91: 1363.980103 | F91: 1325.711182 | G91: 1492.518066 | H91: 1361.037476 | I91: 1305.447021 | J91: 1548.399902 | K91: 1460.924561 | L91: 1506.849609 | M91: 1538.729492 | N91: 1572.976196 | O91: 1656.762085 | P91: 1665.044312 | Q91: 1692.866211 | R91: 1759.280884 | S91: 1776.178589 | T91: 1752.488647 | U91: 1705.130737 | V91: 1811.0979 | W91: 1760.835351
A92: 2014-01-04T06:00:00.380 | B92: 79 | C92: 1282.593384 | D92: 1777.256226 | E92: 1519.259155 | F92: 1472.377808 | G92: 1555.356689 | H92: 1442.570313 | I92: 1369.568359 | J92: 1608.919067 | K92: 1498.095703 | L92: 1543.125732 | M92: 1551.636475 | N92: 1572.53772 | O92: 1629.109375 | P92: 1631.569946 | Q92: 1659.191895 | R92: 1726.402466 | S92: 1750.2146 | T92: 1727.439575 | U92: 1672.81897 | V92: 1777.290161 | W92: 1730.833154
A93: 2014-01-04T07:00:00.385 | B93: 80 | C93: 1402.766968 | D93: 1807.140015 | E93: 1637.280884 | F93: 1650.597412 | G93: 1644.664673 | H93: 1558.645874 | I93: 1483.804199 | J93: 1697.855957 | K93: 1570.472534 | L93: 1616.089966 | M93: 1605.141602 | N93: 1615.334595 | O93: 1635.104004 | P93: 1629.668823 | Q93: 1648.457642 | R93: 1709.818481 | S93: 1733.737915 | T93: 1712.782837 | U93: 1653.251831 | V93: 1755.621094 | W93: 1713.042432
A94: 2014-01-04T08:00:00.390 | B94: 81 | C94: 1650.573608 | D94: 1830.706909 | E94: 1780.152954 | F94: 1783.282349 | G94: 1729.833374 | H94: 1671.22583 | I94: 1627.130493 | J94: 1808.124634 | K94: 1674.599609 | L94: 1721.409424 | M94: 1691.612915 | N94: 1693.313599 | O94: 1676.157227 | P94: 1665.917725 | Q94: 1671.487915 | R94: 1720.293579 | S94: 1735.995117 | T94: 1711.118774 | U94: 1646.013062 | V94: 1745.507202 | W94: 1711.785547
A95: 2014-01-04T09:00:00.395 | B95: 82 | C95: 1788.670898 | D95: 1846.555298 | E95: 1836.983643 | F95: 1932.341919 | G95: 1802.706421 | H95: 1766.520386 | I95: 1749.069214 | J95: 1913.747437 | K95: 1787.655396 | L95: 1846.353516 | M95: 1802.98645 | N95: 1798.109009 | O95: 1747.04541 | P95: 1736.071167 | Q95: 1727.690063 | R95: 1762.0802 | S95: 1764.797607 | T95: 1730.398926 | U95: 1657.415649 | V95: 1752.121582 | W95: 1733.362793
A96: 2014-01-04T10:00:00.400 | B96: 83 | C96: 1861.872559 | D96: 1856.133057 | E96: 1933.498901 | F96: 1987.816772 | G96: 1851.142456 | H96: 1831.190063 | I96: 1849.77832 | J96: 1994.064697 | K96: 1879.664063 | L96: 1958.915039 | M96: 1916.651978 | N96: 1913.981567 | O96: 1839.376099 | P96: 1832.434326 | Q96: 1810.547974 | R96: 1830.835693 | S96: 1819.336792 | T96: 1773.955322 | U96: 1692.739868 | V96: 1781.322388 | W96: 1779.638013
A97: 2014-01-04T11:00:00.405 | B97: 84 | C97: 1830.382324 | D97: 1855.443848 | E97: 1916.919189 | F97: 2077.198242 | G97: 1881.036621 | H97: 1869.894409 | I97: 1898.42041 | J97: 2043.096924 | K97: 1941.776245 | L97: 2042.944702 | M97: 2004.640259 | N97: 2012.597778 | O97: 1934.165283 | P97: 1939.508789 | Q97: 1909.170288 | R97: 1918.028687 | S97: 1893.3396 | T97: 1837.973877 | U97: 1750.253418 | V97: 1832.98938 | W97: 1846.516992
A98: 2014-01-04T12:00:00.410 | B98: 85 | C98: 1778.178345 | D98: 1850.696167 | E98: 1865.000244 | F98: 2049.784912 | G98: 1886.683594 | H98: 1880.112305 | I98: 1928.52478 | J98: 2058.954834 | K98: 1967.332031 | L98: 2084.5896 | M98: 2057.924316 | N98: 2077.194336 | O98: 2010.98291 | P98: 2032.941528 | Q98: 2003.719727 | R98: 2009.542358 | S98: 1976.205444 | T98: 1914.615479 | U98: 1823.203491 | V98: 1901.390747 | W98: 1924.991504
A99: 2014-01-04T13:00:00.415 | B99: 86 | C99: 1735.058228 | D99: 1848.429321 | E99: 1826.186157 | F99: 1971.989868 | G99: 1852.150757 | H99: 1840.498901 | I99: 1910.718384 | J99: 2051.486328 | K99: 1968.243774 | L99: 2092.742676 | M99: 2072.995605 | N99: 2102.307129 | O99: 2058.484863 | P99: 2096.905762 | Q99: 2075.779541 | R99: 2087.001465 | S99: 2051.189209 | T99: 1991.729614 | U99: 1900.99353 | V99: 1976.847778 | W99: 2001.552319
A100: 2014-01-04T14:00:00.420 | B100: 87 | C100: 1669.408813 | D100: 1848.925903 | E100: 1769.966675 | F100: 1910.016479 | G100: 1811.147827 | H100: 1784.249756 | I100: 1848.739746 | J100: 2008.322388 | K100: 1933.586548 | L100: 2066.968262 | M100: 2062.278809 | N100: 2096.628174 | O100: 2076.123779 | P100: 2124.701172 | Q100: 2116.498291 | R100: 2138.096924 | S100: 2103.779541 | T100: 2054.951172 | U100: 1969.086548 | V100: 2045.99707 | W100: 2062.382251
A101: 2014-01-04T15:00:00.425 | B101: 88 | C101: 1652.314453 | D101: 1843.779175 | E101: 1754.275513 | F101: 1835.250977 | G101: 1774.511597 | H101: 1732.11731 | I101: 1783.509644 | J101: 1948.492432 | K101: 1873.622681 | L101: 2005.175659 | M101: 2021.868896 | N101: 2063.383789 | O101: 2068.505859 | P101: 2122.744629 | Q101: 2126.822266 | R101: 2159.991455 | S101: 2127.537354 | T101: 2094.794189 | U101: 2015.890381 | V101: 2096.858154 | W101: 2099.014307
A102: 2014-01-04T16:00:00.430 | B102: 89 | C102: 1642.587891 | D102: 1841.256348 | E102: 1738.376465 | F102: 1805.577759 | G102: 1746.62439 | H102: 1691.258423 | I102: 1723.059326 | J102: 1890.012695 | K102: 1815.081299 | L102: 1930.516846 | M102: 1961.249878 | N102: 2004.47998 | O102: 2034.61731 | P102: 2093.693604 | Q102: 2110.748047 | R102: 2157.803467 | S102: 2125.255371 | T102: 2109.473877 | U102: 2037.699463 | V102: 2123.982178 | W102: 2110.842871
A103: 2014-01-04T17:00:00.435 | B103: 90 | C103: 1688.604492 | D103: 1838.423462 | E103: 1783.45105 | F103: 1782.224731 | G103: 1733.233032 | H103: 1665.026978 | I103: 1683.241577 | J103: 1837.25647 | K103: 1765.765015 | L103: 1858.543213 | M103: 1901.052368 | N103: 1938.528564 | O103: 1982.484375 | P103: 2042.001953 | Q103: 2069.4021 | R103: 2134.932129 | S103: 2101.331055 | T103: 2102.260254 | U103: 2038.457764 | V103: 2129.212158 | W103: 2101.238672
A104: 2014-01-04T18:00:00.440 | B104: 91 | C104: 1822.64563 | D104: 1833.159424 | E104: 1936.778198 | F104: 1827.787842 | G104: 1738.695068 | H104: 1660.656006 | I104: 1658.107544 | J104: 1795.078857 | K104: 1729.881226 | L104: 1798.13916 | M104: 1847.883301 | N104: 1879.567383 | O104: 1927.064819 | P104: 1982.642212 | Q104: 2012.709351 | R104: 2095.2771 | S104: 2059.047119 | T104: 2075.4104 | U104: 2022.381104 | V104: 2116.221191 | W104: 2073.667383
A105: 2014-01-04T19:00:00.445 | B105: 92 | C105: 1830.126587 | D105: 1823.122681 | E105: 1902.066772 | F105: 2005.996826 | G105: 1790.130981 | H105: 1711.032471 | I105: 1663.695679 | J105: 1764.102905 | K105: 1707.328857 | L105: 1750.582153 | M105: 1804.649658 | N105: 1831.470947 | O105: 1877.960693 | P105: 1926.811768 | Q105: 1954.138794 | R105: 2048.105713 | S105: 2007.07959 | T105: 2032.668213 | U105: 1991.908447 | V105: 2087.628662 | W105: 2033.478125
A106: 2014-01-04T20:00:00.450 | B106: 93 | C106: 1648.686523 | D106: 1802.939697 | E106: 1724.170654 | F106: 1991.276123 | G106: 1825.810425 | H106: 1755.692749 | I106: 1734.054443 | J106: 1762.72937 | K106: 1711.812378 | L106: 1720.74292 | M106: 1770.265259 | N106: 1793.354248 | O106: 1838.685059 | P106: 1879.265869 | Q106: 1901.282104 | R106: 2000.564941 | S106: 1955.288818 | T106: 1981.625854 | U106: 1952.445313 | V106: 2048.378418 | W106: 1987.660669
A107: 2014-01-04T21:00:00.455 | B107: 94 | C107: 1592.53479 | D107: 1775.43396 | E107: 1669.031494 | F107: 1790.81665 | G107: 1769.389648 | H107: 1697.0354 | I107: 1756.776611 | J107: 1773.454712 | K107: 1738.844971 | L107: 1727.067505 | M107: 1754.611206 | N107: 1769.608276 | O107: 1810.573242 | P107: 1839.81604 | Q107: 1856.647461 | R107: 1954.557129 | S107: 1908.86731 | T107: 1928.727051 | U107: 1909.276978 | V107: 2004.487793 | W107: 1941.183252
A108: 2014-01-04T22:00:00.460 | B108: 95 | C108: 1462.78772 | D108: 1746.695313 | E108: 1504.745361 | F108: 1716.551758 | G108: 1695.092529 | H108: 1603.44458 | I108: 1666.233887 | J108: 1733.004028 | K108: 1719.317993 | L108: 1731.614746 | M108: 1757.044067 | N108: 1768.129272 | O108: 1801.195801 | P108: 1812.022461 | Q108: 1821.815796 | R108: 1909.453491 | S108: 1868.564209 | T108: 1876.861938 | U108: 1863.876587 | V108: 1959.179565 | W108: 1895.587158
A109: 2014-01-04T23:00:00.465 | B109: 96 | C109: 1368.575195 | D109: 1716.6427 | E109: 1451.781006 | F109: 1544.330566 | G109: 1628.766968 | H109: 1525.573608 | I109: 1579.368042 | J109: 1659.648071 | K109: 1641.902832 | L109: 1682.061035 | M109: 1729.104004 | N109: 1757.621094 | O109: 1802.90979 | P109: 1799.865845 | Q109: 1801.701538 | R109: 1868.438721 | S109: 1835.289429 | T109: 1827.542847 | U109: 1815.405518 | V109: 1912.858276 | W109: 1851.906958
A110: 2014-01-05T00:00:00.470 | B110: 97 | C110: 1205.657349 | D110: 1691.398804 | E110: 1342.287476 | F110: 1484.01416 | G110: 1566.939331 | H110: 1459.719116 | I110: 1482.5896 | J110: 1600.357544 | K110: 1569.795532 | L110: 1614.904175 | M110: 1658.873413 | N110: 1702.569214 | O110: 1781.407959 | P110: 1779.706909 | Q110: 1786.295166 | R110: 1834.469482 | S110: 1812.141479 | T110: 1784.743774 | U110: 1765.679077 | V110: 1866.924072 | W110: 1812.791577
A111: 2014-01-05T01:00:00.475 | B111: 98 | C111: 1077.043335 | D111: 1671.564453 | E111: 1257.569092 | F111: 1377.646729 | G111: 1521.132324 | H111: 1412.00061 | I111: 1417.555298 | J111: 1553.50415 | K111: 1509.678955 | L111: 1554.997314 | M111: 1592.32959 | N111: 1631.987305 | O111: 1729.421143 | P111: 1728.677002 | Q111: 1750.051514 | R111: 1795.473022 | S111: 1791.425781 | T111: 1750.298828 | U111: 1719.66272 | V111: 1825.074951 | W111: 1776.38706
A112: 2014-01-05T02:00:00.480 | B112: 99 | C112: 1014.380676 | D112: 1663.204956 | E112: 1214.966187 | F112: 1292.94873 | G112: 1472.225464 | H112: 1363.097656 | I112: 1360.395996 | J112: 1532.586426 | K112: 1471.092041 | L112: 1516.635254 | M112: 1540.856079 | N112: 1576.668945 | O112: 1671.179565 | P112: 1665.609619 | Q112: 1693.565552 | R112: 1740.815063 | S112: 1757.565796 | T112: 1716.039551 | U112: 1674.829346 | V112: 1785.535278 | W112: 1734.957007
A113: 2014-01-05T03:00:00.485 | B113: 100 | C113: 966.5585327 | D113: 1662.500488 | E113: 1170.202515 | F113: 1257.695068 | G113: 1444.000366 | H113: 1332.140991 | I113: 1314.030884 | J113: 1521.691284 | K113: 1444.773804 | L113: 1499.990112 | M113: 1515.755737 | N113: 1546.454834 | O113: 1623.63562 | P113: 1611.651245 | Q113: 1638.547363 | R113: 1683.165405 | S113: 1713.132202 | T113: 1676.073975 | U113: 1624.28894 | V113: 1741.436401 | W113: 1687.619385
A114: 2014-01-05T04:00:00.490 | B114: 101 | C114: 1026.335083 | D114: 1667.115356 | E114: 1225.993652 | F114: 1223.269409 | G114: 1431.251099 | H114: 1319.296265 | I114: 1299.307129 | J114: 1527.838257 | K114: 1433.551025 | L114: 1497.926147 | M114: 1510.635742 | N114: 1539.505493 | O114: 1594.146118 | P114: 1579.727905 | Q114: 1599.847656 | R114: 1640.249146 | S114: 1673.547607 | T114: 1638.764404 | U114: 1574.438232 | V114: 1695.214355 | W114: 1644.442749
A115: 2014-01-05T05:00:00.495 | B115: 102 | C115: 1113.555786 | D115: 1679.085327 | E115: 1269.87915 | F115: 1294.814087 | G115: 1445.924927 | H115: 1335.415405 | I115: 1302.801758 | J115: 1550.234375 | K115: 1445.953857 | L115: 1516.785156 | M115: 1524.938599 | N115: 1550.817993 | O115: 1581.104248 | P115: 1570.9104 | Q115: 1584.060913 | R115: 1622.447876 | S115: 1650.876831 | T115: 1615.973999 | U115: 1539.842773 | V115: 1658.793091 | W115: 1617.586914
A116: 2014-01-05T06:00:00.500 | B116: 103 | C116: 1294.044312 | D116: 1692.302368 | E116: 1395.310669 | F116: 1361.107056 | G116: 1485.444458 | H116: 1379.556885 | I116: 1350.569702 | J116: 1586.599609 | K116: 1478.397583 | L116: 1551.264648 | M116: 1560.211426 | N116: 1582.972412 | O116: 1586.401123 | P116: 1582.811401 | Q116: 1590.356567 | R116: 1630.889282 | S116: 1649.437622 | T116: 1614.023193 | U116: 1530.68335 | V116: 1642.833252 | W116: 1613.57334
A117: 2014-01-05T07:00:00.505 | B117: 104 | C117: 1451.276855 | D117: 1732.231445 | E117: 1501.74292 | F117: 1510.004761 | G117: 1542.208862 | H117: 1444.84729 | I117: 1414.182983 | J117: 1638.623535 | K117: 1534.411865 | L117: 1604.69043 | M117: 1609.184326 | N117: 1631.757935 | O117: 1612.17041 | P117: 1615.773438 | Q117: 1618.915771 | R117: 1662.393799 | S117: 1668.349609 | T117: 1632.818481 | U117: 1548.585083 | V117: 1650.965576 | W117: 1632.62251
A118: 2014-01-05T08:00:00.510 | B118: 105 | C118: 1622.760132 | D118: 1765.715698 | E118: 1616.38855 | F118: 1642.353149 | G118: 1618.909546 | H118: 1526.38208 | I118: 1503.379761 | J118: 1694.679565 | K118: 1600.24292 | L118: 1667.749146 | M118: 1670.540894 | N118: 1693.309692 | O118: 1657.775879 | P118: 1665.52124 | Q118: 1667.733765 | R118: 1713.124146 | S118: 1706.494141 | T118: 1670.062012 | U118: 1589.21228 | V118: 1681.041504 | W118: 1671.986817
A119: 2014-01-05T09:00:00.515 | B119: 106 | C119: 1966.851318 | D119: 1790.302124 | E119: 1898.424194 | F119: 1773.901367 | G119: 1688.096069 | H119: 1606.122314 | I119: 1594.023315 | J119: 1757.216797 | K119: 1671.855347 | L119: 1735.204102 | M119: 1731.425293 | N119: 1757.834839 | O119: 1718.908691 | P119: 1728.487427 | Q119: 1731.631714 | R119: 1776.395752 | S119: 1760.196289 | T119: 1722.696899 | U119: 1646.737549 | V119: 1728.918457 | W119: 1726.988989
A120: 2014-01-05T10:00:00.520 | B120: 107 | C120: 1959.105103 | D120: 1809.821899 | E120: 1899.085938 | F120: 2089.710205 | G120: 1795.096191 | H120: 1730.171021 | I120: 1673.330566 | J120: 1812.13208 | K120: 1736.5 | L120: 1799.369019 | M120: 1788.826172 | N120: 1817.07251 | O120: 1785.580811 | P120: 1795.35083 | Q120: 1802.252441 | R120: 1844.392578 | S120: 1823.306396 | T120: 1785.11377 | U120: 1713.45105 | V120: 1788.740723 | W120: 1791.000903
A121: 2014-01-05T11:00:00.525 | B121: 108 | C121: 1903.924438 | D121: 1816.923218 | E121: 1901.689575 | F121: 2106.946777 | G121: 1873.665894 | H121: 1836.434204 | I121: 1816.222534 | J121: 1881.412842 | K121: 1801.220093 | L121: 1849.999512 | M121: 1833.953857 | N121: 1864.891846 | O121: 1848.071045 | P121: 1858.579712 | Q121: 1868.54895 | R121: 1907.391846 | S121: 1886.56604 | T121: 1849.53125 | U121: 1780.646606 | V121: 1853.026245 | W121: 1855.432397
A122: 2014-01-05T12:00:00.530 | B122: 109 | C122: 1981.62915 | D122: 1812.55896 | E122: 2020.347412 | F122: 2078.844727 | G122: 1868.16687 | H122: 1845.130493 | I122: 1878.22522 | J122: 1956.631104 | K122: 1878.298706 | L122: 1919.292358 | M122: 1874.954956 | N122: 1900.026733 | O122: 1895.430664 | P122: 1910.230103 | Q122: 1921.85498 | R122: 1957.659424 | S122: 1940.401733 | T122: 1906.776978 | U122: 1839.064575 | V122: 1913.044434 | W122: 1911.389429
A123: 2014-01-05T13:00:00.535 | B123: 110 | C123: 1876.855103 | D123: 1801.133911 | E123: 1874.110229 | F123: 2184.46875 | G123: 1879.659668 | H123: 1859.767578 | I123: 1860.785767 | J123: 1972.017944 | K123: 1897.028442 | L123: 1967.417969 | M123: 1926.09314 | N123: 1941.65332 | O123: 1933.696533 | P123: 1948.773315 | Q123: 1956.093262 | R123: 1990.049927 | S123: 1977.548706 | T123: 1949.619751 | U123: 1881.649536 | V123: 1960.963013 | W123: 1951.966187
A124: 2014-01-05T14:00:00.540 | B124: 111 | C124: 1809.076538 | D124: 1786.288696 | E124: 1874.813721 | F124: 2012.7677 | G124: 1860.156494 | H124: 1852.111572 | I124: 1882.597656 | J124: 1975.064087 | K124: 1876.920166 | L124: 1960.289063 | M124: 1938.151611 | N124: 1964.624634 | O124: 1961.832275 | P124: 1986.165649 | Q124: 1979.575562 | R124: 2007.295166 | S124: 1995.232788 | T124: 1973.930176 | U124: 1905.222534 | V124: 1991.87854 | W124: 1974.711841
A125: 2014-01-05T15:00:00.545 | B125: 112 | C125: 1812.056396 | D125: 1760.900391 | E125: 1875.785767 | F125: 1968.665771 | G125: 1807.036255 | H125: 1798.412842 | I125: 1835.785767 | J125: 1976.349609 | K125: 1868.14502 | L125: 1952.817383 | M125: 1922.192749 | N125: 1947.88269 | O125: 1955.431641 | P125: 2001.663208 | Q125: 1990.359741 | R125: 2018.127686 | S125: 2001.293213 | T125: 1982.622437 | U125: 1912.187866 | V125: 2005.662842 | W125: 1983.978809
A126: 2014-01-05T16:00:00.550 | B126: 113 | C126: 1764.609619 | D126: 1742.08374 | E126: 1862.933228 | F126: 1950.725952 | G126: 1787.230469 | H126: 1777.490601 | I126: 1788.262939 | J126: 1940.950439 | K126: 1830.61377 | L126: 1928.339233 | M126: 1915.713745 | N126: 1929.874268 | O126: 1926.96582 | P126: 1984.980225 | Q126: 1972.929932 | R126: 2014.512573 | S126: 1994.21875 | T126: 1980.847534 | U126: 1911.822021 | V126: 2008.572998 | W126: 1981.994775
A127: 2014-01-05T17:00:00.555 | B127: 114 | C127: 1557.64563 | D127: 1723.466919 | E127: 1615.474976 | F127: 1923.47937 | G127: 1775.061157 | H127: 1768.98645 | I127: 1771.957275 | J127: 1915.728394 | K127: 1797.868896 | L127: 1886.942749 | M127: 1890.533691 | N127: 1909.319946 | O127: 1897.932861 | P127: 1962.0625 | Q127: 1943.053101 | R127: 1993.330811 | S127: 1967.114746 | T127: 1964.084595 | U127: 1904.013672 | V127: 2001.825684 | W127: 1966.073902
A128: 2014-01-05T18:00:00.560 | B128: 115 | C128: 1600.759766 | D128: 1704.361816 | E128: 1650.838135 | F128: 1637.738892 | G128: 1699.635254 | H128: 1682.93396 | I128: 1763.444092 | J128: 1894.571777 | K128: 1787.504395 | L128: 1859.212769 | M128: 1866.974121 | N128: 1881.463379 | O128: 1866.551636 | P128: 1932.264648 | Q128: 1915.408569 | R128: 1969.710938 | S128: 1932.781006 | T128: 1933.636963 | U128: 1884.224976 | V128: 1981.873535 | W128: 1940.445484
A129: 2014-01-05T19:00:00.565 | B129: 116 | C129: 1571.774292 | D129: 1691.886353 | E129: 1601.090454 | F129: 1640.720581 | G129: 1631.047974 | H129: 1586.081177 | I129: 1648.117065 | J129: 1833.366455 | K129: 1758.650635 | L129: 1839.215576 | M129: 1856.435059 | N129: 1865.334961 | O129: 1844.00061 | P129: 1899.808472 | Q129: 1887.250244 | R129: 1946.175537 | S129: 1900.935913 | T129: 1900.71106 | U129: 1860.775146 | V129: 1954.669067 | W129: 1912.653345
A130: 2014-01-05T20:00:00.570 | B130: 117 | C130: 1553.005005 | D130: 1676.234619 | E130: 1552.285767 | F130: 1599.393066 | G130: 1619.64563 | H130: 1553.763184 | I130: 1584.627075 | J130: 1737.321533 | K130: 1683.603149 | L130: 1771.098267 | M130: 1828.902954 | N130: 1850.293335 | O130: 1837.501831 | P130: 1877.083008 | Q130: 1866.891968 | R130: 1922.762939 | S130: 1872.124634 | T130: 1868.71936 | U130: 1838.192627 | V130: 1926.859009 | W130: 1885.731714
A131: 2014-01-05T21:00:00.575 | B131: 118 | C131: 1525.980469 | D131: 1653.395264 | E131: 1497.398438 | F131: 1554.359497 | G131: 1596.781616 | H131: 1520.778076 | I131: 1552.194214 | J131: 1674.613647 | K131: 1638.427979 | L131: 1695.952515 | M131: 1759.422241 | N131: 1798.005371 | O131: 1822.621094 | P131: 1855.434937 | Q131: 1854.70105 | R131: 1903.91272 | S131: 1850.733276 | T131: 1838.818115 | U131: 1814.431152 | V131: 1899.16748 | W131: 1861.412549
A132: 2014-01-05T22:00:00.580 | B132: 119 | C132: 1440.970093 | D132: 1626.472168 | E132: 1416.239258 | F132: 1507.744263 | G132: 1567.384888 | H132: 1476.662964 | I132: 1511.932007 | J132: 1616.665771 | K132: 1611.184326 | L132: 1644.049072 | M132: 1702.301636 | N132: 1734.868164 | O132: 1787.917358 | P132: 1809.875 | Q132: 1828.778442 | R132: 1881.116455 | S132: 1835.329834 | T132: 1813.41333 | U132: 1790.453857 | V132: 1872.963135 | W132: 1838.655322
A133: 2014-01-05T23:00:00.585 | B133: 120 | C133: 1261.077026 | D133: 1595.810913 | E133: 1335.62793 | F133: 1436.740601 | G133: 1529.824829 | H133: 1426.164795 | I133: 1460.109741 | J133: 1560.159302 | K133: 1573.581177 | L133: 1595.341187 | M133: 1655.697876 | N133: 1689.603149 | O133: 1756.22998 | P133: 1758.605713 | Q133: 1785.592407 | R133: 1839.926758 | S133: 1810.94043 | T133: 1786.593994 | U133: 1763.250366 | V133: 1847.013062 | W133: 1809.544922
A134: 2014-01-06T00:00:00.590 | B134: 121 | C134: 1166.460571 | D134: 1569.318604 | E134: 1236.179321 | F134: 1365.717285 | G134: 1485.868408 | H134: 1372.979492 | I134: 1398.246826 | J134: 1509.63623 | K134: 1527.665649 | L134: 1545.147095 | M134: 1604.852661 | N134: 1647.145996 | O134: 1728.637451 | P134: 1716.940674 | Q134: 1744.234009 | R134: 1790.114136 | S134: 1777.065796 | T134: 1751.098267 | U134: 1723.213257 | V134: 1813.426392 | W134: 1770.98357
A135: 2014-01-06T01:00:00.595 | B135: 122 | C135: 1006.614258 | D135: 1551.648926 | E135: 1119.813599 | F135: 1271.102295 | G135: 1438.855469 | H135: 1318.401123 | I135: 1336.997681 | J135: 1470.303589 | K135: 1480.321045 | L135: 1497.723755 | M135: 1553.044312 | N135: 1599.641479 | O135: 1693.686157 | P135: 1678.240479 | Q135: 1705.483521 | R135: 1744.663208 | S135: 1745.682129 | T135: 1713.884033 | U135: 1674.336304 | V135: 1772.220947 | W135: 1730.157324
A136: 2014-01-06T02:00:00.600 | B136: 123 | C136: 944.3292847 | D136: 1545.707031 | E136: 1058.417358 | F136: 1150.736816 | G136: 1384.094482 | H136: 1255.942627 | I136: 1273.906616 | J136: 1445.183228 | K136: 1437.964722 | L136: 1460.540771 | M136: 1507.684448 | N136: 1554.545166 | O136: 1649.874756 | P136: 1638.112793 | Q136: 1663.811523 | R136: 1703.709106 | S136: 1718.662476 | T136: 1683.034912 | U136: 1629.972412 | V136: 1733.064819 | W136: 1693.688745
A137: 2014-01-06T03:00:00.605 | B137: 124 | C137: 939.8905029 | D137: 1548.683105 | E137: 1078.377563 | F137: 1081.974976 | G137: 1340.274292 | H137: 1203.286255 | I137: 1204.749146 | J137: 1427.16687 | K137: 1398.20166 | L137: 1435.477783 | M137: 1475.079102 | N137: 1520.702759 | O137: 1604.803345 | P137: 1600.358276 | Q137: 1622.024292 | R137: 1666.613037 | S137: 1692.776611 | T137: 1658.280029 | U137: 1595.62561 | V137: 1701.577515 | W137: 1662.97456
A138: 2014-01-06T04:00:00.610 | B138: 125 | C138: 982.9968262 | D138: 1562.799927 | E138: 1124.33252 | F138: 1103.181519 | G138: 1334.005859 | H138: 1194.085938 | I138: 1159.111694 | J138: 1419.287842 | K138: 1363.257568 | L138: 1417.385864 | M138: 1453.575195 | N138: 1499.609131 | O138: 1566.523071 | P138: 1571.546997 | Q138: 1587.83252 | R138: 1637.785156 | S138: 1669.779419 | T138: 1638.532471 | U138: 1571.30542 | V138: 1677.789673 | W138: 1639.038428
A139: 2014-01-06T05:00:00.615 | B139: 126 | C139: 1030.75415 | D139: 1581.345581 | E139: 1181.276978 | F139: 1157.612915 | G139: 1361.09314 | H139: 1227.213135 | I139: 1169.75293 | J139: 1438.356079 | K139: 1353.775757 | L139: 1413.931763 | M139: 1442.725098 | N139: 1488.137451 | O139: 1537.532471 | P139: 1553.582275 | Q139: 1566.731445 | R139: 1622.541138 | S139: 1655.215698 | T139: 1626.869141 | U139: 1558.661987 | V139: 1662.620117 | W139: 1625.181616
A140: 2014-01-06T06:00:00.620 | B140: 127 | C140: 1112.787109 | D140: 1608.494385 | E140: 1247.961792 | F140: 1222.73291 | G140: 1399.555786 | H140: 1277.159668 | I140: 1223.21875 | J140: 1487.149414 | K140: 1383.21106 | L140: 1442.337891 | M140: 1455.071289 | N140: 1493.217041 | O140: 1521.213257 | P140: 1545.476685 | Q140: 1558.79248 | R140: 1621.746948 | S140: 1652.246582 | T140: 1627.074951 | U140: 1560.69397 | V140: 1659.117676 | W140: 1624.176025
A141: 2014-01-06T07:00:00.625 | B141: 128 | C141: 1287.757202 | D141: 1637.070313 | E141: 1317.666504 | F141: 1296.338257 | G141: 1443.122192 | H141: 1330.12854 | I141: 1292.538208 | J141: 1547.17688 | K141: 1437.451782 | L141: 1501.116943 | M141: 1499.493286 | N141: 1527.695313 | O141: 1528.309326 | P141: 1553.232422 | Q141: 1565.545532 | R141: 1633.218872 | S141: 1659.833618 | T141: 1639.047485 | U141: 1577.209229 | V141: 1668.61084 | W141: 1635.584009
A142: 2014-01-06T08:00:00.630 | B142: 129 | C142: 1525.802612 | D142: 1660.546509 | E142: 1397.22229 | F142: 1372.412109 | G142: 1487.485962 | H142: 1382.601807 | I142: 1363.438843 | J142: 1604.199707 | K142: 1496.811279 | L142: 1571.714111 | M142: 1563.595215 | N142: 1588.096191 | O142: 1565.497314 | P142: 1586.166016 | Q142: 1594.003906 | R142: 1658.320313 | S142: 1678.323486 | T142: 1660.612549 | U142: 1603.882202 | V142: 1688.805542 | W142: 1657.988818
A143: 2014-01-06T09:00:00.635 | B143: 130 | C143: 2355.354248 | D143: 1682.726929 | E143: 2004.486572 | F143: 1458.921875 | G143: 1531.03418 | H143: 1433.836792 | I143: 1428.177002 | J143: 1651.386353 | K143: 1552.005615 | L143: 1638.581909 | M143: 1628.719116 | N143: 1655.383911 | O143: 1623.861938 | P143: 1641.471436 | Q143: 1645.758667 | R143: 1700.280518 | S143: 1711.520142 | T143: 1692.379883 | U143: 1637.596558 | V143: 1717.415894 | W143: 1691.838599
A144: 2014-01-06T10:00:00.640 | B144: 131 | C144: 2361.779785 | D144: 1699.372559 | E144: 1956.432129 | F144: 2144.448486 | G144: 1713.10083 | H144: 1637.662964 | I144: 1485.784424 | J144: 1686.702393 | K144: 1598.776001 | L144: 1692.924927 | M144: 1683.385498 | N144: 1714.052612 | O144: 1686.74292 | P144: 1704.799316 | Q144: 1709.34314 | R144: 1754.794556 | S144: 1758.566284 | T144: 1735.563232 | U144: 1678.716431 | V144: 1754.806885 | W144: 1736.489478
A145: 2014-01-06T11:00:00.645 | B145: 132 | C145: 2270.059814 | D145: 1682.570557 | E145: 1926.152222 | F145: 2170.410889 | G145: 1877.480591 | H145: 1858.283081 | I145: 1771.208862 | J145: 1782.77002 | K145: 1683.351196 | L145: 1731.708862 | M145: 1722.625122 | N145: 1757.441895 | O145: 1741.21582 | P145: 1762.169678 | Q145: 1769.375366 | R145: 1809.730591 | S145: 1809.648804 | T145: 1785.181763 | U145: 1724.984375 | V145: 1799.669678 | W145: 1785.843042
A146: 2014-01-06T12:00:00.650 | B146: 133 | C146: 2319.945801 | D146: 1664.53186 | E146: 2021.975342 | F146: 2102.459961 | G146: 1854.498413 | H146: 1867.223145 | I146: 1916.107056 | J146: 1933.358765 | K146: 1854.549438 | L146: 1858.189697 | M146: 1781.808838 | N146: 1799.015991 | O146: 1780.90271 | P146: 1805.310059 | Q146: 1815.703125 | R146: 1853.712769 | S146: 1852.858032 | T146: 1831.011353 | U146: 1768.092285 | V146: 1845.027466 | W146: 1830.140381
A147: 2014-01-06T13:00:00.655 | B147: 134 | C147: 2269.339355 | D147: 1647.041504 | E147: 1984.021362 | F147: 2187.662354 | G147: 1839.25415 | H147: 1839.045044 | I147: 1876.791504 | J147: 1957.421021 | K147: 1917.427124 | L147: 1974.538086 | M147: 1905.908936 | N147: 1898.414917 | O147: 1841.275757 | P147: 1846.153198 | Q147: 1848.582275 | R147: 1881.264526 | S147: 1880.914917 | T147: 1864.53894 | U147: 1799.227783 | V147: 1881.790649 | W147: 1861.547363
A148: 2014-01-06T14:00:00.660 | B148: 135 | C148: 2001.458496 | D148: 1630.219971 | E148: 1905.459229 | F148: 2145.293701 | G148: 1839.255249 | H148: 1845.627686 | I148: 1858.623291 | J148: 1929.110352 | K148: 1869.07666 | L148: 1968.875 | M148: 1954.554199 | N148: 1983.368164 | O148: 1926.570557 | P148: 1926.648438 | Q148: 1899.670532 | R148: 1906.103882 | S148: 1897.032227 | T148: 1883.333008 | U148: 1814.786377 | V148: 1904.435059 | W148: 1881.138111
A149: 2014-01-06T15:00:00.665 | B149: 136 | C149: 1789.943848 | D149: 1592.622559 | E149: 1746.127319 | F149: 2034.866943 | G149: 1797.665527 | H149: 1810.9375 | I149: 1842.334229 | J149: 1920.027588 | K149: 1840.088623 | L149: 1926.723755 | M149: 1915.350342 | N149: 1966.128662 | O149: 1956.419189 | P149: 1988.716553 | Q149: 1960.546997 | R149: 1951.255859 | S149: 1925.665771 | T149: 1899.700684 | U149: 1822.701172 | V149: 1917.023193 | W149: 1903.269336
A150: 2014-01-06T16:00:00.670 | B150: 137 | C150: 1790.387573 | D150: 1568.894531 | E150: 1770.859985 | F150: 1828.131348 | G150: 1712.735474 | H150: 1720.281372 | I150: 1784.790527 | J150: 1893.613159 | K150: 1814.668945 | L150: 1894.216553 | M150: 1882.599487 | N150: 1915.122803 | O150: 1921.914673 | P150: 1977.581909 | Q150: 1967.974609 | R150: 1984.723022 | S150: 1955.812988 | T150: 1924.654419 | U150: 1843.874878 | V150: 1935.821411 | W150: 1928.977344
A151: 2014-01-06T17:00:00.675 | B151: 138 | C151: 1401.899048 | D151: 1557.49939 | E151: 1382.602051 | F151: 1818.039795 | G151: 1658.028442 | H151: 1651.727661 | I151: 1672.360596 | J151: 1831.907104 | K151: 1754.709106 | L151: 1845.14624 | M151: 1854.514893 | N151: 1882.665894 | O151: 1881.46936 | P151: 1936.133057 | Q151: 1930.057739 | R151: 1972.400269 | S151: 1947.7948 | T151: 1933.799683 | U151: 1867.70813 | V151: 1956.921021 | W151: 1935.724781
A152: 2014-01-06T18:00:00.680 | B152: 139 | C152: 1607.868896 | D152: 1545.803711 | E152: 1574.314575 | F152: 1380.342773 | G152: 1554.556274 | H152: 1530.792603 | I152: 1622.566772 | J152: 1765.378296 | K152: 1679.137451 | L152: 1764.098267 | M152: 1802.751465 | N152: 1841.659546 | O152: 1849.461548 | P152: 1898.046753 | Q152: 1892.70459 | R152: 1939.023926 | S152: 1909.379761 | T152: 1909.24292 | U152: 1862.651245 | V152: 1954.45105 | W152: 1914.94978
A153: 2014-01-06T19:00:00.685 | B153: 140 | C153: 1592.296265 | D153: 1548.898926 | E153: 1542.547607 | F153: 1528.858887 | G153: 1492.09375 | H153: 1440.927368 | I153: 1453.604248 | J153: 1684.294312 | K153: 1613.430664 | L153: 1699.126465 | M153: 1737.807007 | N153: 1776.364868 | O153: 1807.020508 | P153: 1853.230469 | Q153: 1858.438477 | R153: 1909.368896 | S153: 1871.847168 | T153: 1870.930542 | U153: 1834.341187 | V153: 1926.888184 | W153: 1882.675195
A154: 2014-01-06T20:00:00.690 | B154: 141 | C154: 1540.925293 | D154: 1544.834106 | E154: 1516.418457 | F154: 1526.131226 | G154: 1530.138916 | H154: 1465.812988 | I154: 1429.203613 | J154: 1585.65625 | K154: 1521.621094 | L154: 1599.693115 | M154: 1678.042603 | N154: 1714.356201 | O154: 1760.505493 | P154: 1795.371094 | Q154: 1812.508789 | R154: 1876.133911 | S154: 1838.356689 | T154: 1835.615356 | U154: 1805.319458 | V154: 1894.272339 | W154: 1849.939551
A155: 2014-01-06T21:00:00.695 | B155: 142 | C155: 1508.825439 | D155: 1534.293823 | E155: 1471.892334 | F155: 1507.45874 | G155: 1529.296265 | H155: 1466.777466 | I155: 1452.885376 | J155: 1564.176147 | K155: 1506.777222 | L155: 1533.200562 | M155: 1594.798462 | N155: 1638.197632 | O155: 1709.644653 | P155: 1739.590454 | Q155: 1762.405273 | R155: 1832.810791 | S155: 1798.596802 | T155: 1797.367798 | U155: 1775.744019 | V155: 1862.578613 | W155: 1813.419605
A156: 2014-01-06T22:00:00.700 | B156: 143 | C156: 1437.097778 | D156: 1516.3125 | E156: 1393.585205 | F156: 1476.756348 | G156: 1513.796265 | H156: 1437.543091 | I156: 1451.152222 | J156: 1540.573486 | K156: 1518.423828 | L156: 1521.569824 | M156: 1563.244385 | N156: 1585.664917 | O156: 1657.849243 | P156: 1673.362793 | Q156: 1707.080688 | R156: 1783.63623 | S156: 1756.594482 | T156: 1751.767334 | U156: 1736.429565 | V156: 1824.943237 | W156: 1770.67417
A157: 2014-01-06T23:00:00.705 | B157: 144 | C157: 1167.496704 | D157: 1496.713501 | E157: 1240.439087 | F157: 1415.092651 | G157: 1484.559204 | H157: 1395.388916 | I157: 1422.469116 | J157: 1506.756104 | K157: 1505.830078 | L157: 1510.706787 | M157: 1553.156372 | N157: 1576.119873 | O157: 1636.04248 | P157: 1628.236328 | Q157: 1654.156982 | R157: 1726.679199 | S157: 1711.28186 | T157: 1702.119507 | U157: 1688.857544 | V157: 1780.791504 | W157: 1721.945923
A158: 2014-01-07T00:00:00.710 | B158: 145 | C158: 966.6115112 | D158: 1479.675293 | E158: 1113.29541 | F158: 1267.648315 | G158: 1427.494873 | H158: 1326.037109 | I158: 1374.299072 | J158: 1468.887329 | K158: 1476.275269 | L158: 1487.752441 | M158: 1530.476196 | N158: 1566.749878 | O158: 1630.705078 | P158: 1611.36377 | Q158: 1626.452148 | R158: 1679.302246 | S158: 1672.014526 | T158: 1651.892334 | U158: 1634.339111 | V158: 1731.678833 | W158: 1673.84541
A159: 2014-01-07T01:00:00.715 | B159: 146 | C159: 830.5432129 | D159: 1470.727417 | E159: 976.2567749 | F159: 1136.674683 | G159: 1354.972778 | H159: 1237.255615 | I159: 1286.170044 | J159: 1425.9375 | K159: 1433.643921 | L159: 1457.51355 | M159: 1497.027588 | N159: 1540.977661 | O159: 1616.494873 | P159: 1598.213501 | Q159: 1611.273926 | R159: 1649.838013 | S159: 1651.115234 | T159: 1613.378052 | U159: 1584.143921 | V159: 1685.565186 | W159: 1636.808081
A160: 2014-01-07T02:00:00.720 | B160: 147 | C160: 851.4866333 | D160: 1471.715576 | E160: 985.4768066 | F160: 992.0817261 | G160: 1286.266113 | H160: 1151.735474 | I160: 1186.306641 | J160: 1377.501953 | K160: 1373.661133 | L160: 1415.217285 | M160: 1457.121094 | N160: 1506.918701 | O160: 1588.770874 | P160: 1576.204102 | Q160: 1591.127075 | R160: 1626.880249 | S160: 1641.028564 | T160: 1591.127075 | U160: 1550.136719 | V160: 1652.73291 | W160: 1612.381103
A161: 2014-01-07T03:00:00.725 | B161: 148 | C161: 884.2663574 | D161: 1484.478516 | E161: 1008.220093 | F161: 1001.766235 | G161: 1255.397217 | H161: 1109.379395 | I161: 1087.487061 | J161: 1337.534912 | K161: 1311.175171 | L161: 1368.10022 | M161: 1409.014282 | N161: 1466.001709 | O161: 1551.035889 | P161: 1546.869385 | Q161: 1564.617432 | R161: 1602.94519 | S161: 1630.128296 | T161: 1577.582275 | U161: 1529.263062 | V161: 1632.400391 | W161: 1594.463843
A162: 2014-01-07T04:00:00.730 | B162: 149 | C162: 939.916687 | D162: 1503.343628 | E162: 1070.358398 | F162: 1039.868408 | G162: 1272.715332 | H162: 1127.098389 | I162: 1058.773926 | J162: 1324.384644 | K162: 1266.263306 | L162: 1327.109253 | M162: 1364.397095 | N162: 1423.353149 | O162: 1506.728149 | P162: 1511.23584 | Q162: 1534.378052 | R162: 1579.513306 | S162: 1616.502441 | T162: 1567.178223 | U162: 1514.446289 | V162: 1617.900146 | W162: 1579.108081
A163: 2014-01-07T05:00:00.735 | B163: 150 | C163: 998.9659424 | D163: 1524.366699 | E163: 1145.490356 | F163: 1116.808594 | G163: 1309.91626 | H163: 1175.598145 | I163: 1090.879028 | J163: 1359.414795 | K163: 1270.007813 | L163: 1322.020264 | M163: 1339.38562 | N163: 1392.205444 | O163: 1463.87793 | P163: 1474.877441 | Q163: 1503.129395 | R163: 1558.518433 | S163: 1601.650391 | T163: 1560.165894 | U163: 1504.304688 | V163: 1606.790405 | W163: 1566.285962
A164: 2014-01-07T06:00:00.740 | B164: 151 | C164: 1176.412964 | D164: 1547.547119 | E164: 1364.0896 | F164: 1204.32019 | G164: 1360.143188 | H164: 1240.446045 | I164: 1163.485352 | J164: 1424.667236 | K164: 1315.950439 | L164: 1363.950073 | M164: 1359.359253 | N164: 1396.629761 | O164: 1438.96582 | P164: 1448.682739 | Q164: 1478.250977 | R164: 1543.003296 | S164: 1587.52002 | T164: 1557.167603 | U164: 1499.465088 | V164: 1599.800415 | W164: 1557.391284
A165: 2014-01-07T07:00:00.745 | B165: 152 | C165: 1288.838257 | D165: 1569.621216 | E165: 1489.442993 | F165: 1444.58252 | G165: 1449.667114 | H165: 1349.338623 | I165: 1254.447144 | J165: 1504.837769 | K165: 1386.43457 | L165: 1439.261963 | M165: 1420.115845 | N165: 1446.010132 | O165: 1450.109375 | P165: 1452.414795 | Q165: 1474.473755 | R165: 1540.209717 | S165: 1578.948975 | T165: 1559.043701 | U165: 1500.342529 | V165: 1597.863525 | W165: 1555.281689
A166: 2014-01-07T08:00:00.750 | B166: 153 | C166: 1578.569092 | D166: 1585.517944 | E166: 1646.961304 | F166: 1597.131836 | G166: 1551.922607 | H166: 1479.613403 | I166: 1408.09729 | J166: 1601.981689 | K166: 1477.781372 | L166: 1529.889893 | M166: 1504.504272 | N166: 1525.898071 | O166: 1498.02063 | P166: 1494.387207 | Q166: 1505.422852 | R166: 1562.058105 | S166: 1586.82312 | T166: 1570.358643 | U166: 1509.265015 | V166: 1603.248169 | W166: 1566.35061
A167: 2014-01-07T09:00:00.755 | B167: 154 | C167: 1686.750732 | D167: 1592.571045 | E167: 1694.990601 | F167: 1765.687988 | G167: 1632.778809 | H167: 1586.78186 | I167: 1549.683472 | J167: 1711.762085 | K167: 1595.959595 | L167: 1645.164185 | M167: 1602.42041 | N167: 1619.582275 | O167: 1569.722534 | P167: 1565.917847 | Q167: 1568.443115 | R167: 1613.195435 | S167: 1620.310059 | T167: 1599.208496 | U167: 1533.008301 | V167: 1622.001831 | W167: 1597.544824
A168: 2014-01-07T10:00:00.760 | B168: 155 | C168: 1671.382568 | D168: 1588.351563 | E168: 1688.671997 | F168: 1814.793335 | G168: 1681.769775 | H168: 1653.049927 | I168: 1663.36438 | J168: 1795.597656 | K168: 1698.86084 | L168: 1759.805908 | M168: 1713.426636 | N168: 1726.476074 | O168: 1658.377441 | P168: 1653.821411 | Q168: 1650.152222 | R168: 1685.124878 | S168: 1677.00769 | T168: 1648.371582 | U168: 1576.635498 | V168: 1659.795166 | W168: 1649.386963
A169: 2014-01-07T11:00:00.765 | B169: 156 | C169: 1826.789185 | D169: 1578.957275 | E169: 1703.111328 | F169: 1789.207886 | G169: 1679.853271 | H169: 1658.762329 | I169: 1710.614014 | J169: 1842.967041 | K169: 1763.645386 | L169: 1845.312378 | M169: 1803.257446 | N169: 1825.57666 | O169: 1755.88269 | P169: 1753.693848 | Q169: 1742.59668 | R169: 1765.641113 | S169: 1746.102905 | T169: 1711.074951 | U169: 1636.035645 | V169: 1714.708374 | W169: 1714.712598
A170: 2014-01-07T12:00:00.770 | B170: 157 | C170: 1824.413452 | D170: 1570.234375 | E170: 1667.800659 | F170: 1784.147461 | G170: 1662.480103 | H170: 1638.858154 | I170: 1691.828125 | J170: 1839.158447 | K170: 1774.300415 | L170: 1881.436523 | M170: 1853.06665 | N170: 1888.620728 | O170: 1838.92749 | P170: 1845.548096 | Q170: 1834.327759 | R170: 1846.611694 | S170: 1819.868408 | T170: 1778.186157 | U170: 1700.993408 | V170: 1777.943115 | W170: 1784.720556
A171: 2014-01-07T13:00:00.775 | B171: 158 | C171: 1764.398071 | D171: 1555.498047 | E171: 1633.091675 | F171: 1732.421875 | G171: 1639.976074 | H171: 1612.648438 | I171: 1657.64917 | J171: 1805.365356 | K171: 1743.354004 | L171: 1861.884888 | M171: 1851.908081 | N171: 1901.225464 | O171: 1886.827271 | P171: 1906.945435 | Q171: 1903.25354 | R171: 1913.771729 | S171: 1887.026611 | T171: 1842.329346 | U171: 1763.911255 | V171: 1841.302246 | W171: 1849.668237
A172: 2014-01-07T14:00:00.780 | B172: 159 | C172: 1769.846191 | D172: 1538.920776 | E172: 1653.227417 | F172: 1679.681763 | G172: 1606.230469 | H172: 1575.159058 | I172: 1610.005737 | J172: 1764.39502 | K172: 1701.857178 | L172: 1813.955688 | M172: 1812.574707 | N172: 1867.359985 | O172: 1889.839355 | P172: 1923.625244 | Q172: 1933.318481 | R172: 1951.587402 | S172: 1931.246338 | T172: 1891.917969 | U172: 1815.632446 | V172: 1896.01123 | W172: 1897.279077
A173: 2014-01-07T15:00:00.785 | B173: 160 | C173: 1699.523438 | D173: 1523.109985 | E173: 1577.603149 | F173: 1692.696899 | G173: 1588.739502 | H173: 1553.084839 | I173: 1557.146362 | J173: 1716.67627 | K173: 1654.615234 | L173: 1755.169312 | M173: 1762.705811 | N173: 1812.952271 | O173: 1858.235107 | P173: 1898.060791 | Q173: 1920.630981 | R173: 1952.55249 | S173: 1941.094116 | T173: 1915.077637 | U173: 1844.573242 | V173: 1930.924683 | W173: 1916.844434
A174: 2014-01-07T16:00:00.790 | B174: 161 | C174: 1720.936279 | D174: 1510.033813 | E174: 1620.878784 | F174: 1608.869141 | G174: 1566.866577 | H174: 1528.180786 | I174: 1534.414063 | J174: 1677.723999 | K174: 1611.776733 | L174: 1692.335571 | M174: 1710.606812 | N174: 1755.966064 | O174: 1810.528931 | P174: 1850.25061 | Q174: 1877.862427 | R174: 1922.321045 | S174: 1916.576294 | T174: 1907.040894 | U174: 1844.011108 | V174: 1937.96814 | W174: 1905.583496
A175: 2014-01-07T17:00:00.795 | B175: 162 | C175: 1152.692017 | D175: 1503.919189 | E175: 1450.620605 | F175: 1645.120117 | G175: 1553.505371 | H175: 1508.110962 | I175: 1495.859497 | J175: 1646.31665 | K175: 1583.393433 | L175: 1645.161743 | M175: 1665.679199 | N175: 1703.259766 | O175: 1756.963867 | P175: 1795.372925 | Q175: 1821.997925 | R175: 1876.731567 | S175: 1870.174438 | T175: 1873.496338 | U175: 1817.252563 | V175: 1917.731445 | W175: 1871.07727
A176: 2014-01-07T18:00:00.800 | B176: 163 | C176: 1259.648804 | D176: 1492.018677 | E176: 1501.382446 | F176: 1460.696045 | G176: 1519.407959 | H176: 1462.934692 | I176: 1490.721802 | J176: 1614.901611 | K176: 1556.301514 | L176: 1602.951538 | M176: 1635.497314 | N176: 1665.489502 | O176: 1708.553955 | P176: 1742.886597 | Q176: 1763.529419 | R176: 1828.295532 | S176: 1815.934692 | T176: 1826.181274 | U176: 1776.553711 | V176: 1879.765259 | W176: 1825.346094
A177: 2014-01-07T19:00:00.805 | B177: 164 | C177: 1316.721069 | D177: 1500.577393 | E177: 1515.343994 | F177: 1492.96936 | G177: 1484.301147 | H177: 1412.365723 | I177: 1424.599487 | J177: 1578.661621 | K177: 1533.409424 | L177: 1574.53186 | M177: 1608.639526 | N177: 1637.033569 | O177: 1670.844849 | P177: 1702.137451 | Q177: 1713.338989 | R177: 1784.43689 | S177: 1763.076294 | T177: 1774.304443 | U177: 1733.227661 | V177: 1835.11438 | W177: 1778.031934
A178: 2014-01-07T20:00:00.810 | B178: 165 | C178: 1295.151489 | D178: 1502.002808 | E178: 1477.663086 | F178: 1519.639648 | G178: 1501.770142 | H178: 1414.713257 | I178: 1397.799927 | J178: 1523.255371 | K178: 1489.45105 | L178: 1530.073364 | M178: 1584.291748 | N178: 1614.786255 | O178: 1644.673828 | P178: 1669.896118 | Q178: 1675.766846 | R178: 1749.552246 | S178: 1719.535278 | T178: 1724.439087 | U178: 1693.122437 | V178: 1790.977051 | W178: 1735.52522
A179: 2014-01-07T21:00:00.815 | B179: 166 | C179: 1270.207886 | D179: 1494.666992 | E179: 1442.816284 | F179: 1488.962402 | G179: 1502.758911 | H179: 1414.947144 | I179: 1405.546143 | J179: 1498.397217 | K179: 1468.321289 | L179: 1487.418335 | M179: 1540.325684 | N179: 1580.631592 | O179: 1623.057495 | P179: 1644.173096 | Q179: 1649.680786 | R179: 1721.377686 | S179: 1687.500122 | T179: 1681.248901 | U179: 1659.276733 | V179: 1751.88208 | W179: 1700.257104
A180: 2014-01-07T22:00:00.820 | B180: 167 | C180: 1230.326782 | D180: 1476.696533 | E180: 1422.588379 | F180: 1458.622192 | G180: 1485.020142 | H180: 1393.322388 | I180: 1394.558472 | J180: 1479.799683 | K180: 1464.253418 | L180: 1469.238281 | M180: 1508.207642 | N180: 1544.420654 | O180: 1598.967529 | P180: 1610.61499 | Q180: 1626.354492 | R180: 1694.627808 | S180: 1665.519897 | T180: 1645.666992 | U180: 1630.220581 | V180: 1718.780273 | W180: 1670.96311
A181: 2014-01-07T23:00:00.825 | B181: 168 | C181: 1090.966553 | D181: 1457.170044 | E181: 1310.768311 | F181: 1450.550171 | G181: 1468.441284 | H181: 1375.277832 | I181: 1365.932007 | J181: 1454.909424 | K181: 1446.581787 | L181: 1453.531372 | M181: 1487.700073 | N181: 1523.92749 | O181: 1584.580933 | P181: 1577.701904 | Q181: 1600.26709 | R181: 1660.793213 | S181: 1645.647339 | T181: 1615.128906 | U181: 1602.180542 | V181: 1689.657837 | W181: 1642.681567
A182: 2014-01-08T00:00:00.830 | B182: 169 | C182: 923.8405762 | D182: 1439.247925 | E182: 1142.768433 | F182: 1345.275757 | G182: 1434.609253 | H182: 1343.775757 | I182: 1344.545532 | J182: 1436.869141 | K182: 1422.59021 | L182: 1432.377197 | M182: 1461.286865 | N182: 1504.860596 | O182: 1577.007324 | P182: 1554.749756 | Q182: 1579.789795 | R182: 1624.074829 | S182: 1625.187134 | T182: 1585.389893 | U182: 1568.951782 | V182: 1659.545288 | W182: 1612.629785
A183: 2014-01-08T01:00:00.835 | B183: 170 | C183: 871.4182739 | D183: 1426.540161 | E183: 1090.478516 | F183: 1164.530762 | G183: 1361.693726 | H183: 1267.003052 | I183: 1295.735352 | J183: 1425.507446 | K183: 1401.676514 | L183: 1419.480225 | M183: 1434.974854 | N183: 1480.284912 | O183: 1562.712402 | P183: 1533.871094 | Q183: 1561.718994 | R183: 1592.080811 | S183: 1608.889038 | T183: 1559.185303 | U183: 1531.412109 | V183: 1627.383301 | W183: 1583.790112
A184: 2014-01-08T02:00:00.840 | B184: 171 | C184: 870.6223145 | D184: 1425.796387 | E184: 1069.712891 | F184: 1100.792725 | G184: 1301.374146 | H184: 1195.484131 | I184: 1202.092407 | J184: 1399.070068 | K184: 1364.214844 | L184: 1407.577515 | M184: 1418.301636 | N184: 1462.002563 | O184: 1541.992554 | P184: 1511.669922 | Q184: 1538.843018 | R184: 1563.912964 | S184: 1595.311523 | T184: 1540.098267 | U184: 1497.153198 | V184: 1598.106567 | W184: 1558.916504
A185: 2014-01-08T03:00:00.845 | B185: 172 | C185: 864.9324341 | D185: 1432.251099 | E185: 1050.045166 | F185: 1084.08606 | G185: 1284.578003 | H185: 1173.504639 | I185: 1140.406128 | J185: 1372.482056 | K185: 1314.241333 | L185: 1379.716064 | M185: 1398.07251 | N185: 1447.468262 | O185: 1519.8479 | P185: 1494.716064 | Q185: 1515.873169 | R185: 1540.286865 | S185: 1580.947754 | T185: 1526.591797 | U185: 1469.736572 | V185: 1574.727905 | W185: 1538.458179
A186: 2014-01-08T04:00:00.850 | B186: 173 | C186: 933.3099976 | D186: 1444.62439 | E186: 1119.368042 | F186: 1070.204834 | G186: 1282.909668 | H186: 1174.415039 | I186: 1129.410889 | J186: 1378.03772 | K186: 1293.422852 | L186: 1361.011841 | M186: 1374.282837 | N186: 1426.823242 | O186: 1491.351807 | P186: 1480.587158 | Q186: 1498.231812 | R186: 1527.101807 | S186: 1569.2771 | T186: 1518.502441 | U186: 1450.542114 | V186: 1557.753906 | W186: 1524.635474
A187: 2014-01-08T05:00:00.855 | B187: 174 | C187: 1034.297852 | D187: 1463.191895 | E187: 1217.900146 | F187: 1150.809082 | G187: 1305.855957 | H187: 1200.421875 | I187: 1141.235352 | J187: 1405.554932 | K187: 1306.807983 | L187: 1374.365723 | M187: 1376.021362 | N187: 1419.099121 | O187: 1462.218628 | P187: 1464.335815 | Q187: 1482.915894 | R187: 1524.477539 | S187: 1563.620239 | T187: 1519.053589 | U187: 1443.914917 | V187: 1550.034546 | W187: 1520.220166
A188: 2014-01-08T06:00:00.860 | B188: 175 | C188: 1148.98645 | D188: 1482.496704 | E188: 1340.080322 | F188: 1272.691284 | G188: 1361.858521 | H188: 1264.203003 | I188: 1195.088867 | J188: 1447.629639 | K188: 1340.329468 | L188: 1408.917725 | M188: 1407.658325 | N188: 1443.191528 | O188: 1453.704102 | P188: 1460.096069 | Q188: 1476.054321 | R188: 1529.775024 | S188: 1562.310303 | T188: 1528.072388 | U188: 1451.708862 | V188: 1553.894165 | W188: 1525.152148
A189: 2014-01-08T07:00:00.865 | B189: 176 | C189: 1228.074341 | D189: 1497.665283 | E189: 1413.297485 | F189: 1421.17627 | G189: 1433.336792 | H189: 1349.801392 | I189: 1285.694946 | J189: 1510.036255 | K189: 1400.246948 | L189: 1463.549805 | M189: 1456.59314 | N189: 1490.113892 | O189: 1473.834229 | P189: 1481.086182 | Q189: 1493.079102 | R189: 1549.771606 | S189: 1569.913086 | T189: 1544.281738 | U189: 1470.790161 | V189: 1567.746704 | W189: 1540.500659
A190: 2014-01-08T08:00:00.870 | B190: 177 | C190: 1353.373535 | D190: 1506.081177 | E190: 1486.620483 | F190: 1512.495728 | G190: 1494.546753 | H190: 1425.665649 | I190: 1393.616943 | J190: 1581.643433 | K190: 1480.156128 | L190: 1537.927979 | M190: 1522.992554 | N190: 1552.470947 | O190: 1518.061523 | P190: 1523.864014 | Q190: 1535.978027 | R190: 1590.696899 | S190: 1595.946533 | T190: 1572.318115 | U190: 1501.619629 | V190: 1591.900024 | W190: 1570.49624
A191: 2014-01-08T09:00:00.875 | B191: 178 | C191: 1428.432861 | D191: 1513.254517 | E191: 1522.006958 | F191: 1591.078003 | G191: 1535.388672 | H191: 1476.64917 | I191: 1473.735718 | J191: 1643.494263 | K191: 1558.43103 | L191: 1619.642212 | M191: 1598.81958 | N191: 1626.670532 | O191: 1582.760376 | P191: 1584.183716 | Q191: 1597.155884 | R191: 1647.739258 | S191: 1640.817993 | T191: 1615.785889 | U191: 1547.309814 | V191: 1629.809326 | W191: 1616.292456
A192: 2014-01-08T10:00:00.880 | B192: 179 | C192: 1510.055664 | D192: 1513.991943 | E192: 1550.165894 | F192: 1623.45459 | G192: 1560.232178 | H192: 1506.164307 | I192: 1523.526489 | J192: 1679.312256 | K192: 1610.042603 | L192: 1683.070801 | M192: 1665.845337 | N192: 1698.758057 | O192: 1659.452393 | P192: 1656.44043 | Q192: 1670.034668 | R192: 1712.93103 | S192: 1697.823242 | T192: 1670.336914 | U192: 1604.279907 | V192: 1680.414063 | W192: 1673.157031
A193: 2014-01-08T11:00:00.885 | B193: 180 | C193: 1464.88501 | D193: 1511.399536 | E193: 1516.13147 | F193: 1640.713989 | G193: 1568.387695 | H193: 1517.622803 | I193: 1541.232788 | J193: 1692.797607 | K193: 1632.952026 | L193: 1716.095703 | M193: 1703.828003 | N193: 1746.615967 | O193: 1729.521484 | P193: 1727.493164 | Q193: 1743.562012 | R193: 1778.152954 | S193: 1759.381836 | T193: 1728.565186 | U193: 1664.139282 | V193: 1737.127197 | W193: 1733.473291
A194: 2014-01-08T12:00:00.890 | B194: 181 | C194: 1509.647827 | D194: 1505.86438 | E194: 1590.99585 | F194: 1587.458252 | G194: 1555.41333 | H194: 1505.000366 | I194: 1538.303223 | J194: 1687.916382 | K194: 1631.973145 | L194: 1719.740723 | M194: 1711.930664 | N194: 1761.057861 | O194: 1774.171753 | P194: 1778.115479 | Q194: 1800.155396 | R194: 1831.806763 | S194: 1815.300049 | T194: 1782.757813 | U194: 1718.782349 | V194: 1792.279053 | W194: 1788.185205
A195: 2014-01-08T13:00:00.895 | B195: 182 | C195: 1497.330933 | D195: 1503.553223 | E195: 1595.303589 | F195: 1649.043823 | G195: 1552.845093 | H195: 1501.926025 | I195: 1502.941406 | J195: 1668.006226 | K195: 1611.868408 | L195: 1701.841797 | M195: 1696.89856 | N195: 1747.926392 | O195: 1787.470947 | P195: 1798.754272 | Q195: 1826.312622 | R195: 1861.01709 | S195: 1851.918457 | T195: 1823.160278 | U195: 1759.818359 | V195: 1837.763306 | W195: 1826.735498
A196: 2014-01-08T14:00:00.900 | B196: 183 | C196: 1459.84021 | D196: 1499.730713 | E196: 1597.764038 | F196: 1650.217041 | G196: 1564.96875 | H196: 1518.450439 | I196: 1500.763062 | J196: 1647.432251 | K196: 1581.977051 | L196: 1663.86792 | M196: 1666.768799 | N196: 1717.029053 | O196: 1773.654053 | P196: 1791.370239 | Q196: 1821.19397 | R196: 1861.210571 | S196: 1860.428955 | T196: 1840.389526 | U196: 1778.375244 | V196: 1864.541626 | W196: 1840.989184
A197: 2014-01-08T15:00:00.905 | B197: 184 | C197: 1436.58313 | D197: 1492.080933 | E197: 1592.932373 | F197: 1641.703125 | G197: 1562.115601 | H197: 1521.103516 | I197: 1504.781128 | J197: 1645.935913 | K197: 1570.962036 | L197: 1634.059448 | M197: 1631.445557 | N197: 1676.189453 | O197: 1738.783081 | P197: 1763.367432 | Q197: 1791.793213 | R197: 1837.702881 | S197: 1842.150757 | T197: 1832.02002 | U197: 1771.137329 | V197: 1867.191772 | W197: 1830.040552
A198: 2014-01-08T16:00:00.910 | B198: 185 | C198: 1359.240234 | D198: 1484.953003 | E198: 1562.646729 | F198: 1626.915649 | G198: 1555.018433 | H198: 1514.583374 | I198: 1501.916626 | J198: 1641.980713 | K198: 1565.493408 | L198: 1618.843262 | M198: 1614.708862 | N198: 1646.48938 | O198: 1696.586914 | P198: 1723.086304 | Q198: 1746.666382 | R198: 1799.503418 | S198: 1804.793945 | T198: 1802.963501 | U198: 1743.364502 | V198: 1847.786255 | W198: 1799.682324
A199: 2014-01-08T17:00:00.915 | B199: 186 | C199: 1306.672974 | D199: 1478.80896 | E199: 1491.76062 | F199: 1585.787964 | G199: 1541.567749 | H199: 1498.921021 | I199: 1495.983032 | J199: 1633.65332 | K199: 1556.557495 | L199: 1605.945068 | M199: 1608.218384 | N199: 1634.260132 | O199: 1663.943848 | P199: 1688.810913 | Q199: 1700.600586 | R199: 1756.691406 | S199: 1757.176514 | T199: 1760.622803 | U199: 1704.382202 | V199: 1813.427979 | W199: 1758.460181
A200: 2014-01-08T18:00:00.920 | B200: 187 | C200: 1404.270508 | D200: 1473.020386 | E200: 1525.463623 | F200: 1498.443115 | G200: 1511.849121 | H200: 1462.031616 | I200: 1480.539673 | J200: 1618.396729 | K200: 1545.999146 | L200: 1593.49939 | M200: 1603.039795 | N200: 1628.015381 | O200: 1642.453979 | P200: 1666.343018 | Q200: 1667.404297 | R200: 1722.297485 | S200: 1712.08667 | T200: 1713.703979 | U200: 1662.956421 | V200: 1772.090088 | W200: 1716.626929
A201: 2014-01-08T19:00:00.925 | B201: 188 | C201: 1502.890259 | D201: 1468.958618 | E201: 1610.601318 | F201: 1525.174316 | G201: 1497.586914 | H201: 1437.380371 | I201: 1440.03479 | J201: 1587.458984 | K201: 1526.972534 | L201: 1577.436523 | M201: 1596.293457 | N201: 1622.097046 | O201: 1629.169678 | P201: 1650.771851 | Q201: 1647.134766 | R201: 1701.027954 | S201: 1679.226196 | T201: 1672.283813 | U201: 1628.532227 | V201: 1732.893433 | W201: 1682.792725
A202: 2014-01-08T20:00:00.930 | B202: 189 | C202: 1407.39209 | D202: 1459.549072 | E202: 1467.087036 | F202: 1630.247192 | G202: 1527.172852 | H202: 1464.46875 | I202: 1428.829102 | J202: 1551.59668 | K202: 1501.019165 | L202: 1547.37085 | M202: 1579.858643 | N202: 1611.439819 | O202: 1622.23877 | P202: 1638.24646 | Q202: 1636.041748 | R202: 1688.48291 | S202: 1658.99939 | T202: 1640.933594 | U202: 1605.821289 | V202: 1702.493042 | W202: 1659.346045
A203: 2014-01-08T21:00:00.935 | B203: 190 | C203: 1376.094971 | D203: 1440.695557 | E203: 1452.1698 | F203: 1491.213379 | G203: 1515.957397 | H203: 1457.864136 | I203: 1466.678955 | J203: 1541.457764 | K203: 1498.400391 | L203: 1521.681152 | M203: 1552.543213 | N203: 1589.576782 | O203: 1615.568848 | P203: 1623.810303 | Q203: 1629.862671 | R203: 1678.923462 | S203: 1648.016724 | T203: 1618.378296 | U203: 1591.519165 | V203: 1681.007568 | W203: 1643.569043
A204: 2014-01-08T22:00:00.940 | B204: 191 | C204: 1269.631226 | D204: 1418.25293 | E204: 1366.393555 | F204: 1468.122803 | G204: 1470.363281 | H204: 1405.226074 | I204: 1425.904663 | J204: 1527.8573 | K204: 1505.591553 | L204: 1522.399048 | M204: 1537.454834 | N204: 1570.263428 | O204: 1608.5896 | P204: 1603.065186 | Q204: 1621.315918 | R204: 1666.240356 | S204: 1641.78479 | T204: 1601.784058 | U204: 1579.571045 | V204: 1664.773804 | W204: 1630.830811
A205: 2014-01-08T23:00:00.945 | B205: 192 | C205: 1125.296753 | D205: 1392.970581 | E205: 1286.435669 | F205: 1387.497314 | G205: 1436.924927 | H205: 1362.942017 | I205: 1375.609619 | J205: 1483.427124 | K205: 1471.195679 | L205: 1503.027344 | M205: 1530.095581 | N205: 1565.507446 | O205: 1611.843628 | P205: 1586.101196 | Q205: 1610.234497 | R205: 1646.864868 | S205: 1634.614868 | T205: 1587.489868 | U205: 1564.496704 | V205: 1649.555542 | W205: 1616.60437
A206: 2014-01-09T00:00:00.950 | B206: 193 | C206: 879.2861328 | D206: 1370.556274 | E206: 1102.430786 | F206: 1305.567139 | G206: 1391.436157 | H206: 1315.244019 | I206: 1322.035767 | J206: 1449.13562 | K206: 1430.09375 | L206: 1465.291748 | M206: 1495.064209 | N206: 1545.132324 | O206: 1613.259521 | P206: 1579.299072 | Q206: 1604.105469 | R206: 1627.314453 | S206: 1626.815552 | T206: 1573.491211 | U206: 1543.002808 | V206: 1631.966309 | W206: 1600.518067
A207: 2014-01-09T01:00:00.955 | B207: 194 | C207: 847.864563 | D207: 1355.314697 | E207: 1069.496826 | F207: 1106.843262 | G207: 1319.636963 | H207: 1235.315308 | I207: 1265.788208 | J207: 1419.407593 | K207: 1393.70813 | L207: 1431.493286 | M207: 1456.380493 | N207: 1507.19751 | O207: 1592.854614 | P207: 1562.202271 | Q207: 1592.96936 | R207: 1612.167725 | S207: 1622.925781 | T207: 1563.299438 | U207: 1519.090088 | V207: 1613.551758 | W207: 1586.206958
... 2042 more rows

Sheet 8.Resultados
A1: 8. RESULTADOS
A3: I. Ingresos esperados para el generador exento
A5: Año de operación -> | C5: 1 | D5: 2 | E5: 3 | F5: 4 | G5: 5 | H5: 6 | I5: 7 | J5: 8 | K5: 9 | L5: 10 | M5: 11 | N5: 12 | O5: 13 | P5: 14 | Q5: 15 | R5: 16 | S5: 17 | T5: 18 | U5: 19 | V5: 20
A6: Energía generada (MWh/año) | C6: ='6.Generación'!$B$32*'6.Generación'!B14 -> 78.05737875 | D6: ='6.Generación'!$B$32*'6.Generación'!C14 -> 77.57702565 | E6: ='6.Generación'!$B$32*'6.Generación'!D14 -> 77.09667255 | F6: ='6.Generación'!$B$32*'6.Generación'!E14 -> 76.61631945 | G6: ='6.Generación'!$B$32*'6.Generación'!F14 -> 76.13596635 | H6: ='6.Generación'!$B$32*'6.Generación'!G14 -> 75.65561325 | I6: ='6.Generación'!$B$32*'6.Generación'!H14 -> 75.17526015 | J6: ='6.Generación'!$B$32*'6.Generación'!I14 -> 74.69490705 | K6: ='6.Generación'!$B$32*'6.Generación'!J14 -> 74.21455395 | L6: ='6.Generación'!$B$32*'6.Generación'!K14 -> 73.73420085 | M6: ='6.Generación'!$B$32*'6.Generación'!L14 -> 73.25384775 | N6: ='6.Generación'!$B$32*'6.Generación'!M14 -> 72.77349465 | O6: ='6.Generación'!$B$32*'6.Generación'!N14 -> 72.29314155 | P6: ='6.Generación'!$B$32*'6.Generación'!O14 -> 71.81278845 | Q6: ='6.Generación'!$B$32*'6.Generación'!P14 -> 71.33243535 | R6: ='6.Generación'!$B$32*'6.Generación'!Q14 -> 70.85208225 | S6: ='6.Generación'!$B$32*'6.Generación'!R14 -> 70.37172915 | T6: ='6.Generación'!$B$32*'6.Generación'!S14 -> 69.89137605 | U6: ='6.Generación'!$B$32*'6.Generación'!T14 -> 69.41102295 | V6: ='6.Generación'!$B$32*'6.Generación'!U14 -> 68.93066985
A7: Venta 100% a la red (hipotética) | C7: 171015.9473 | D7: 176722.0914 | E7: 161288.9178 | F7: 172847.737 | G7: 157900.2387 | H7: 153380.6695 | I7: 152156.5012 | J7: 160065.6441 | K7: 152360.9697 | L7: 156505.9166 | M7: 154879.56 | N7: 154040.8401 | O7: 149526.4127 | P7: 153083.4442 | Q7: 149926.8355 | R7: 150374.8234 | S7: 148454.1081 | T7: 145447.7963 | U7: 140818.9415 | V7: 144468.0502
A9: Primera fuente de ingreso: pagos de los beneficiarios al generador exento por el servicio de generación distribuida.
A10: Beneficiario 1 | C10: 0 | D10: 0 | E10: 0 | F10: 0 | G10: 0 | H10: 0 | I10: 0 | J10: 0 | K10: 0 | L10: 0 | M10: 0 | N10: 0 | O10: 0 | P10: 0 | Q10: 0 | R10: 0 | S10: 0 | T10: 0 | U10: 0 | V10: 0
A11: Beneficiario 2 | C11: 0 | D11: 0 | E11: 0 | F11: 0 | G11: 0 | H11: 0 | I11: 0 | J11: 0 | K11: 0 | L11: 0 | M11: 0 | N11: 0 | O11: 0 | P11: 0 | Q11: 0 | R11: 0 | S11: 0 | T11: 0 | U11: 0 | V11: 0
A12: Beneficiario 3 | C12: 0 | D12: 0 | E12: 0 | F12: 0 | G12: 0 | H12: 0 | I12: 0 | J12: 0 | K12: 0 | L12: 0 | M12: 0 | N12: 0 | O12: 0 | P12: 0 | Q12: 0 | R12: 0 | S12: 0 | T12: 0 | U12: 0 | V12: 0
A13: Beneficiario 4 | C13: 0 | D13: 0 | E13: 0 | F13: 0 | G13: 0 | H13: 0 | I13: 0 | J13: 0 | K13: 0 | L13: 0 | M13: 0 | N13: 0 | O13: 0 | P13: 0 | Q13: 0 | R13: 0 | S13: 0 | T13: 0 | U13: 0 | V13: 0
A14: Beneficiario 5
A15: Beneficiario 6
A16: Beneficiario 7
A17: Beneficiario 8
A18: Beneficiario 9
A19: Beneficiario 10
A20: Beneficiario 11
A21: Beneficiario 12
A22: Beneficiario 13
A23: Beneficiario 14
A24: Beneficiario 15
A25: Beneficiario 16
A26: Beneficiario 17
A27: Beneficiario 18
A28: Beneficiario 19
A29: Beneficiario 20
A30: TOTAL | C30: =SUM(C10:C29) -> 0 | D30: =SUM(D10:D29) -> 0 | E30: 0 | F30: 0 | G30: 0 | H30: 0 | I30: 0 | J30: 0 | K30: 0 | L30: 0 | M30: 0 | N30: 0 | O30: 0 | P30: 0 | Q30: 0 | R30: 0 | S30: 0 | T30: 0 | U30: 0 | V30: 0
A32: Segunda fuente de ingreso: pagos que el generador exento recibe del suministrador de servicios básicos por saldos no utilizados en la compensación de energía de los beneficiarios.
A33: Beneficiario 1 | D33: 4999.585624 | E33: 6231.872823 | F33: 5569.18852 | G33: 5766.420567 | H33: 5030.160225 | I33: 4729.81395 | J33: 4485.395229 | K33: 4451.3748 | L33: 4031.90993 | M33: 3881.15495 | N33: 3640.465907 | O33: 3382.815915 | P33: 3031.169342 | Q33: 2901.126814 | R33: 2579.930497 | S33: 2338.220905 | T33: 2032.24096 | U33: 1734.440537 | V33: 1440.869265
A34: Beneficiario 2 | D34: 4999.585624 | E34: 6231.872823 | F34: 5569.18852 | G34: 5766.420567 | H34: 5030.160225 | I34: 4729.81395 | J34: 4485.395229 | K34: 4451.3748 | L34: 4031.90993 | M34: 3881.15495 | N34: 3640.465907 | O34: 3382.815915 | P34: 3031.169342 | Q34: 2901.126814 | R34: 2579.930497 | S34: 2338.220905 | T34: 2032.24096 | U34: 1734.440537 | V34: 1440.869265
A35: Beneficiario 3 | D35: 4999.585624 | E35: 6231.872823 | F35: 5569.18852 | G35: 5766.420567 | H35: 5030.160225 | I35: 4729.81395 | J35: 4485.395229 | K35: 4451.3748 | L35: 4031.90993 | M35: 3881.15495 | N35: 3640.465907 | O35: 3382.815915 | P35: 3031.169342 | Q35: 2901.126814 | R35: 2579.930497 | S35: 2338.220905 | T35: 2032.24096 | U35: 1734.440537 | V35: 1440.869265
A36: Beneficiario 4 | D36: 2070.112875 | E36: 2441.700802 | F36: 2186.56691 | G36: 2299.182826 | H36: 2113.352485 | I36: 2021.07614 | J36: 1976.639922 | K36: 2054.495012 | L36: 1927.248025 | M36: 1937.666419 | N36: 1904.573593 | O36: 1860.81067 | P36: 1785.15689 | Q36: 1797.169116 | R36: 1727.719431 | S36: 1705.652565 | T36: 1650.509917 | U36: 1590.42894 | V36: 1515.709332
A37: Beneficiario 5
A38: Beneficiario 6
A39: Beneficiario 7
A40: Beneficiario 8
A41: Beneficiario 9
A42: Beneficiario 10
A43: Beneficiario 11
A44: Beneficiario 12
A45: Beneficiario 13
A46: Beneficiario 14
A47: Beneficiario 15
A48: Beneficiario 16
A49: Beneficiario 17
A50: Beneficiario 18
A51: Beneficiario 19
A52: Beneficiario 20
A53: TOTAL | C53: =SUM(C33:C52) -> 0 | D53: =SUM(D33:D52) -> 17068.86975 | E53: =SUM(E33:E52) -> 21137.31927 | F53: =SUM(F33:F52) -> 18894.13247 | G53: =SUM(G33:G52) -> 19598.44453 | H53: =SUM(H33:H52) -> 17203.83316 | I53: =SUM(I33:I52) -> 16210.51799 | J53: =SUM(J33:J52) -> 15432.82561 | K53: =SUM(K33:K52) -> 15408.61941 | L53: =SUM(L33:L52) -> 14022.97782 | M53: =SUM(M33:M52) -> 13581.13127 | N53: =SUM(N33:N52) -> 12825.97132 | O53: =SUM(O33:O52) -> 12009.25842 | P53: =SUM(P33:P52) -> 10878.66492 | Q53: =SUM(Q33:Q52) -> 10500.54956 | R53: =SUM(R33:R52) -> 9467.510922 | S53: =SUM(S33:S52) -> 8720.315279 | T53: =SUM(T33:T52) -> 7747.232798 | U53: =SUM(U33:U52) -> 6793.750551 | V53: =SUM(V33:V52) -> 5838.317126
A55: Tercera fuente de ingreso: pagos que el generador exento recibe del suministrador de servicios básicos por la venta de energía no asignada a ningún beneficiario.
A56: Venta de energía no asignada ($/año) | C56: 29072.71103 | D56: 30042.75554 | E56: 27419.11603 | F56: 29384.1153 | G56: 26843.04058 | H56: 26074.71382 | I56: 25866.60521 | J56: 27211.1595 | K56: 25901.36485 | L56: 26606.00583 | M56: 26329.52521 | N56: 26186.94281 | O56: 25419.49016 | P56: 26024.18552 | Q56: 25487.56203 | R56: 25563.71998 | S56: 25237.19838 | T56: 24726.12537 | U56: 23939.22005 | V56: 24559.56853
A58: II. Facturas eléctricas de los beneficiarios
A60: Factura de suministro básico (Comisión Federal de Electricidad) de los usuarios tras asociarse al contrato de generación distribuida colectiva.
A61: Beneficiario 1 | C61: 644.68 | D61: 0 | E61: 0 | F61: 0 | G61: 0 | H61: 0 | I61: 0 | J61: 0 | K61: 0 | L61: 0 | M61: 0 | N61: 0 | O61: 0 | P61: 0 | Q61: 0 | R61: 0 | S61: 0 | T61: 0 | U61: 0 | V61: 0
A62: Beneficiario 2 | C62: 644.68 | D62: 0 | E62: 0 | F62: 0 | G62: 0 | H62: 0 | I62: 0 | J62: 0 | K62: 0 | L62: 0 | M62: 0 | N62: 0 | O62: 0 | P62: 0 | Q62: 0 | R62: 0 | S62: 0 | T62: 0 | U62: 0 | V62: 0
A63: Beneficiario 3 | C63: 644.68 | D63: 0 | E63: 0 | F63: 0 | G63: 0 | H63: 0 | I63: 0 | J63: 0 | K63: 0 | L63: 0 | M63: 0 | N63: 0 | O63: 0 | P63: 0 | Q63: 0 | R63: 0 | S63: 0 | T63: 0 | U63: 0 | V63: 0
A64: Beneficiario 4 | C64: 0 | D64: 0 | E64: 0 | F64: 0 | G64: 0 | H64: 0 | I64: 0 | J64: 0 | K64: 0 | L64: 0 | M64: 0 | N64: 0 | O64: 0 | P64: 0 | Q64: 0 | R64: 0 | S64: 0 | T64: 0 | U64: 0 | V64: 0
A65: Beneficiario 5
A66: Beneficiario 6
A67: Beneficiario 7
A68: Beneficiario 8
A69: Beneficiario 9
A70: Beneficiario 10
A71: Beneficiario 11
A72: Beneficiario 12
A73: Beneficiario 13
A74: Beneficiario 14
A75: Beneficiario 15
A76: Beneficiario 16
A77: Beneficiario 17
A78: Beneficiario 18
A79: Beneficiario 19
A80: Beneficiario 20
A82: Factura de suministro básico (Comisión Federal de Electricidad) que hubieran recibido los beneficiarios de no haberse asociado al contrato de generación distribuida colectiva.
A83: Beneficiario 1 | C83: 79462.56898 | D83: 81846.44605 | E83: 84301.83943 | F83: 86830.89461 | G83: 89435.82145 | H83: 92118.89609 | I83: 94882.46298 | J83: 97728.93687 | K83: 100660.805 | L83: 103680.6291 | M83: 106791.048 | N83: 109994.7794 | O83: 113294.6228 | P83: 116693.4615 | Q83: 120194.2653 | R83: 123800.0933 | S83: 127514.0961 | T83: 131339.519 | U83: 135279.7046 | V83: 139338.0957
A84: Beneficiario 2 | C84: 79462.56898 | D84: 81846.44605 | E84: 84301.83943 | F84: 86830.89461 | G84: 89435.82145 | H84: 92118.89609 | I84: 94882.46298 | J84: 97728.93687 | K84: 100660.805 | L84: 103680.6291 | M84: 106791.048 | N84: 109994.7794 | O84: 113294.6228 | P84: 116693.4615 | Q84: 120194.2653 | R84: 123800.0933 | S84: 127514.0961 | T84: 131339.519 | U84: 135279.7046 | V84: 139338.0957
A85: Beneficiario 3 | C85: 79462.56898 | D85: 81846.44605 | E85: 84301.83943 | F85: 86830.89461 | G85: 89435.82145 | H85: 92118.89609 | I85: 94882.46298 | J85: 97728.93687 | K85: 100660.805 | L85: 103680.6291 | M85: 106791.048 | N85: 109994.7794 | O85: 113294.6228 | P85: 116693.4615 | Q85: 120194.2653 | R85: 123800.0933 | S85: 127514.0961 | T85: 131339.519 | U85: 135279.7046 | V85: 139338.0957
A86: Beneficiario 4 | C86: 2552.023444 | D86: 2628.584148 | E86: 2707.441672 | F86: 2788.664922 | G86: 2872.32487 | H86: 2958.494616 | I86: 3047.249454 | J86: 3138.666938 | K86: 3232.826946 | L86: 3329.811755 | M86: 3429.706107 | N86: 3532.59729 | O86: 3638.575209 | P86: 3747.732465 | Q86: 3860.164439 | R86: 3975.969372 | S86: 4095.248454 | T86: 4218.105907 | U86: 4344.649084 | V86: 4474.988557
A87: Beneficiario 5
A88: Beneficiario 6
A89: Beneficiario 7
A90: Beneficiario 8
A91: Beneficiario 9
A92: Beneficiario 10
A93: Beneficiario 11
A94: Beneficiario 12
A95: Beneficiario 13
A96: Beneficiario 14
A97: Beneficiario 15
A98: Beneficiario 16
A99: Beneficiario 17
A100: Beneficiario 18
A101: Beneficiario 19
A102: Beneficiario 20
A104: III. Ahorros proyectados anualmente para cada beneficiario
A106: Ahorros percibidos por los usuarios en costos eléctricos tras asociarse al contrato de CFE (incluye pagos a CFE y al Generador Exento)
A107: Beneficiario 1 | C107: 78817.89 | D107: 81846.45 | E107: 84301.84 | F107: 86830.89 | G107: 89435.82 | H107: 92118.9 | I107: 94882.46 | J107: 97728.94 | K107: 100660.81 | L107: 103680.63 | M107: 106791.05 | N107: 109994.78 | O107: 113294.62 | P107: 116693.46 | Q107: 120194.27 | R107: 123800.09 | S107: 127514.1 | T107: 131339.52 | U107: 135279.7 | V107: 139338.1
A108: Beneficiario 2 | C108: 78817.89 | D108: 81846.45 | E108: 84301.84 | F108: 86830.89 | G108: 89435.82 | H108: 92118.9 | I108: 94882.46 | J108: 97728.94 | K108: 100660.81 | L108: 103680.63 | M108: 106791.05 | N108: 109994.78 | O108: 113294.62 | P108: 116693.46 | Q108: 120194.27 | R108: 123800.09 | S108: 127514.1 | T108: 131339.52 | U108: 135279.7 | V108: 139338.1
A109: Beneficiario 3 | C109: 78817.89 | D109: 81846.45 | E109: 84301.84 | F109: 86830.89 | G109: 89435.82 | H109: 92118.9 | I109: 94882.46 | J109: 97728.94 | K109: 100660.81 | L109: 103680.63 | M109: 106791.05 | N109: 109994.78 | O109: 113294.62 | P109: 116693.46 | Q109: 120194.27 | R109: 123800.09 | S109: 127514.1 | T109: 131339.52 | U109: 135279.7 | V109: 139338.1
A110: Beneficiario 4 | C110: 2552.02 | D110: 2628.58 | E110: 2707.44 | F110: 2788.66 | G110: 2872.32 | H110: 2958.49 | I110: 3047.25 | J110: 3138.67 | K110: 3232.83 | L110: 3329.81 | M110: 3429.71 | N110: 3532.6 | O110: 3638.58 | P110: 3747.73 | Q110: 3860.16 | R110: 3975.97 | S110: 4095.25 | T110: 4218.11 | U110: 4344.65 | V110: 4474.99
A111: Beneficiario 5
A112: Beneficiario 6
A113: Beneficiario 7
A114: Beneficiario 8
A115: Beneficiario 9
A116: Beneficiario 10
A117: Beneficiario 11
A118: Beneficiario 12
A119: Beneficiario 13
A120: Beneficiario 14
A121: Beneficiario 15
A122: Beneficiario 16
A123: Beneficiario 17
A124: Beneficiario 18
A125: Beneficiario 19
A126: Beneficiario 20

Sheet 9.Balance
A1: 9. BALANCE FINANCIERO (no se considera el IVA)
A3: I. Resultados del balance finaciero para el modelo evaluado
A5: DATOS GENERALES
A6: Inversión ($) | B6: Deuda ($) | C6: Propia ($) | D6: Tasa de interés (%) | E6: Anualidad ($) | F6: Depreciación
A7: 950000 | B7: =IF('2.Proyecto'!D30="SI",A7*'2.Proyecto'!D34,0) -> 0 | C7: =IF('2.Proyecto'!D30="SI",A7-B7,0) -> 0 | D7: =IF('2.Proyecto'!D30="SI",'2.Proyecto'!D36,0) -> 0 | E7: =IF('2.Proyecto'!D30="SI",B7/'2.Proyecto'!D38,0) -> 0 | F7: ='2.Proyecto'!B28 -> 1
A9: Año | B9: 0 | C9: 1 | D9: 2 | E9: 3 | F9: 4 | G9: 5 | H9: 6 | I9: 7 | J9: 8 | K9: 9 | L9: 10 | M9: 11 | N9: 12 | O9: 13 | P9: 14 | Q9: 15 | R9: 16 | S9: 17 | T9: 18 | U9: 19 | V9: 20
A10: INGRESOS BRUTOS (Nota: en autoconsumo se consideran como fujos positivos a los ahorros generados en las facturas eléctricas de los beneficiarios asociados; estos no son considerados para el cálculo del Impuesto Sobre la Renta).
A11: Ingresos brutos anuales ($/año) | B11: NA | C11: ='8.Resultados'!C30+'8.Resultados'!C53+'8.Resultados'!C56 -> 29072.71103 | D11: ='8.Resultados'!D30+'8.Resultados'!D53+'8.Resultados'!D56 -> 47111.62528 | E11: ='8.Resultados'!E30+'8.Resultados'!E53+'8.Resultados'!E56 -> 48556.4353 | F11: ='8.Resultados'!F30+'8.Resultados'!F53+'8.Resultados'!F56 -> 48278.24777 | G11: ='8.Resultados'!G30+'8.Resultados'!G53+'8.Resultados'!G56 -> 46441.48511 | H11: ='8.Resultados'!H30+'8.Resultados'!H53+'8.Resultados'!H56 -> 43278.54698 | I11: ='8.Resultados'!I30+'8.Resultados'!I53+'8.Resultados'!I56 -> 42077.1232 | J11: ='8.Resultados'!J30+'8.Resultados'!J53+'8.Resultados'!J56 -> 42643.98511 | K11: ='8.Resultados'!K30+'8.Resultados'!K53+'8.Resultados'!K56 -> 41309.98426 | L11: ='8.Resultados'!L30+'8.Resultados'!L53+'8.Resultados'!L56 -> 40628.98364 | M11: ='8.Resultados'!M30+'8.Resultados'!M53+'8.Resultados'!M56 -> 39910.65647 | N11: ='8.Resultados'!N30+'8.Resultados'!N53+'8.Resultados'!N56 -> 39012.91413 | O11: ='8.Resultados'!O30+'8.Resultados'!O53+'8.Resultados'!O56 -> 37428.74857 | P11: ='8.Resultados'!P30+'8.Resultados'!P53+'8.Resultados'!P56 -> 36902.85044 | Q11: ='8.Resultados'!Q30+'8.Resultados'!Q53+'8.Resultados'!Q56 -> 35988.11159 | R11: ='8.Resultados'!R30+'8.Resultados'!R53+'8.Resultados'!R56 -> 35031.2309 | S11: ='8.Resultados'!S30+'8.Resultados'!S53+'8.Resultados'!S56 -> 33957.51366 | T11: ='8.Resultados'!T30+'8.Resultados'!T53+'8.Resultados'!T56 -> 32473.35816 | U11: ='8.Resultados'!U30+'8.Resultados'!U53+'8.Resultados'!U56 -> 30732.97061 | V11: ='8.Resultados'!V30+'8.Resultados'!V53+'8.Resultados'!V56 -> 30397.88565
A12: Ahorros (solo autoconsumo) | B12: NA | C12: =IF('2.Proyecto'!$E$42 ="Autoconsumo.", SUM('8.Resultados'!C107:C126),0) -> 239005.69 | D12: =IF('2.Proyecto'!$E$42 ="Autoconsumo.", SUM('8.Resultados'!D107:D126),0) -> 248167.93 | E12: =IF('2.Proyecto'!$E$42 ="Autoconsumo.", SUM('8.Resultados'!E107:E126),0) -> 255612.96 | F12: =IF('2.Proyecto'!$E$42 ="Autoconsumo.", SUM('8.Resultados'!F107:F126),0) -> 263281.33 | G12: =IF('2.Proyecto'!$E$42 ="Autoconsumo.", SUM('8.Resultados'!G107:G126),0) -> 271179.78 | H12: =IF('2.Proyecto'!$E$42 ="Autoconsumo.", SUM('8.Resultados'!H107:H126),0) -> 279315.19 | I12: =IF('2.Proyecto'!$E$42 ="Autoconsumo.", SUM('8.Resultados'!I107:I126),0) -> 287694.63 | J12: =IF('2.Proyecto'!$E$42 ="Autoconsumo.", SUM('8.Resultados'!J107:J126),0) -> 296325.49 | K12: =IF('2.Proyecto'!$E$42 ="Autoconsumo.", SUM('8.Resultados'!K107:K126),0) -> 305215.26 | L12: =IF('2.Proyecto'!$E$42 ="Autoconsumo.", SUM('8.Resultados'!L107:L126),0) -> 314371.7 | M12: =IF('2.Proyecto'!$E$42 ="Autoconsumo.", SUM('8.Resultados'!M107:M126),0) -> 323802.86 | N12: =IF('2.Proyecto'!$E$42 ="Autoconsumo.", SUM('8.Resultados'!N107:N126),0) -> 333516.94 | O12: =IF('2.Proyecto'!$E$42 ="Autoconsumo.", SUM('8.Resultados'!O107:O126),0) -> 343522.44 | P12: =IF('2.Proyecto'!$E$42 ="Autoconsumo.", SUM('8.Resultados'!P107:P126),0) -> 353828.11 | Q12: =IF('2.Proyecto'!$E$42 ="Autoconsumo.", SUM('8.Resultados'!Q107:Q126),0) -> 364442.97 | R12: =IF('2.Proyecto'!$E$42 ="Autoconsumo.", SUM('8.Resultados'!R107:R126),0) -> 375376.24 | S12: =IF('2.Proyecto'!$E$42 ="Autoconsumo.", SUM('8.Resultados'!S107:S126),0) -> 386637.55 | T12: =IF('2.Proyecto'!$E$42 ="Autoconsumo.", SUM('8.Resultados'!T107:T126),0) -> 398236.67 | U12: =IF('2.Proyecto'!$E$42 ="Autoconsumo.", SUM('8.Resultados'!U107:U126),0) -> 410183.75 | V12: =IF('2.Proyecto'!$E$42 ="Autoconsumo.", SUM('8.Resultados'!V107:V126),0) -> 422489.29
A14: GASTOS
A15: O&M ($/año) | B15: NA | C15: 30769.25 | D15: 31692.3275 | E15: 32643.09732 | F15: 33622.39024 | G15: 34631.06195 | H15: 35669.99381 | I15: 36740.09362 | J15: 37842.29643 | K15: 38977.56533 | L15: 100146.8923 | M15: 41351.29906 | N15: 42591.83803 | O15: 43869.59317 | P15: 45185.68096 | Q15: 46541.25139 | R15: 47937.48893 | S15: 49375.6136 | T15: 50856.88201 | U15: 52382.58847 | V15: 53954.06612
A16: Administrativos ($/año) | B16: NA | C16: ='5.Costos'!$B31 -> 0 | D16: ='5.Costos'!$B32 -> 0 | E16: ='5.Costos'!$B33 -> 0 | F16: ='5.Costos'!$B34 -> 0 | G16: ='5.Costos'!$B35 -> 0 | H16: ='5.Costos'!$B36 -> 0 | I16: ='5.Costos'!$B37 -> 0 | J16: ='5.Costos'!$B38 -> 0 | K16: ='5.Costos'!$B39 -> 0 | L16: ='5.Costos'!$B40 -> 0 | M16: ='5.Costos'!$B41 -> 0 | N16: ='5.Costos'!$B42 -> 0 | O16: ='5.Costos'!$B43 -> 0 | P16: ='5.Costos'!$B44 -> 0 | Q16: ='5.Costos'!$B45 -> 0 | R16: ='5.Costos'!$B46 -> 0 | S16: ='5.Costos'!$B47 -> 0 | T16: ='5.Costos'!$B48 -> 0 | U16: ='5.Costos'!$B49 -> 0 | V16: ='5.Costos'!$B50 -> 0
A17: Otros ($/año) | B17: NA | C17: ='5.Costos'!$C31 -> 0 | D17: ='5.Costos'!$C32 -> 0 | E17: ='5.Costos'!$C33 -> 0 | F17: ='5.Costos'!$C34 -> 0 | G17: ='5.Costos'!$C35 -> 0 | H17: ='5.Costos'!$C36 -> 0 | I17: ='5.Costos'!$C37 -> 0 | J17: ='5.Costos'!$C38 -> 0 | K17: ='5.Costos'!$C39 -> 0 | L17: ='5.Costos'!$C40 -> 0 | M17: ='5.Costos'!$C41 -> 0 | N17: ='5.Costos'!$C42 -> 0 | O17: ='5.Costos'!$C43 -> 0 | P17: ='5.Costos'!$C44 -> 0 | Q17: ='5.Costos'!$C45 -> 0 | R17: ='5.Costos'!$C46 -> 0 | S17: ='5.Costos'!$C47 -> 0 | T17: ='5.Costos'!$C48 -> 0 | U17: ='5.Costos'!$C49 -> 0 | V17: ='5.Costos'!$C50 -> 0
A18: Anualidad -crédito ($/año) | B18: NA | C18: =IF(C19>0,$E$7,0) -> 0 | D18: =IF(D19>0,$E$7,0) -> 0 | E18: =IF(E19>0,$E$7,0) -> 0 | F18: =IF(F19>0,$E$7,0) -> 0 | G18: =IF(G19>0,$E$7,0) -> 0 | H18: 0 | I18: 0 | J18: 0 | K18: 0 | L18: 0 | M18: 0 | N18: 0 | O18: 0 | P18: 0 | Q18: 0 | R18: 0 | S18: 0 | T18: 0 | U18: 0 | V18: 0
A19: Deuda remanente($) | B19: NA | C19: =B7 -> 0 | D19: =C19-C18 -> 0 | E19: =D19-D18 -> 0 | F19: 0 | G19: 0 | H19: 0 | I19: 0 | J19: 0 | K19: 0 | L19: 0 | M19: 0 | N19: 0 | O19: 0 | P19: 0 | Q19: 0 | R19: 0 | S19: 0 | T19: 0 | U19: 0 | V19: 0
A20: Pago de intereses ($/año) | B20: NA | C20: =C19*$D$7 -> 0 | D20: =D19*$D$7 -> 0 | E20: 0 | F20: 0 | G20: 0 | H20: 0 | I20: 0 | J20: 0 | K20: 0 | L20: 0 | M20: 0 | N20: 0 | O20: 0 | P20: 0 | Q20: 0 | R20: 0 | S20: 0 | T20: 0 | U20: 0 | V20: 0
A21: Depreciación aplicable | B21: NA | C21: =IF(C9<='2.Proyecto'!$D$28,($A$7*$F$7)/'2.Proyecto'!$D$28,0) -> 95000 | D21: =IF(D9<='2.Proyecto'!$D$28,($A$7*$F$7)/'2.Proyecto'!$D$28,0) -> 95000 | E21: =IF(E9<='2.Proyecto'!$D$28,($A$7*$F$7)/'2.Proyecto'!$D$28,0) -> 95000 | F21: =IF(F9<='2.Proyecto'!$D$28,($A$7*$F$7)/'2.Proyecto'!$D$28,0) -> 95000 | G21: =IF(G9<='2.Proyecto'!$D$28,($A$7*$F$7)/'2.Proyecto'!$D$28,0) -> 95000 | H21: =IF(H9<='2.Proyecto'!$D$28,($A$7*$F$7)/'2.Proyecto'!$D$28,0) -> 95000 | I21: =IF(I9<='2.Proyecto'!$D$28,($A$7*$F$7)/'2.Proyecto'!$D$28,0) -> 95000 | J21: =IF(J9<='2.Proyecto'!$D$28,($A$7*$F$7)/'2.Proyecto'!$D$28,0) -> 95000 | K21: =IF(K9<='2.Proyecto'!$D$28,($A$7*$F$7)/'2.Proyecto'!$D$28,0) -> 95000 | L21: =IF(L9<='2.Proyecto'!$D$28,($A$7*$F$7)/'2.Proyecto'!$D$28,0) -> 95000 | M21: =IF(M9<='2.Proyecto'!$D$28,($A$7*$F$7)/'2.Proyecto'!$D$28,0) -> 0 | N21: =IF(N9<='2.Proyecto'!$D$28,($A$7*$F$7)/'2.Proyecto'!$D$28,0) -> 0 | O21: =IF(O9<='2.Proyecto'!$D$28,($A$7*$F$7)/'2.Proyecto'!$D$28,0) -> 0 | P21: =IF(P9<='2.Proyecto'!$D$28,($A$7*$F$7)/'2.Proyecto'!$D$28,0) -> 0 | Q21: =IF(Q9<='2.Proyecto'!$D$28,($A$7*$F$7)/'2.Proyecto'!$D$28,0) -> 0 | R21: =IF(R9<='2.Proyecto'!$D$28,($A$7*$F$7)/'2.Proyecto'!$D$28,0) -> 0 | S21: =IF(S9<='2.Proyecto'!$D$28,($A$7*$F$7)/'2.Proyecto'!$D$28,0) -> 0 | T21: =IF(T9<='2.Proyecto'!$D$28,($A$7*$F$7)/'2.Proyecto'!$D$28,0) -> 0 | U21: =IF(U9<='2.Proyecto'!$D$28,($A$7*$F$7)/'2.Proyecto'!$D$28,0) -> 0 | V21: =IF(V9<='2.Proyecto'!$D$28,($A$7*$F$7)/'2.Proyecto'!$D$28,0) -> 0
A22: Base gravable | B22: NA | C22: =C11-C16-C17-C20-C21-C15 -> -96696.53897 | D22: =D11-D16-D17-D20-D21-D15 -> -79580.70222 | E22: -79086.66202 | F22: -80344.14248 | G22: -83189.57685 | H22: -87391.44683 | I22: -89662.97043 | J22: -90198.31132 | K22: -92667.58107 | L22: -154517.9086 | M22: -1440.642582 | N22: -3578.9239 | O22: -6440.844593 | P22: -8282.830527 | Q22: -10553.1398 | R22: -12906.25804 | S22: -15418.09994 | T22: -18383.52384 | U22: -21649.61786 | V22: -23556.18047
A23: Impuesto Sobre la Renta (ISR) | B23: NA | C23: =IF(C22>=0,C22*0.3,0) -> 0 | D23: =IF(D22>=0,D22*0.3,0) -> 0 | E23: 0 | F23: 0 | G23: 0 | H23: 0 | I23: 0 | J23: 0 | K23: 0 | L23: 0 | M23: 0 | N23: 0 | O23: 0 | P23: 0 | Q23: 0 | R23: 0 | S23: 0 | T23: 0 | U23: 0 | V23: 0
A24: Gasto total ($/año) | B24: NA | C24: =C15+C16+C17+C20+C21+C23 -> 125769.25 | D24: =D15+D16+D17+D20+D21+D23 -> 126692.3275 | E24: 127643.0973 | F24: 128622.3902 | G24: 129631.062 | H24: 130669.9938 | I24: 131740.0936 | J24: 132842.2964 | K24: 133977.5653 | L24: 195146.8923 | M24: 41351.29906 | N24: 42591.83803 | O24: 43869.59317 | P24: 45185.68096 | Q24: 46541.25139 | R24: 47937.48893 | S24: 49375.6136 | T24: 50856.88201 | U24: 52382.58847 | V24: 53954.06612
A26: INGRESOS NETOS
A27: Flujo de Caja (Netos) | B27: =-A7 -> -950000 | C27: =(C11-C24)+C12 -> 142309.151 | D27: =(D11-D24)+D12 -> 168587.2278 | E27: 176526.298 | F27: 182937.1875 | G27: 187990.2032 | H27: 191923.7432 | I27: 198031.6596 | J27: 206127.1787 | K27: 212547.6789 | L27: 159853.7914 | M27: 322362.2174 | N27: 329938.0161 | O27: 337081.5954 | P27: 345545.2795 | Q27: 353889.8302 | R27: 362469.982 | S27: 371219.4501 | T27: 379853.1462 | U27: 388534.1321 | V27: 398933.1095
A28: Acumulados (Netos) | B28: =B27 -> -950000 | C28: =B28+C27 -> -807690.849 | D28: =C28+D27 -> -639103.6212 | E28: =D28+E27 -> -462577.3232 | F28: =E28+F27 -> -279640.1357 | G28: =F28+G27 -> -91649.93253 | H28: =G28+H27 -> 100273.8106 | I28: =H28+I27 -> 298305.4702 | J28: =I28+J27 -> 504432.6489 | K28: =J28+K27 -> 716980.3278 | L28: =K28+L27 -> 876834.1192 | M28: =L28+M27 -> 1199196.337 | N28: =M28+N27 -> 1529134.353 | O28: =N28+O27 -> 1866215.948 | P28: =O28+P27 -> 2211761.228 | Q28: =P28+Q27 -> 2565651.058 | R28: =Q28+R27 -> 2928121.04 | S28: =R28+S27 -> 3299340.49 | T28: =S28+T27 -> 3679193.636 | U28: =T28+U27 -> 4067727.768 | V28: =U28+V27 -> 4466660.878
A30: EBIT (Ingresos antes de impuestos e intereses)
A31: Flujo de Caja (EBIT) | B31: =-A7 -> -950000 | C31: =(C27+C23+C20) -> 142309.151 | D31: =(D27+D23+D20) -> 168587.2278 | E31: 176526.298 | F31: 182937.1875 | G31: 187990.2032 | H31: 191923.7432 | I31: 198031.6596 | J31: 206127.1787 | K31: 212547.6789 | L31: 159853.7914 | M31: 322362.2174 | N31: 329938.0161 | O31: 337081.5954 | P31: 345545.2795 | Q31: 353889.8302 | R31: 362469.982 | S31: 371219.4501 | T31: 379853.1462 | U31: 388534.1321 | V31: 398933.1095
A32: Acumulados (EBIT) | B32: =B31 -> -950000 | C32: =B32+C31 -> -807690.849 | D32: =C32+D31 -> -639103.6212 | E32: =D32+E31 -> -462577.3232 | F32: =E32+F31 -> -279640.1357 | G32: =F32+G31 -> -91649.93253 | H32: =G32+H31 -> 100273.8106 | I32: =H32+I31 -> 298305.4702 | J32: =I32+J31 -> 504432.6489 | K32: =J32+K31 -> 716980.3278 | L32: =K32+L31 -> 876834.1192 | M32: =L32+M31 -> 1199196.337 | N32: =M32+N31 -> 1529134.353 | O32: =N32+O31 -> 1866215.948 | P32: =O32+P31 -> 2211761.228 | Q32: =P32+Q31 -> 2565651.058 | R32: =Q32+R31 -> 2928121.04 | S32: =R32+S31 -> 3299340.49 | T32: =S32+T31 -> 3679193.636 | U32: =T32+U31 -> 4067727.768 | V32: =U32+V31 -> 4466660.878
A34: EBITDA (Ingresos antes de impuestos, intereses, depreciación y amortización.
A35: Flujo de Caja (EBITDA) | B35: =-A7 -> -950000 | C35: =(C31+C21) -> 237309.151 | D35: =(D31+D21) -> 263587.2278 | E35: 271526.298 | F35: 277937.1875 | G35: 282990.2032 | H35: 286923.7432 | I35: 293031.6596 | J35: 301127.1787 | K35: 307547.6789 | L35: 254853.7914 | M35: 322362.2174 | N35: 329938.0161 | O35: 337081.5954 | P35: 345545.2795 | Q35: 353889.8302 | R35: 362469.982 | S35: 371219.4501 | T35: 379853.1462 | U35: 388534.1321 | V35: 398933.1095
A36: Acumulados (EBITDA) | B36: =B35 -> -950000 | C36: =B36+C35 -> -712690.849 | D36: =C36+D35 -> -449103.6212 | E36: =D36+E35 -> -177577.3232 | F36: =E36+F35 -> 100359.8643 | G36: =F36+G35 -> 383350.0675 | H36: =G36+H35 -> 670273.8106 | I36: =H36+I35 -> 963305.4702 | J36: =I36+J35 -> 1264432.649 | K36: =J36+K35 -> 1571980.328 | L36: =K36+L35 -> 1826834.119 | M36: =L36+M35 -> 2149196.337 | N36: =M36+N35 -> 2479134.353 | O36: =N36+O35 -> 2816215.948 | P36: =O36+P35 -> 3161761.228 | Q36: =P36+Q35 -> 3515651.058 | R36: =Q36+R35 -> 3878121.04 | S36: =R36+S35 -> 4249340.49 | T36: =S36+T35 -> 4629193.636 | U36: =T36+U35 -> 5017727.768 | V36: =U36+V35 -> 5416660.878
A38: II. Glosario
A40: Ahorros (solo autoconsumo): Ahorros anuales proyectados para los beneficiarios asociados a un contrato de generación distribuida colectiva con el propósito de autoconsumo. Los ahorros corresponden a la diferencia entre la factura eléctrica esperada para cada período menos lo que pagarían tras aplicar la metodología de medición o facturación neta, según corresponda. Estos ahorros son proyectados como un flujo positivo en el análisis financiero del proyecto únicamente en el caso de autoconsumo.
A41: EBIT: Siglas en inglés para ingresos antes de impuestos e intereses (Earnings before interests and taxes). Se calcula sumando de vuelta los impuestos e intereses a los ingresos netos calculados previamente.
A43: EBITDA: Siglas en inglés para ingresos antes de impuestos, intereses, amortización y depreciación (Earnings before interests, taxes, amortization and depreciation). Se calcula sumando de vuelta los gastos de depreciación y amortización al valor de EBIT calculado previamente. En este caso, no se consideran gastos de amortización por lo que únicamente se suman de vuelta los gatos de depreciación (de haberse indicado su uso en la pestaña "2.Proyecto").
A45: Ingresos brutos anuales: total de los ingresos obtenidos por el generador exento mediante tres vías. || a) Suma de los pagos mensuales hechos por los beneficiarios a cuenta del servicio de suministro eléctrico y según el modelo de negocio definido en la pestaña "2.Proyecto" (para autoconsumo, no existe esta fuente de ingreso). || b) Ingresos anuales por saldos no compensados remunerados por CFE Suministrador de Servicios Básicos al generador exento. || c) Ingresos por venta de la energía no asignada a ningún beneficiario a la red.
A46: Ingresos netos: diferencia entre los ingresos brutos obtenidos por el generador y los gastos totales asociados a la operación del mismo, es decir, la suma de los gastos de operación y mantenimiento de la centra, costos administrativos, pago de deuda (intereses), Impuesto Sobre la Renta (ISR), depreciación y cualquier otro aplicable que haya sido indicado en la pestaña "5.Costos". En autoconsumo, los ahorros proyectados para los beneficiarios son añadidos como un flujo positivo no contemplado para el cálculo del ISR.
A49: …..................................................................................................................................................................................................................................................................................................................................................................................................................................................................................................................................................................................................................................................................................................................................................................................................................................................................................................................................................

Sheet 10.Informe
A2: Proyecto de Generación Distribuida Colectiva | Tecnología: Solar Fotovoltaica | I2: Ingresos brutos desagregados por fuente de ingreso comparado con 100% venta total
A4: Capacidad instalada: | B4: ='2.Proyecto'!E18 -> 50 | C4: kWp | D4: Generación anual promedio: | G4: =AVERAGE('8.Resultados'!C6:V6) -> 73.4940243 | H4: MWh
A5: Inversión inicial: | B5: ='9.Balance'!A7 -> 950000 | D5: Emisiones GEI desplazadas promedio: | G5: =0.527*G4 -> 38.73135081 | H5: tCO2e/año
A7: Beneficiarios | B7: Tipo | C7: DOM | D7: DAC | E7: PDBT | F7: GDBT | G7: GDMTO | H7: GDMTH
B8: Número: | C8: =COUNTIF('2.Proyecto'!$B$58:$B$77,"=DOM") -> 1 | D8: =COUNTIF('2.Proyecto'!$B$58:$B$77,"=DAC") -> 3 | E8: =COUNTIF('2.Proyecto'!$B$58:$B$77,"=PDBT") -> 0 | F8: =COUNTIF('2.Proyecto'!$B$58:$B$77,"=GDBT") -> 0 | G8: =COUNTIF('2.Proyecto'!$B$58:$B$77,"=GDMTO") -> 0 | H8: =COUNTIF('2.Proyecto'!$B$58:$B$77,"=GDMTH") -> 0
A11: ANÁLISIS FINANCIERO
A13: INDICADORES FINANCIEROS | C13: FLUJOS NETOS | E13: EBIT | G13: EBITDA
A14: Valor Presente Neto (VPN): | C14: =NPV('2.Proyecto'!B26,'9.Balance'!C27:V27)+'9.Balance'!B27 -> 1274399.629 | E14: =NPV('2.Proyecto'!B26,'9.Balance'!C31:V31)+'9.Balance'!B31 -> 1274399.629 | G14: =NPV('2.Proyecto'!B26,'9.Balance'!C35:V35)+'9.Balance'!B35 -> 1900514.638
A15: Tasa Interna de Retorno (TIR): | C15: =IRR('9.Balance'!B27:V27) -> 0.2039437959 | E15: =IRR('9.Balance'!B31:V31) -> 0.2039437959 | G15: =IRR('9.Balance'!B35:V35) -> 0.2858445009
A16: Período de recuperación simple: | C16: 5.5 | D16: años | E16: 5.5 | F16: años | G16: 3.666666667 | H16: años
A17: Costo Nivelado de la Energía LCOE) | C17: =('9.Balance'!A7+SUM('9.Balance'!C24:V24))/(SUM('8.Resultados'!C6:V6)*1000) -> 1.895923714 | D17: $/kWh | E17: =('9.Balance'!A7+SUM('9.Balance'!C24:V24)-SUM('9.Balance'!C20:V20)-SUM('9.Balance'!C23:V23))/(SUM('8.Resultados'!C6:V6)*1000) -> 1.895923714 | F17: $/kWh | G17: =('9.Balance'!A7+SUM('9.Balance'!C24:V24)-SUM('9.Balance'!C20:V20)-SUM('9.Balance'!C23:V23)-SUM('9.Balance'!C21:V21))/(SUM('8.Resultados'!C6:V6)*1000) -> 1.249612664 | H17: $/kWh
A19: Ingresos totales (brutos) | I19: Nota: No aplicable en autoconsumo; revisar ejes para que sean comparables.
A20: Modelo de negocio | B20: 100% Venta a la red | D20: Si los ingresos brutos del modelo analizado son menores a los de venta total a la red, se recomienda considerar esta opción.
A21: =IF('2.Proyecto'!E42="Autoconsumo.",SUM('9.Balance'!C11:V11)+SUM('9.Balance'!C12:V12),SUM('9.Balance'!C11:V11)) -> 7253442.148 | B21: =SUM('8.Resultados'!C7:V7) -> 3105265.445 | I21: GENERACIÓN ESPERADA
I23: Generación anual esperada durante el período analizado
A25: Flujos anuales durante el período analizado
I37: Generación mensual promedio proyectada en el sitio
I53: Fin del documento
A55: Flujos acumulados (netos) durante el período analizado
A73: Flujos acumulados (EBIT) durante el período analizado
A92: Flujos acumulados (EBITDA) durante el período analizado
